Workbook

Sheet TitlePage
A1: Title page | B1: See Revisions worksheet for note on customizaton.
C6: Borate Stump Application
E17: WorksheetMaker Version | F17: 6.01.17
A51: 2016-10-14

Sheet Disclaimer
A1: DISCLAIMER

Sheet General Notes
A1: General Notes
B2: Prepared by: | C2: Patrick R. Durkin
B3: Program Version: | C3: 6.01.17
B4: Database Used: | C4: FS WsMkr V06-01-02.mdb
B5: Template Workbook: | C5: FS WsMkr V06-01-02.mdb
B6: Base Workbook: | C6: FS WSMkr Blank V06-01-01.xlsm
A8: Color Codes in WorksheetMaker
A13: Color Codes used in Workbook for Front Matter, Data and Calculation Worksheets
B14: Green shading | C14: This is a default value or a user specified a value. You can change these values as you see fit but you should have a reason for doing so.
B15: Yellow shading | C15: This is a source for a link in other parts of the workbook. If you have good reason to change the value, you should note the change (with your reason) in the “Revisions” page.
B16: Blue shading | C16: This cell is linked to another cell in the workbook. Do not change this value. If you change any of these values, the workbook may not update correctly.
B17: Blue shading blue border | C17: This cell is linked to a Program parameter in Worksheet A01. Do not change this value. If you want the value to change, go to Worksheet A01 and change the value in that worksheet.
B18: Purple Shading | C18: Indicates (for information only) that the typical of order of Lower and Upper values is intentionally reversed. This is only used in the second (label) column.
B19: Italics, no shading | C19: The value in this cell is generated by a formula (the number that you see is the result of an equation). This cell is linked only to other cells in the worksheet. Do not change this value.
A25: Color Codes used in Workbook for Risk Characterization Worksheets
B26: HQ ≥ 2 | C26: For hazard quotient greater than 2, the number is in bold font with a red background and rounded to the nearest integer.
B27: HQ > 1 but < 2 | C27: For hazard quotient greater than 1 but less than two, the number is in bold font with a white background and rounded to one significant place after the decimal.
B28: HQ ≥ 0.1 but <1 | C28: For hazard quotient greater than 0.1 but less than one, the number is in regular font with a white background and rounded to one significant place after the decimal.
B29: HQ < 0.1 | C29: For hazard quotient less than 0.1, the number is in regular font with a white background. The number is expressed in scientific notation and rounded to one significant place -- e.g., 2E-02 rather than 0.02.
B55: Prepared by: | C55: Patrick R. Durkin
B56: Program Version: | C56: 6.01.17
B57: Database Used: | C57: FS WsMkr V06-01-02.mdb
B58: Template Workbook: | C58: FS WsMkr V06-01-02.mdb
B59: Base Workbook: | C59: FS WSMkr Blank V06-01-01.xlsm

Sheet Chemical Notes
A1: Chemical specific notes
A2: Risk Assessment: | D2: SERA TR-056-15-03b
A3: Report Date: | D3: 2016-10-14
A6: The area below is an embedded MS Word Document. Add chemical-specific notes as appropriate.

Sheet Revisions
A1: Revision Histroy
A8: The area below is an embedded MS Word Document. Add revision notes as appropriate.

Sheet Contents
A1: Table of Contents | C1: Toc
A2: Work-sheet No. | B2: Worksheet Title
A3: TitlePage | B3: Title page
A4: Disclaimer | B4: DISCLAIMER
A5: General Notes | B5: General Notes
A6: Chemical Notes | B6: Chemical specific notes
A7: Revisions | B7: Revision Histroy
A8: Contents | B8: Table of Contents
A9: A01 | B9: Program Data: Application rates, application volumns, and concentrations in field solutions
A10: A02a | B10: General reference values and exposure factors used in worksheets.
A11: A02b | B11: General reference values and exposure factors used in worksheets.
A12: A02c | B12: General reference values and exposure factors used in worksheets.
A13: A02d | B13: General reference values and exposure factors used in worksheets.
A14: A03 | B14: Food items for terrestrial animals
A15: B01 | B15: Chemical and Physical Properties for Borates
A16: B02 | B16: Toxicity values for Borates
A17: B03a | B17: Calculation of Zero-Order Dermal Permeability Rate (Kp) in cm/hour
A18: B03b | B18: Calculation of First-Order Dermal Absorption Rate
A19: B04Rt | B19: Estimates of Water Contamination Rates -- i.e., the concentration in ambient water per pound applied per acre
A20: B04a | B20: Expected Concentrations in Surface Water
A21: B04b | B21: Pond: Concentration of pesticide in pond water after an accidental spill
A22: C01a | B22: Exposure estimates for Stump Applicator based on the amount of material handled per day
A23: C01b | B23: Exposure estimates based on Pesticide Handlers Exposure Database (PHED) Method
A24: C01c | B24: Exposure estimates based on Pesticide Handlers Exposure Database (PHED) Method
A25: C01d_Ac | B25: Exposure estimates based on Pesticide Handlers Exposure Database (PHED) Method
A26: C01d_Ch | B26: Exposure estimates based on Pesticide Handlers Exposure Database (PHED) Method
A27: C02aD | B27: Dermal Exposure Assessment for a Granular Exposure Using Zero-Order Absorption, Worker, Surface Area, Hands, for 1 minute(s)
A28: C02aW | B28: Accidental Dermal Exposure Assessment Using Zero-Order Absorption, Worker, Surface Area, Hands, for 1 minute(s)
A29: C02bD | B29: Dermal Exposure Assessment for a Granular Exposure Using Zero-Order Absorption, Worker, Surface Area, Hands, for 60 minute(s)
A30: C02bW | B30: Accidental Dermal Exposure Assessment Using Zero-Order Absorption, Worker, Surface Area, Hands, for 60 minute(s)
A31: C03a | B31: Accidental Dermal Exposure Assessment Using First-Order Absorption, Worker, Surface Area, Hands, for 60 minute(s)
A32: C03b | B32: Accidental Dermal Exposure Assessment Using First-Order Absorption, Worker, Surface Area, Lower legs, for 60 minute(s)
A33: D01a | B33: Accidental Dermal Exposure Assessment Using First-Order Absorption, Child, Surface Area, Whole body, for 60 minute(s)
A34: D01b | B34: Accidental Dermal Exposure Assessment Using First-Order Absorption, Adult Female, Surface Area, Feet and lower Legs, for 60 minute(s)
A35: D01c | B35: Consumption of Fixed Amount of Compound by a Child, acute exposure
A36: D05 | B36: Consumption of contaminated water by Child, Accidental Spill
A37: D06 | B37: Consumption of contaminated water by Child, Peak Conentrations
A38: D07 | B38: Consumption of contaminated water by Adult Male, Longer-term Conentrations
A39: D08a | B39: Consumption of Contaminated Fish (Accidental Spill), Adult Male, acute exposure
A40: D08b | B40: Consumption of Contaminated Fish (Accidental Spill), Subsistence Populations, acute exposure
A41: D09a | B41: Consumption of Contaminated Fish (Longer-term), Adult Male, chronic exposure
A42: D09b | B42: Consumption of Contaminated Fish (Longer-term), Subsistence Populations, chronic exposure
A43: D09c | B43: Consumption of Contaminated Fish (Peak Exposure), Adult Male, acute exposure
A44: D09d | B44: Consumption of Contaminated Fish (Peak Exposure), Subsistence Populations, acute exposure
A45: D10 | B45: Swimming Exposure Assessment Using Zero-Order Absorption, Adult Female, Surface Area, Whole body, for 60 minute(s)
A46: E01 | B46: Summary of Worker Exposure Assessments
A47: E02 | B47: Summary of Worker Hazard Quotients (Toxicity)
A48: E03 | B48: Summary of Exposure Assessments for the General Public
A49: E04 | B49: Summary of Hazard Quotients (Toxicity) for the General Public
A50: F01 | B50: Consumption of Fixed Amount of Compound by a Mammal, large, acute exposure
A51: F02 | B51: Consumption of Fixed Amount of Compound by a Bird, large, acute exposure
A52: F03 | B52: Consumption of Fixed Amount of Compound by a Mammal, small, acute exposure
A53: F04 | B53: Consumption of Fixed Amount of Compound by a Bird, small, acute exposure
A54: F05a | B54: Consumption of contaminated water by Mammal, small, Accidental Spill
A55: F05b | B55: Consumption of contaminated water by Mammal, small, Peak Concentrations
A56: F05c | B56: Consumption of contaminated water by Mammal, small, Longer-term Concentrations
A57: F06a | B57: Consumption of contaminated water by Bird, small, Accidental Spill
A58: F06b | B58: Consumption of contaminated water by Bird, small, Peak Concentrations
A59: F06c | B59: Consumption of contaminated water by Bird, small, Longer-term Concentrations
A60: F07a | B60: Acute scenario for the consumption of Contaminated Fish (Accidental Spill) by Mammal, carnivorous
A61: F07b | B61: Acute scenario for the consumption of Contaminated Fish (Peak) by Mammal, carnivorous
A62: F07c | B62: Chronic scenario for the consumption of Contaminated Fish (Longer-term) by Mammal, carnivorous
A63: F08a | B63: Acute scenario for the consumption of Contaminated Fish (Accidental Spill) by Bird, piscivorous
A64: F08b | B64: Acute scenario for the consumption of Contaminated Fish (Peak) by Bird, piscivorous
A65: F08c | B65: Chronic scenario for the consumption of Contaminated Fish (Longer-term) by Bird, piscivorous
A66: F09a | B66: Direct spray of Mammal, small assuming first-order absorption kinetics with spray of 0.5 of the body surface
A67: F09b | B67: Direct spray of Mammal, small assuming 100% absorption
A68: G01 | B68: Summary of Exposure Assessments for the Terrestrial Animals
A69: G02 | B69: Summary of Hazard Quotients (Toxicity) for the Terrestrial Animals
A70: G03 | B70: Worksheet G03: Summary of Hazard Quotients for Aquatic Species
A71: G04 | B71: Summary of Exposure Assessment and Risk Characterization for Terrestrial Plants from Drift
A72: References | B72: References cited in workbook

Sheet A01
A1: Program Data: Application rates, application volumns, and concentrations in field solutions
A2: Parameter/Assumption | B2: Code / Range | C2: Equation/ Value | D2: Units | E2: Reference/ Equation
A3: Application Rate for Formulation | B3: ApRtForm | C3: 0.5 | D3: lb formulation/acre | E3: Program Input | J3: Select Formulation
A4: Stump Application Rate | B4: StumpRate | C4: 0.000525 | D4: lb B/ft2 | E4: Program Input | J4: Select Application Type
A5: Boron Equivalents for Formulation | B5: B Equiv | C5: 0.21 | D5: Proportion
A6: Application Rate | B6: ApRt | C6: =C3*C5 -> 0.105 | D6: lb boron/acre | E6: Eq
A7: Application Volume | B7: ApVol
B8: Central | C8: 1 | D8: gal/acre | E8: Program Input
B9: Upper | C9: 1 | E9: Program Input
B10: Lower | C10: 1 | E10: Program Input
A11: Concentration in field solution (lb/gal) | B11: Concppg | C11: ApRt (lb/acre) / ApVol (gal/acre) | E11: Note 1
B12: Central | C12: =IF(C8>0, C$6/C8, "N/A") -> 0.105 | D12: lb/gal | E12: Eq
B13: Lower | C13: =IF(C9>0, C$6/C9, "N/A") -> 0.105 | E13: Eq
B14: Upper | C14: =IF(C10>0, C$6/C10, "N/A") -> 0.105 | E14: Eq
A15: Conversion Factor for lbs/gal to mg/mL | B15: CnvF | C15: 119.8 | D15: mg/mL per lb/gal
A16: Concentration in field solution (mg/mL) | B16: FldConc | C16: Concppg * CnvF | E16: Note 2
B17: Central | C17: =IF(C8>0, DigitRound( C12*C$15, C$20), "NA") -> 13 | D17: mg/mL | E17: Eq
B18: Lower | C18: =IF(C9>0, DigitRound( C13*C$15, C$20), "NA") -> 13 | E18: Eq
B19: Upper | C19: =IF(C10>0, DigitRound( C14*C$15, C$20), "NA") -> 13 | E19: Eq
A20: Number of significant figures used for FldConc. | B20: NSig | C20: 2
A23: Number of Square Feet of Stump that a worker will treat per day. | B23: StumpFt
B24: Central | C24: 500 | E24: Program Input
B25: Lower | C25: 200 | E25: Program Input
B26: Upper | C26: 1000 | E26: Program Input
A27: Number of Applications | B27: nApps | C27: 1 | D27: Unitless | E27: Program Input
A28: Application Interval | B28: ApIntv | C28: 1 | D28: Days | E28: Program Input
A29: Standard Values/Options for Scenarios
A30: Surface area of pond for spill | B30: PondSA_M | C30: 1000 | D30: Sq. Meters | E30: Risk assessment.
A31: Pond depth | B31: PondDepthM | C31: 1 | D31: Meters | E31: Risk assessment.
A32: Stream flow rate for drift scenario | B32: StreamFlowLD | C32: 710000 | D32: Liters/day | E32: Risk assessment.
A33: Stream length for drift scenario | B33: StreamLengthFt | C33: 1038 | D33: Feet | E33: Risk assessment.
A34: Stream width for drift scenario | B34: StreamWidthFt | C34: 6 | D34: Feet | E34: Risk assessment.
A35: Duration for longer-term exposures | B35: SubChDays | C35: 90 | D35: Days | E35: Risk assessment.
A36: Duration for swimming scenarios | B36: SwimMin | C36: 60 | D36: Minutes | E36: Risk assessment.
A37: Protection factor for workers based on PPE. | B37: WrkProtectFact
B38: Central | C38: 0 | E38: Risk assessment.
B39: Lower | C39: 0
B40: Upper | C40: 0
A41: Toxic Equivalency Factor for formulation | B41: TEF
B42: Central | C42: 1 | E42: Risk assessment.
B43: Lower | C43: 1
B44: Upper | C44: 1
A45: Acres treated per day by worker | B45: WrkAcresPerDy
B46: Central | C46: 2.3 | D46: Acres/Day | E46: Risk assessment.
B47: Lower | C47: 2.3
B48: Upper | C48: 2.3
A49: Worker Exposure Rate | B49: WrkExpRate
B50: Central | C50: 6e-05 | D50: Mg/kg bw per lb | E50: Risk assessment.
B51: Lower | C51: 1e-05
B52: Upper | C52: 0.0004
A53: Amount spilled into ponds | B53: PondSpillAmntLbs
B54: Central | C54: 1.4 | D54: Lbs | E54: Risk assessment.
B55: Lower | C55: 0.7
B56: Upper | C56: 2.8
A57: Number of acre equivalents spilled into a pond. | B57: SpillAcres
B58: Central | C58: 5 | D58: Acres | E58: Risk assessment.
B59: Lower | C59: 1
B60: Upper | C60: 10

Sheet A02a
A1: General reference values and exposure factors used in worksheets.
A3: Receptor | B3: Factor | C3: Value | D3: Units | E3: Reference | F3: Reference Note
A4: Adult Female | B4: Body weight | C4: 64 | D4: kg | E4: U.S. EPA/ORD 1985 | F4: page 5, Table 2-2
A5: Adult Female | B5: Surface Area, Feet and lower Legs | C5: 2915 | D5: cm2 | E5: U.S. EPA/ORD 1992 | F5: p. 8-11, Table 8-3, total for feet and lower legs
A6: Adult Female | B6: Surface Area, Wearing shorts and T-shirt | C6: 5300 | D6: cm2 | E6: U.S. EPA/ORD 1992 | F6: p. 8-11, Table 8-3, total for arms, hands, lower legs, and feet.
A7: Adult Female | B7: Surface Area, Whole body | C7: 16900 | D7: cm2 | E7: U.S. EPA/ORD 1997 | F7: p. 6-13, Table 6-3, whole body, 50th percentile
A8: Adult Male | B8: Body weight | C8: 70 | D8: kg | E8: ICRP 1975 | F8: p. 13.
A9: Subsistence Populations | B9: Body weight | C9: 70 | D9: kg | E9: ICRP 1975 | F9: p. 13
A10: Worker, Aerial Spray | B10: Absorbed dose rate, central estimate | C10: 3e-05 | D10: (mg/kg bw)/(lbs handled per day) | E10: SERA 2007 | F10: Acres treated per hour
A11: Worker, Aerial Spray | B11: Absorbed dose rate, lower range | C11: 1e-06 | D11: (mg/kg bw)/(lbs handled per day) | E11: SERA 2007 | F11: Acres treated per hour
A12: Worker, Aerial Spray | B12: Absorbed dose rate, upper range | C12: 0.0001 | D12: (mg/kg bw)/(lbs handled per day) | E12: SERA 2007 | F12: Acres treated per hour
A13: Worker, Aerial Spray | B13: Hours of application per day, central estimate | C13: 7 | D13: Hours per day | E13: USDA 1989a | F13: N/A
A14: Worker, Aerial Spray | B14: Hours of application per day, lower range | C14: 6 | D14: Hours per day | E14: USDA 1989a | F14: N/A
A15: Worker, Aerial Spray | B15: Hours of application per day, upper range | C15: 8 | D15: Hours per day | E15: USDA 1989a | F15: N/A
A16: Worker, Aerial Spray | B16: Acres treated per hour, central estimate | C16: 70 | D16: acres/hour | E16: USDA 1989a | F16: Acres treated per hour
A17: Worker, Aerial Spray | B17: Acres treated per hour, lower range | C17: 40 | D17: acres/hour | E17: USDA 1989a | F17: Acres treated per hour
A18: Worker, Aerial Spray | B18: Acres treated per hour, upper range | C18: 100 | D18: acres/hour | E18: USDA 1989a | F18: Acres treated per hour
A19: Worker, Backpack | B19: Absorbed dose rate, central estimate | C19: 0.003 | D19: (mg/kg bw)/(lbs handled per day) | E19: SERA 2007 | F19: Acres treated per hour
A20: Worker, Backpack | B20: Absorbed dose rate, lower range | C20: 0.0003 | D20: (mg/kg bw)/(lbs handled per day) | E20: SERA 2007 | F20: Acres treated per hour
A21: Worker, Backpack | B21: Absorbed dose rate, upper range | C21: 0.01 | D21: (mg/kg bw)/(lbs handled per day) | E21: SERA 2007 | F21: Acres treated per hour
A22: Worker, Backpack | B22: Hours of application per day, central estimate | C22: 7 | D22: Hours per day | E22: USDA 1989a | F22: N/A
A23: Worker, Backpack | B23: Hours of application per day, lower range | C23: 6 | D23: Hours per day | E23: USDA 1989a | F23: N/A
A24: Worker, Backpack | B24: Hours of application per day, upper range | C24: 8 | D24: Hours per day | E24: USDA 1989a | F24: N/A
A25: Worker, Backpack | B25: Acres treated per hour, central estimate | C25: 0.625 | D25: acres/hour | E25: USDA 1989a | F25: Acres treated per hour
A26: Worker, Backpack | B26: Acres treated per hour, lower range | C26: 0.25 | D26: acres/hour | E26: USDA 1989a | F26: Acres treated per hour
A27: Worker, Backpack | B27: Acres treated per hour, upper range | C27: 1 | D27: acres/hour | E27: USDA 1989a | F27: Acres treated per hour
A28: Child | B28: Body weight | C28: 13.3 | D28: kg | E28: U.S. EPA/ORD 1996 | F28: p. 7-1, Table 7-2
A29: Child | B29: Surface Area, Whole body | C29: 6030 | D29: cm2 | E29: U.S. EPA/ORD 1996 | F29: p. 6-15, Table 6-6, 50th percentile.
A30: Worker, Ground Spray | B30: Absorbed dose rate, central estimate | C30: 0.0002 | D30: (mg/kg bw)/(lbs handled per day) | E30: SERA 2007 | F30: Acres treated per hour
A31: Worker, Ground Spray | B31: Absorbed dose rate, lower range | C31: 1e-05 | D31: (mg/kg bw)/(lbs handled per day) | E31: SERA 2007 | F31: Acres treated per hour
A32: Worker, Ground Spray | B32: Absorbed dose rate, upper range | C32: 0.0009 | D32: (mg/kg bw)/(lbs handled per day) | E32: SERA 2007 | F32: Acres treated per hour
A33: Worker, Ground Spray | B33: Hours of application per day, central estimate | C33: 7 | D33: Hours per day | E33: USDA 1989a | F33: N/A
A34: Worker, Ground Spray | B34: Hours of application per day, lower range | C34: 6 | D34: Hours per day | E34: USDA 1989a | F34: N/A
A35: Worker, Ground Spray | B35: Hours of application per day, upper range | C35: 8 | D35: Hours per day | E35: USDA 1989a | F35: N/A
A36: Worker, Ground Spray | B36: Acres treated per hour, central estimate | C36: 16 | D36: acres/hour | E36: USDA 1989a | F36: Acres treated per hour
A37: Worker, Ground Spray | B37: Acres treated per hour, lower range | C37: 11 | D37: acres/hour | E37: USDA 1989a | F37: Acres treated per hour
A38: Worker, Ground Spray | B38: Acres treated per hour, upper range | C38: 21 | D38: acres/hour | E38: USDA 1989a | F38: Acres treated per hour
A39: Worker | B39: Body weight | C39: 70 | D39: kg | E39: ICRP 1975 | F39: p. 13
A40: Worker | B40: Surface Area, Hands | C40: 840 | D40: cm2 | E40: U.S. EPA/ORD 1992 | F40: p. 8-11
A41: Worker | B41: Surface Area, Lower legs | C41: 2070 | D41: cm2 | E41: U.S. EPA/ORD 1992 | F41: p. 8-11

Sheet A02b
A1: General reference values and exposure factors used in worksheets.
A3: Receptor | B3: Factor | C3: Value | D3: Units | E3: Reference | F3: Reference Note
A4: Amphibian | B4: Kilocalories, alpha parameter for allometric equation | C4: 0.054 | D4: BW(g),Kcal (kcal/day) | E4: U.S. EPA/ORD 1993 | F4: p. 3-7, equation 3-14
A5: Amphibian | B5: Kilocalories, beta parameter for allometric equation | C5: 0.799 | D5: BW(g),Kcal (kcal/day) | E5: U.S. EPA/ORD 1993 | F5: p. 3-7, equation 3-14
A6: Amphibian, bull frog | B6: Food consumption, alpha parameter for allometric equation | C6: 1.09 | D6: BW(g),FC(g) | E6: SERA 2010 | F6: Figure 15
A7: Amphibian, bull frog | B7: Food consumption, beta parameter for allometric equation | C7: 0.1723 | D7: BW(g),FC(g) | E7: SERA 2010 | F7: Figure 15
A8: Bird, NOS | B8: Food consumption, alpha parameter for allometric equation | C8: 0.648 | D8: BW(g),FC(g) | E8: U.S. EPA/ORD 1993 | F8: Eq. 3-3, p. 3-4, all birds
A9: Bird, NOS | B9: Food consumption, beta parameter for allometric equation | C9: 0.651 | D9: BW(g),FC(g) | E9: U.S. EPA/ORD 1993 | F9: Eq. 3-3, p. 3-4, all birds
A10: Bird, carnivorous | B10: Body weight | C10: 0.64 | D10: kg | E10: Dunning 1993 | F10: p. 97. Female Spotted Owl (Strix occidentalis). Range of 548 to 760 g.
A11: Bird, carnivorous | B11: Kilocalories, alpha parameter for allometric equation | C11: 1.146 | D11: BW(g),KCal(kcal/day) | E11: U.S. EPA/ORD 1993 | F11: Eq. 3-37, nonpasserines
A12: Bird, carnivorous | B12: Kilocalories, beta parameter for allometric equation | C12: 0.749 | D12: BW(g),KCal(kcal/day) | E12: U.S. EPA/ORD 1993 | F12: Eq. 3-37, nonpasserines
A13: Bird, carnivorous | B13: Water consumption, alpha parameter for allometric equation | C13: 0.059 | D13: BW(kg), WC(L) | E13: U.S. EPA/ORD 1993 | F13: Eq. 3-15, p. 3-8
A14: Bird, carnivorous | B14: Water consumption, beta parameter for allometric equation | C14: 0.67 | D14: BW(kg), WC(L) | E14: U.S. EPA/ORD 1993 | F14: Eq. 3-15, p. 3-8
A15: Bird, large | B15: Body weight | C15: 4 | D15: kg | E15: Default | F15: Canada goose
A16: Bird, large | B16: Kilocalories, alpha parameter for allometric equation | C16: 1.146 | D16: BW(g),KCal(kcal/day) | E16: U.S. EPA/ORD 1993 | F16: Eq. 3-37, non-passerines
A17: Bird, large | B17: Kilocalories, beta parameter for allometric equation | C17: 0.749 | D17: BW(g),KCal(kcal/day) | E17: U.S. EPA/ORD 1993 | F17: Eq. 3-37, non-passerines
A18: Bird, large | B18: Water consumption, alpha parameter for allometric equation | C18: 0.059 | D18: BW(kg), WC(L) | E18: U.S. EPA/ORD 1993 | F18: Eq. 3-15, p. 3-8
A19: Bird, large | B19: Water consumption, beta parameter for allometric equation | C19: 0.67 | D19: BW(kg), WC(L) | E19: U.S. EPA/ORD 1993 | F19: Eq. 3-15, p. 3-8
A20: Bird, non-Passerine | B20: Food consumption, alpha parameter for allometric equation | C20: 0.301 | D20: BW(g),FC(g) | E20: U.S. EPA/ORD 1993 | F20: Eq. 3-5, p. 3-5, non-passerines
A21: Bird, non-Passerine | B21: Food consumption, beta parameter for allometric equation | C21: 0.751 | D21: BW(g),FC(g) | E21: U.S. EPA/ORD 1993 | F21: Eq. 3-5, p. 3-5, non-passerines
A22: Bird, Passerine | B22: Food consumption, alpha parameter for allometric equation | C22: 0.398 | D22: BW(g),FC(g) | E22: U.S. EPA/ORD 1993 | F22: Eq. 3-4, p. 3-4, passerines
A23: Bird, Passerine | B23: Food consumption, beta parameter for allometric equation | C23: 0.85 | D23: BW(g),FC(g) | E23: U.S. EPA/ORD 1993 | F23: Eq. 3-4, p. 3-4, passerines
A24: Bird, piscivorous | B24: Body weight | C24: 2.4 | D24: kg | E24: Sibley 2000 | F24: p. 60. Great Blue Heron
A25: Bird, piscivorous | B25: Food consumption, alpha parameter for allometric equation | C25: 0.495 | D25: BW(g), FC(g) | E25: U.S. EPA/ORD 1993 | F25: Eq. 3-6, p. 3-5, seabird
A26: Bird, piscivorous | B26: Food consumption, beta parameter for allometric equation | C26: 0.704 | D26: BW(g), FC(g) | E26: U.S. EPA/ORD 1993 | F26: Eq. 3-6, p. 3-5, seabird
A27: Bird, piscivorous | B27: Kilocalories, alpha parameter for allometric equation | C27: 1.916 | D27: BW(g),KCal(kcal/day) | E27: U.S. EPA/ORD 1993 | F27: Eq. 3-38, p. 3-23, seabird
A28: Bird, piscivorous | B28: Kilocalories, beta parameter for allometric equation | C28: 0.704 | D28: BW(g),KCal(kcal/day) | E28: U.S. EPA/ORD 1993 | F28: Eq. 3-38, p. 3-23, seabird
A29: Bird, piscivorous | B29: Water consumption, alpha parameter for allometric equation | C29: 0.059 | D29: BW(kg), WC(L) | E29: U.S. EPA/ORD 1993 | F29: Eq. 3-15, p. 3-8
A30: Bird, piscivorous | B30: Water consumption, beta parameter for allometric equation | C30: 0.67 | D30: BW(kg), WC(L) | E30: U.S. EPA/ORD 1993 | F30: Eq. 3-15, p. 3-8
A31: Bird, small | B31: Body weight | C31: 0.01 | D31: kg | E31: Default | F31: N/A
A32: Bird, small | B32: Kilocalories, alpha parameter for allometric equation | C32: 3.12 | D32: BW(g),KCal(kcal/day) | E32: U.S. EPA/ORD 1993 | F32: Equation 3-36, passerines
A33: Bird, small | B33: Kilocalories, beta parameter for allometric equation | C33: 0.605 | D33: BW(g),KCal(kcal/day) | E33: U.S. EPA/ORD 1993 | F33: Equation 3-36, passerines
A34: Bird, small | B34: Water consumption, alpha parameter for allometric equation | C34: 0.059 | D34: BW(kg), WC(L) | E34: U.S. EPA/ORD 1993 | F34: Eq. 3-15, p. 3-8
A35: Bird, small | B35: Water consumption, beta parameter for allometric equation | C35: 0.67 | D35: BW(kg), WC(L) | E35: U.S. EPA/ORD 1993 | F35: Eq. 3-15, p. 3-8
A36: Honeybee | B36: Body weight | C36: 0.000116 | D36: kg | E36: Winston 1987 | F36: p. 54. Arithmetic average of range: 81 to 151 mg/bee.
A37: Honeybee | B37: Surface Area, Whole body | C37: 1.42 | D37: cm2 | E37: Humphery and Dykes 2008 | F37: Based on a bee with a body length of 1.44 cm.
A38: Mammal, Nos | B38: Food consumption, alpha parameter for allometric equation | C38: 0.235 | D38: BW(g),FC(g) | E38: U.S. EPA/ORD 1993 | F38: Eq. 3-7 ,p. 3-6, all mammals
A39: Mammal, Nos | B39: Food consumption, beta parameter for allometric equation | C39: 0.822 | D39: BW(g),FC(g) | E39: U.S. EPA/ORD 1993 | F39: Eq. 3-7 ,p. 3-6, all mammals
A40: Mammal, 400 g | B40: Body weight | C40: 0.4 | D40: kg | E40: Default | F40: N/A
A41: Mammal, 400 g | B41: Food consumption, alpha parameter for allometric equation | C41: 0.621 | D41: BW(g),FC(g) | E41: U.S. EPA/ORD 1993 | F41: Eq. 3-8, p. 3-6, equation for rodents
A42: Mammal, 400 g | B42: Food consumption, beta parameter for allometric equation | C42: 0.564 | D42: BW(g),FC(g) | E42: U.S. EPA/ORD 1993 | F42: Eq. 3-8, p. 3-6, equation for rodents
A43: Mammal, 400 g | B43: Kilocalories, alpha parameter for allometric equation | C43: 2.514 | D43: BW(g),KCal(kcal/day) | E43: U.S. EPA/ORD 1993 | F43: Equation 3-48, rodent
A44: Mammal, 400 g | B44: Kilocalories, beta parameter for allometric equation | C44: 0.507 | D44: BW(g),KCal(kcal/day) | E44: U.S. EPA/ORD 1993 | F44: Equation 3-48, rodent
A45: Mammal, 400 g | B45: Water consumption, alpha parameter for allometric equation | C45: 0.099 | D45: BW(kg),WC(L) | E45: U.S. EPA/ORD 1993 | F45: Eq. 3-17, p. 3-10, all mammals
A46: Mammal, 400 g | B46: Water consumption, beta parameter for allometric equation | C46: 0.9 | D46: BW(kg),WC(L) | E46: U.S. EPA/ORD 1993 | F46: Eq. 3-17, p. 3-10, all mammals
A47: Mammal, carnivorous | B47: Body weight | C47: 5 | D47: kg | E47: U.S. EPA/ORD 1993 | F47: p. 2-221. Central value for red fox with a range of 3 to 7 kg.
A48: Mammal, carnivorous | B48: Kilocalories, alpha parameter for allometric equation | C48: 0.6167 | D48: BW(g),KCal(kcal/day) | E48: U.S. EPA/ORD 1993 | F48: Equation 3-47, non-herbivore
A49: Mammal, carnivorous | B49: Kilocalories, beta parameter for allometric equation | C49: 0.862 | D49: BW(g),KCal(kcal/day) | E49: U.S. EPA/ORD 1993 | F49: Equation 3-47, non-herbivore
A50: Mammal, carnivorous | B50: Water consumption, alpha parameter for allometric equation | C50: 0.099 | D50: BW(kg),WC(L) | E50: U.S. EPA/ORD 1993 | F50: Eq. 3-17, p. 3-10, all mammals
A51: Mammal, carnivorous | B51: Water consumption, beta parameter for allometric equation | C51: 0.9 | D51: BW(kg), WC(L) | E51: U.S. EPA/ORD 1993 | F51: Eq. 3-17, p. 3-10, all mammals
A52: Mammal, large carnivorous | B52: Body weight | C52: 70 | D52: kg | E52: Reid 2006 | F52: pp. 451-453. Black bear or small grizzly.
A53: Mammal, large carnivorous | B53: Kilocalories, alpha parameter for allometric equation | C53: 0.6167 | D53: BW(g),KCal(kcal/day) | E53: U.S. EPA/ORD 1993 | F53: Equation 3-47, non-herbivore
A54: Mammal, large carnivorous | B54: Kilocalories, beta parameter for allometric equation | C54: 0.862 | D54: BW(g),KCal(kcal/day) | E54: U.S. EPA/ORD 1993 | F54: Equation 3-47, non-herbivore
A55: Mammal, large carnivorous | B55: Water consumption, alpha parameter for allometric equation | C55: 0.099 | D55: BW(kg),WC(L) | E55: U.S. EPA/ORD 1993 | F55: Eq. 3-17, p. 3-10, all mammals
A56: Mammal, large carnivorous | B56: Water consumption, beta parameter for allometric equation | C56: 0.9 | D56: BW(kg), WC(L) | E56: U.S. EPA/ORD 1993 | F56: Eq. 3-17, p. 3-10, all mammals
A57: Mammal, herbivorous | B57: Food consumption, alpha parameter for allometric equation | C57: 0.577 | D57: BW(g),FC(g) | E57: U.S. EPA/ORD 1993 | F57: Eq. 3-9, p. 3-6, equation for herbivores
A58: Mammal, herbivorous | B58: Food consumption, beta parameter for allometric equation | C58: 0.727 | D58: BW(g),FC(g) | E58: U.S. EPA/ORD 1993 | F58: Eq. 3-9, p. 3-6, equation for herbivores
A59: Mammal, herbivorous | B59: Kilocalories, alpha parameter for allometric equation | C59: 1.518 | D59: BW(g),KCal(kcal/day) | E59: U.S. EPA/ORD 1993 | F59: Equation 3-46, herbivores
A60: Mammal, herbivorous | B60: Kilocalories, beta parameter for allometric equation | C60: 0.73 | D60: BW(g),KCal(kcal/day) | E60: U.S. EPA/ORD 1993 | F60: Equation 3-46, herbivores
A61: Mammal, large | B61: Body weight | C61: 70 | D61: kg | E61: Default | F61: N/A
A62: Mammal, large | B62: Kilocalories, alpha parameter for allometric equation | C62: 1.518 | D62: BW(g),KCal(kcal/day) | E62: U.S. EPA/ORD 1993 | F62: p. 3-6, Eq. 3-10, herbivores
A63: Mammal, large | B63: Kilocalories, beta parameter for allometric equation | C63: 0.73 | D63: BW(g),KCal(kcal/day) | E63: U.S. EPA/ORD 1993 | F63: p. 3-6, Eq. 3-10, herbivores
A64: Mammal, large | B64: Water consumption, alpha parameter for allometric equation | C64: 0.099 | D64: BW(kg),WC(L) | E64: U.S. EPA/ORD 1993 | F64: Eq. 3-17, p. 3-10, all mammals
A65: Mammal, large | B65: Water consumption, beta parameter for allometric equation | C65: 0.9 | D65: BW(kg), WC(L) | E65: U.S. EPA/ORD 1993 | F65: Eq. 3-17, p. 3-10, all mammals
A66: Mammal, rabbit | B66: Body weight | C66: 1.3 | D66: kg | E66: Default | F66: N/A
A67: Mammal, rabbit | B67: Surface Area, alpha parameter for allometric equation | C67: 0.11 | D67: BW(kg),SA(m2) | E67: U.S. EPA/ORD 1993 | F67: p. 3-14, Eq. 3-22, for all mammals
A68: Mammal, rabbit | B68: Surface Area, beta parameter for allometric equation | C68: 0.65 | D68: BW(kg),SA(m2) | E68: U.S. EPA/ORD 1993 | F68: p. 3-14, Eq. 3-22, for all mammals
A69: Mammal, rodent | B69: Food consumption, alpha parameter for allometric equation | C69: 0.621 | D69: BW(g),FC(g) | E69: U.S. EPA/ORD 1993 | F69: Eq. 3-8, p. 3-6, equation for rodents
A70: Mammal, rodent | B70: Food consumption, beta parameter for allometric equation | C70: 0.584 | D70: BW(g),FC(g) | E70: U.S. EPA/ORD 1993 | F70: Eq. 3-8,p. 3-6, equation for rodents
A71: Mammal, small | B71: Body weight | C71: 0.02 | D71: kg | E71: Default | F71: N/A
A72: Mammal, small | B72: Caloric content (wet weight) | C72: 1.7 | D72: kcal/g (wet weight) | E72: U.S. EPA/ORD 1993 | F72: Table 4-1, p. 4-13. Value for small mammals. Wet weight.
A73: Mammal, small | B73: Food consumption, alpha parameter for allometric equation | C73: 0.621 | D73: BW(g),FC(g) | E73: U.S. EPA/ORD 1993 | F73: Eq. 3-8, p. 3-6, equation for rodents
A74: Mammal, small | B74: Food consumption, beta parameter for allometric equation | C74: 0.564 | D74: BW(g),FC(g) | E74: U.S. EPA/ORD 1993 | F74: Eq. 3-8, p. 3-6, equation for rodents
A75: Mammal, small | B75: Kilocalories, alpha parameter for allometric equation | C75: 2.514 | D75: BW(g),KCal(kcal/day) | E75: U.S. EPA/ORD 1993 | F75: Equation 3-48, rodent
A76: Mammal, small | B76: Kilocalories, beta parameter for allometric equation | C76: 0.507 | D76: BW(g),KCal(kcal/day) | E76: U.S. EPA/ORD 1993 | F76: Equation 3-48, rodent
A77: Mammal, small | B77: Surface Area, alpha parameter for allometric equation | C77: 0.11 | D77: BW(kg),SA(m2) | E77: U.S. EPA/ORD 1993 | F77: p. 3-14, Eq. 3-22, for all mammals
A78: Mammal, small | B78: Surface Area, beta parameter for allometric equation | C78: 0.65 | D78: BW(kg),SA(m2) | E78: U.S. EPA/ORD 1993 | F78: p. 3-14, Eq. 3-22, for all mammals
A79: Mammal, small | B79: Water consumption, alpha parameter for allometric equation | C79: 0.099 | D79: BW(kg),WC(L) | E79: U.S. EPA/ORD 1993 | F79: Eq. 3-17, p. 3-10, all mammals
A80: Mammal, small | B80: Water consumption, beta parameter for allometric equation | C80: 0.9 | D80: BW(kg),WC(L) | E80: U.S. EPA/ORD 1993 | F80: Eq. 3-17, p. 3-10, all mammals

Sheet A02c
A1: General reference values and exposure factors used in worksheets.
A3: Receptor | B3: Factor | C3: Value | D3: Units | E3: Reference | F3: Reference Note
A4: Small Insects | B4: Caloric content (wet weight) | C4: 1.5 | D4: kcal/g (wet weight) | E4: U.S. EPA/ORD 1993 | F4: Table 4-1, p. 4-13. Value for beetles. Wet weight
A5: Fish | B5: Caloric content (wet weight) | C5: 1.2 | D5: kcal/g (wet weight) | E5: U.S. EPA/ORD 1993 | F5: Table 4-1, p. 4-13. Value for bony fish. Wet weight
A6: Vegetation | B6: Caloric content (dry weight) | C6: 2.26 | D6: kcal/g | E6: U.S. EPA/ORD 1993 | F6: p. 3-5, Table 3-1
A7: Vegetation | B7: Water content (proportion) | C7: 0.85 | D7: unitless | E7: U.S. EPA/ORD 1993 | F7: p. 4-14
A8: VegRR | B8: Broadleaf/forage plants and small insects, central estimate | C8: 45 | D8: mg chem/kg veg | E8: Fletcher et al. 1994 | F8: Broadleaf/forage plants and small insects
A9: VegRR | B9: Broadleaf/forage plants and small insects, upper range | C9: 135 | D9: mg chem/kg veg | E9: Fletcher et al. 1994 | F9: Broadleaf/forage plants and small insects
A10: VegRR | B10: Fruits, pods, seeds, and large insects, central estimate | C10: 7 | D10: mg chem/kg veg | E10: Fletcher et al. 1994 | F10: Fruits, pods, seeds, and large insects
A11: VegRR | B11: Fruits, pods, seeds, and large insects, upper range | C11: 15 | D11: mg chem/kg veg | E11: Fletcher et al. 1994 | F11: Fruits, pods, seeds, and large insects
A12: VegRR | B12: Broadleaf plants and small insects, granular applications, central estimate | C12: 1.8 | D12: mg chem/kg veg | E12: SERA 2005 | F12: Broadleaf forage plants and contaminated insects after granular application
A13: VegRR | B13: Broadleaf plants and small insects, granular applications, upper range | C13: 5.4 | D13: mg chem/kg veg | E13: SERA 2005 | F13: Broadleaf forage plants and contaminated insects after granular application
A14: VegRR | B14: Fruits, granular applications, central estimate | C14: 0.28 | D14: mg chem/kg veg | E14: SERA 2005 | F14: Fruit after granular application
A15: VegRR | B15: Fruits, granular applications, upper range | C15: 0.6 | D15: mg chem/kg veg | E15: SERA 2005 | F15: Fruit after granular application
A16: VegRR | B16: Short grass, granular applications, lower range | C16: 1.2 | D16: mg chem/kg veg | E16: SERA 2005 | F16: Short grass after granular application
A17: VegRR | B17: Short grass, granular applications, upper range | C17: 9.6 | D17: mg chem/kg veg | E17: SERA 2005 | F17: Short grass after granular application
A18: VegRR | B18: Tall grass, granular applications, central estimate | C18: 1.44 | D18: mg chem/kg veg | E18: SERA 2005 | F18: Tall grass after granular application
A19: VegRR | B19: Tall grass, granular applications, upper range | C19: 4.4 | D19: mg chem/kg veg | E19: SERA 2005 | F19: Tall grass after granular application
A20: VegRR | B20: Short grass, central estimate | C20: 85 | D20: mg chem/kg veg | E20: Fletcher et al. 1994 | F20: Short grass
A21: VegRR | B21: Short grass, lower range | C21: 30 | D21: mg chem/kg veg | E21: SERA 2007 | F21: Short grass
A22: VegRR | B22: Short grass, upper range | C22: 240 | D22: mg chem/kg veg | E22: Fletcher et al. 1994 | F22: Short grass
A23: VegRR | B23: Tall grass, central estimate | C23: 36 | D23: mg chem/kg veg | E23: Fletcher et al. 1994 | F23: Tall grass
A24: VegRR | B24: Tall grass, upper range | C24: 110 | D24: mg chem/kg veg | E24: Fletcher et al. 1994 | F24: Tall grass

Sheet A02d
A1: General reference values and exposure factors used in worksheets.
A3: Receptor | B3: Factor | C3: Value | D3: Units | E3: Reference | F3: Reference Note
A4: Conversion Factors | B4: acrefoot2gal | C4: 325900 | D4: gal/acre-foot | E4: Budavari 1989 | F4: N/A
A5: Conversion Factors | B5: liters per gal | C5: 3.785 | D5: L/gal | E5: Budavari 1989 | F5: N/A
A6: Conversion Factors | B6: pound per milligram | C6: 453600 | D6: mg/lb | E6: Budavari 1989 | F6: N/A
A7: Conversion Factors | B7: lbac2mgcm2 | C7: 0.01121 | D7: mg/cm2 per lb/acre | E7: Budavari 1989 | F7: N/A
A8: Conversion Factors | B8: lbac2ugcm2 | C8: 11.21 | D8: ug/cm2 per lb/acre | E8: Budavari 1989 | F8: N/A
A9: Conversion Factors | B9: conversion for milligrams to pounds | C9: 2.204e-06 | D9: lb/mg | E9: Budavari 1989 | F9: N/A
A10: Conversion Factors | B10: conversion for milliliters to gallons | C10: 3785 | D10: ml/gal | E10: Budavari 1989 | F10: N/A
A11: Misc | B11: Liquid adhering to skin | C11: 0.008 | D11: mL/cm2 | E11: Mason and Johnson 1987 | F11: Weight of liquid adhering to surface of skin after a spill
A12: Misc | B12: Dislodgeable residue as proportion | C12: 0.1 | D12: none | E12: Harris and Solomon 1992 | F12: Estimate of dislodgeable residue as a proportion of application rate shortly after application based on 2,4-D.
A13: Standard Pond | B13: Depth | C13: 1 | D13: m | E13: Default | F13: Depth of pond
A14: Standard Pond | B14: Surface Area | C14: 1000 | D14: m^2 | E14: Default | F14: Surface Area
A15: Standard Pond | B15: Volume of Spill | C15: 200 | D15: gallons | E15: Default | F15: Volume of spill
A16: VegRR | B16: Broadleaf/forage plants and small insects, lower range | C16: 15 | D16: mg chem/kg veg | E16: SERA 2007 | F16: Broadleaf/forage plants and small insects
A17: VegRR | B17: Fruits, pods, seeds, and large insects, lower range | C17: 3.2 | D17: mg chem/kg veg | E17: SERA 2007 | F17: Fruits, pods, seeds, and large insects
A18: VegRR | B18: Broadleaf plants and small insects, granular applications, lower range | C18: 0.6 | D18: mg chem/kg veg | E18: SERA 2007 | F18: Broadleaf/forage plants after granular application
A19: VegRR | B19: Fruits, granular applications, lower range | C19: 0.13 | D19: mg chem/kg veg | E19: SERA 2007 | F19: Fruit after granular application
A20: VegRR | B20: Short grass, granular applications, central estimate | C20: 3.4 | D20: mg chem/kg veg | E20: SERA 2005 | F20: Short grass after granular application
A21: VegRR | B21: Short grass, granular applications, lower range | C21: 1.2 | D21: mg chem/kg veg | E21: SERA 2007 | F21: Short grass after granular application
A22: VegRR | B22: Tall grass, granular applications, lower range | C22: 0.48 | D22: mg chem/kg veg | E22: SERA 2007 | F22: Tall grass after granular application
A23: VegRR | B23: Short grass, lower range | C23: 30 | D23: mg chem/kg veg | E23: Fletcher et al. 1994 | F23: Short grass
A24: VegRR | B24: Tall grass, lower range | C24: 12 | D24: mg chem/kg veg | E24: SERA 2007 | F24: Tall grass

Sheet A03
A1: Food items for terrestrial animals
A3: Receptor | B3: Consumer | C3: Qualifier | D3: Modifier | E3: Value | F3: Units | G3: Reference | H3: Reference Note
A4: Adult Female | B4: Fish | C4: Amount | D4: central estimate | E4: 0.01 | F4: kg/day | G4: U.S. EPA/ORD 1996 | H4: p. 10-51, average of means from four studies rounded to one significant place.
A5: Adult Female | B5: Fish | C5: Amount | D5: upper range | E5: 0.158 | F5: kg/day | G5: Ruffle et al. 1994 | H5: N/A
A6: Adult Female | B6: Fruit | C6: Proportion of body weight | D6: central estimate | E6: 0.00168 | F6: kg fruit/kg bw/day | G6: U.S. EPA/ORD 1996 | H6: Table 9-3, p. 9-11, mean value.
A7: Adult Female | B7: Fruit | C7: Proportion of body weight | D7: lower range | E7: 0.00168 | F7: kg fruit/kg bw/day | G7: U.S. EPA/ORD 1996 | H7: Table 9-3, p. 9-11. The 5th percentile is given as zero. For these worksheets, the central estimate is used for the lower bound.
A8: Adult Female | B8: Fruit | C8: Proportion of body weight | D8: upper range | E8: 0.01244 | F8: kg fruit/kg bw/day | G8: U.S. EPA/ORD 1996 | H8: Table 9-3, p. 9-11, 95th percentile value.
A9: Adult Female | B9: Vegetation, home grown | C9: Proportion of body weight | D9: central estimate | E9: 0.00076 | F9: kg veg/kg bw/day | G9: U.S. EPA/ORD 1996 | H9: Table 12-15, p. 9-14, mean for individuals between 20 and 39 years old.
A10: Adult Female | B10: Vegetation, home grown | C10: Proportion of body weight | D10: lower range | E10: 8e-05 | F10: kg veg/kg bw/day | G10: U.S. EPA/ORD 1996 | H10: Table 12-15, p. 9-14, 5th percentile for individuals between 20 and 39 years old.
A11: Adult Female | B11: Vegetation, home grown | C11: Proportion of body weight | D11: upper range | E11: 0.00492 | F11: kg veg/kg bw/day | G11: U.S. EPA/ORD 1996 | H11: Table 12-15, p. 9-14, 95th percentile for individuals between 20 and 39 years old.
A12: Adult Female | B12: Vegetation | C12: Amount | D12: Extreme | E12: 0.454 | F12: kg food | G12: U.S. EPA/ORD 1996 | H12: 1 lb. The approximate mid range of the above typical and upper limits based on the 64 kg body weight.
A13: Adult Female | B13: Vegetation | C13: Proportion of body weight | D13: central estimate | E13: 0.0036 | F13: kg veg/kg bw/day | G13: U.S. EPA/ORD 1996 | H13: Table 9-12, p. 9-12, mean.
A14: Adult Female | B14: Vegetation | C14: Proportion of body weight | D14: lower range | E14: 0.00075 | F14: kg veg/kg bw/day | G14: U.S. EPA/ORD 1996 | H14: Table 9-12, p. 9-12, 5th percentile.
A15: Adult Female | B15: Vegetation | C15: Proportion of body weight | D15: upper range | E15: 0.01 | F15: kg veg/kg bw/day | G15: U.S. EPA/ORD 1996 | H15: Table 9-12, p. 9-12, 95th percentile.
A16: Adult Female | B16: Water | C16: Amount | D16: central estimate | E16: 2 | F16: L/day | G16: U.S. EPA/ORD 1996 | H16: p. 3-28, Table 3-30, midpoint of mean (1.4 L/day) and 90th percentile (2.4 L/day) rounded to one significant place.
A17: Adult Female | B17: Water | C17: Amount | D17: lower range | E17: 1.4 | F17: L/day | G17: U.S. EPA/ORD 1996 | H17: p. 3-28, Table 3-30, mean
A18: Adult Female | B18: Water | C18: Amount | D18: upper range | E18: 2.4 | F18: L/day | G18: U.S. EPA/ORD 1996 | H18: p. 3-28, Table 3-30, 90th percentile
A19: Adult Male | B19: Fish | C19: Amount | D19: central estimate | E19: 0.01 | F19: kg/day | G19: U.S. EPA/ORD 1996 | H19: p. 10-51, average of means from four studies rounded to one significant place.
A20: Adult Male | B20: Fish | C20: Amount | D20: upper range | E20: 0.158 | F20: kg/day | G20: Ruffle et al. 1994 | H20: N/A
A21: Adult Male | B21: Fruit | C21: Proportion of body weight | D21: central estimate | E21: 0.00168 | F21: unitless | G21: U.S. EPA/ORD 1996 | H21: Table 9-3, p. 9-11, mean value.
A22: Adult Male | B22: Fruit | C22: Proportion of body weight | D22: lower range | E22: 0.00168 | F22: unitless | G22: U.S. EPA/ORD 1996 | H22: Table 9-3, p. 9-11. The 5th percentile is given as zero. For these worksheets, the central estimate is used for the lower bound.
A23: Adult Male | B23: Fruit | C23: Proportion of body weight | D23: upper range | E23: 0.01244 | F23: unitless | G23: U.S. EPA/ORD 1996 | H23: Table 9-3, p. 9-11, 95th percentile value.
A24: Adult Male | B24: Vegetation, home grown | C24: Proportion of body weight | D24: central estimate | E24: 0.00076 | F24: unitless | G24: U.S. EPA/ORD 1996 | H24: Table 12-15, p. 9-14, mean for individuals between 20 and 39 years old.
A25: Adult Male | B25: Vegetation, home grown | C25: Proportion of body weight | D25: lower range | E25: 8e-05 | F25: unitless | G25: U.S. EPA/ORD 1996 | H25: Table 12-15, p. 9-14, 5th percentile for individuals between 20 and 39 years old.
A26: Adult Male | B26: Vegetation, home grown | C26: Proportion of body weight | D26: upper range | E26: 0.00492 | F26: unitless | G26: U.S. EPA/ORD 1996 | H26: Table 12-15, p. 9-14, 95th percentile for individuals between 20 and 39 years old.
A27: Adult Male | B27: Vegetation | C27: Amount | D27: Extreme | E27: 0.454 | F27: kg/day | G27: U.S. EPA/ORD 1996 | H27: 1 lb. The approximate mid range of the above typical and upper limits based on the 64 kg body weight.
A28: Adult Male | B28: Vegetation | C28: Proportion of body weight | D28: central estimate | E28: 0.0036 | F28: unitless | G28: U.S. EPA/ORD 1996 | H28: Table 9-12, p. 9-12, mean.
A29: Adult Male | B29: Vegetation | C29: Proportion of body weight | D29: lower range | E29: 0.00075 | F29: unitless | G29: U.S. EPA/ORD 1996 | H29: Table 9-12, p. 9-12, 5th percentile.
A30: Adult Male | B30: Vegetation | C30: Proportion of body weight | D30: upper range | E30: 0.01 | F30: unitless | G30: U.S. EPA/ORD 1996 | H30: Table 9-12, p. 9-12, 95th percentile.
A31: Adult Male | B31: Water | C31: Amount | D31: central estimate | E31: 2 | F31: L/day | G31: U.S. EPA/ORD 1996 | H31: p. 3-28, Table 3-30, midpoint of mean (1.4 L/day) and 90th percentile (2.4 L/day) rounded to one significant place.
A32: Adult Male | B32: Water | C32: Amount | D32: lower range | E32: 1.4 | F32: L/day | G32: U.S. EPA/ORD 1996 | H32: p. 3-28, Table 3-30, mean
A33: Adult Male | B33: Water | C33: Amount | D33: upper range | E33: 2.4 | F33: L/day | G33: U.S. EPA/ORD 1996 | H33: p. 3-28, Table 3-30, 90th percentile
A34: Subsistence Populations | B34: Fish | C34: Amount | D34: central estimate | E34: 0.081 | F34: kg/day | G34: U.S. EPA/ORD 1996 | H34: p. 10-51, median value of 94 individuals
A35: Subsistence Populations | B35: Fish | C35: Amount | D35: upper range | E35: 0.77 | F35: kg/day | G35: U.S. EPA/ORD 1993 | H35: p. 10-51, highest value of 94 individuals
A36: Bird, NOS | B36: Fish | C36: Kilocalories | D36: FoodVal | E36: 3.87 | F36: Kcal/gram (dw) | G36: U.S. EPA/ORD 1993 | H36: Table 3-1, p. 3-5
A37: Bird, NOS | B37: Fish | C37: Wat | D37: FoodVal | E37: 0.7 | F37: Unitless | G37: Ali et al. 2005 | H37: N/A
A38: Bird, NOS | B38: Fruit | C38: Kilocalories | D38: FoodVal | E38: 1.1 | F38: Kcal/gram (dw) | G38: U.S. EPA/ORD 1993 | H38: Gross caloric value of 2.2 kcal/g dw (U.S. EPA/ORD 1993, Table 4-2) with assim fact of 0.51
A39: Bird, NOS | B39: Fruit | C39: Wat | D39: FoodVal | E39: 0.77 | F39: Unitless | G39: U.S. EPA/ORD 1993 | H39: Table 4-2, p. 4-14
A40: Bird, NOS | B40: Insect | C40: Kilocalories | D40: FoodVal | E40: 4.3 | F40: Kcal/gram (dw) | G40: U.S. EPA/ORD 1993 | H40: Table 4-2, p. 4-14
A41: Bird, NOS | B41: Insect | C41: Wat | D41: FoodVal | E41: 0.7 | F41: Unitless | G41: Chapman 1998 | H41: Typrical range 60-80%
A42: Bird, NOS | B42: Vegetation | C42: Kilocalories | D42: FoodVal | E42: 2 | F42: Kcal/gram (dw) | G42: U.S. EPA/ORD 1993 | H42: gross caloric value of 4.2 kcal/g dw for dicot leaves (U.S. EPA/ORD 1993, Table 4-2) with assim fact of 0.47
A43: Bird, NOS | B43: Vegetation | C43: Wat | D43: FoodVal | E43: 0.85 | F43: Unitless | G43: U.S. EPA/ORD 1993 | H43: Table 4-2, p. 4-14
A44: Child | B44: Water | C44: Amount | D44: central estimate | E44: 1 | F44: L/day | G44: U.S. EPA/ORD 1996 | H44: p. 3-28, Table 3-30, midpoint of mean (0.61L/day) and 90th percentile (1.5 L/day) rounded to one significant place.
A45: Child | B45: Water | C45: Amount | D45: lower range | E45: 0.61 | F45: L/day | G45: U.S. EPA/ORD 1996 | H45: p. 3-28, Table 3-30, mean
A46: Child | B46: Water | C46: Amount | D46: upper range | E46: 1.5 | F46: L/day | G46: U.S. EPA/ORD 1996 | H46: p. 3-28, Table 3-30, 90th percentile
A47: Herbivorous Insect | B47: Broadleaf/Small Insects | C47: Proportion of body weight | D47: central estimate | E47: 1.3 | F47: kg food/kg bw/day | G47: Waldbauer 1968 | H47: N/A
A48: Herbivorous Insect | B48: Broadleaf/Small Insects | C48: Proportion of body weight | D48: lower range | E48: 0.6 | F48: kg food/kg bw/day | G48: Reichle et al. 1973 | H48: N/A
A49: Herbivorous Insect | B49: Broadleaf/Small Insects | C49: Proportion of body weight | D49: upper range | E49: 2.2 | F49: kg food/kg bw/day | G49: Waldbauer 1968 | H49: N/A
A50: Herbivorous Insect | B50: Fruit | C50: Proportion of body weight | D50: central estimate | E50: 1.3 | F50: kg food/kg bw/day | G50: Waldbauer 1968 | H50: N/A
A51: Herbivorous Insect | B51: Fruit | C51: Proportion of body weight | D51: lower range | E51: 0.6 | F51: kg food/kg bw/day | G51: Reichle et al. 1973 | H51: N/A
A52: Herbivorous Insect | B52: Fruit | C52: Proportion of body weight | D52: upper range | E52: 2.2 | F52: kg food/kg bw/day | G52: Waldbauer 1968 | H52: N/A
A53: Herbivorous Insect | B53: Short grass | C53: Proportion of body weight | D53: central estimate | E53: 1.3 | F53: kg food/kg bw/day | G53: Waldbauer 1968 | H53: N/A
A54: Herbivorous Insect | B54: Short grass | C54: Proportion of body weight | D54: lower range | E54: 0.6 | F54: kg food/kg bw/day | G54: Reichle et al. 1973 | H54: N/A
A55: Herbivorous Insect | B55: Short grass | C55: Proportion of body weight | D55: upper range | E55: 2.2 | F55: kg food/kg bw/day | G55: Waldbauer 1968 | H55: N/A
A56: Herbivorous Insect | B56: Tall Grass | C56: Proportion of body weight | D56: central estimate | E56: 1.3 | F56: kg food/kg bw/day | G56: Waldbauer 1968 | H56: N/A
A57: Herbivorous Insect | B57: Tall Grass | C57: Proportion of body weight | D57: lower range | E57: 0.6 | F57: kg food/kg bw/day | G57: Reichle et al. 1973 | H57: N/A
A58: Herbivorous Insect | B58: Tall Grass | C58: Proportion of body weight | D58: upper range | E58: 2.2 | F58: kg food/kg bw/day | G58: Waldbauer 1968 | H58: N/A
A59: Mammal, Nos | B59: Fish | C59: Kilocalories | D59: FoodVal | E59: 4.47 | F59: Kcal/gram (dw) | G59: U.S. EPA/ORD 1993 | H59: Table 3-1, p. 3-5
A60: Mammal, Nos | B60: Fish | C60: Wat | D60: FoodVal | E60: 0.7 | F60: Unitless | G60: Ali et al. 2005 | H60: N/A
A61: Mammal, Nos | B61: Fruit | C61: Kilocalories | D61: FoodVal | E61: 1.1 | F61: Kcal/gram (dw) | G61: U.S. EPA/ORD 1993 | H61: Gross caloric value of 2.2 kcal/g dw (U.S. EPA/ORD 1993, Table 4-2) with assim fact of 0.51
A62: Mammal, Nos | B62: Fruit | C62: Wat | D62: FoodVal | E62: 0.77 | F62: Unitless | G62: U.S. EPA/ORD 1993 | H62: Table 4-2, p. 4-14
A63: Mammal, Nos | B63: Insect | C63: Kilocalories | D63: FoodVal | E63: 4.47 | F63: Kcal/gram (dw) | G63: U.S. EPA/ORD 1993 | H63: Table 4-2, p. 4-14
A64: Mammal, Nos | B64: Insect | C64: Wat | D64: FoodVal | E64: 0.7 | F64: Unitless | G64: Chapman 1998 | H64: Typrical range 60-80%
A65: Mammal, Nos | B65: Vegetation | C65: Kilocalories | D65: FoodVal | E65: 2.26 | F65: Kcal/gram (dw) | G65: U.S. EPA/ORD 1993 | H65: Table 3-1, p. 3-5
A66: Mammal, Nos | B66: Vegetation | C66: Wat | D66: FoodVal | E66: 0.85 | F66: Unitless | G66: U.S. EPA/ORD 1993 | H66: Table 4-2, p. 4-14

Sheet B01
A1: Chemical and Physical Properties for Borates
A3: Property | B3: Receptor | C3: Value | D3: Units | E3: Document Reference
A4: Bioconcentration Factor (BCF), edible, acute | B4: N/A | C4: 1 | D4: L/kg fish | E4: Section 3.2.3.5
A5: Bioconcentration Factor (BCF), edible, chronic | B5: N/A | C5: 1 | D5: L/kg fish | E5: Section 3.2.3.5
A6: Bioconcentration Factor (BCF), whole fish, acute | B6: N/A | C6: 1 | D6: L/kg fish | E6: Section 3.2.3.5
A7: Bioconcentration Factor (BCF), whole fish, chronic | B7: N/A | C7: 1 | D7: L/kg fish | E7: Section 3.2.3.5
A8: Kow (Octanol-water partition coefficient) | B8: N/A | C8: 0.175 | D8: unitless | E8: Table 1
A9: Molecular weight | B9: N/A | C9: 61.8317 | D9: grams/mole | E9: Table 1
A10: Water Solubility | B10: N/A | C10: 54300 | D10: mg/L | E10: Table 12
A11: First order dermal absorption rate (ka), central estimate | B11: N/A | C11: 8.8e-05 | D11: per hour | E11: Section 3.2.2.2
A12: First order dermal absorption rate (ka), lower range | B12: N/A | C12: 2e-05 | D12: per hour | E12: Section 3.2.2.2
A13: First order dermal absorption rate (ka), upper range | B13: N/A | C13: 0.00016 | D13: per hour | E13: Section 3.2.2.2
A14: Dermal permeability (Kp), central estimate | B14: N/A | C14: 1.8e-07 | D14: cm/hour | E14: Section 3.2.2.2
A15: Dermal permeability (Kp), lower range | B15: N/A | C15: 4.1e-08 | D15: cm/hour | E15: Section 3.2.2.2
A16: Dermal permeability (Kp), upper range | B16: N/A | C16: 3.2e-07 | D16: cm/hour | E16: Section 3.2.2.2
A17: Halftime, central estimate | B17: Fruit | C17: 10000 | D17: days | E17: Placeholder. Not used.
A18: Halftime, lower range | B18: Fruit | C18: 10000 | D18: days | E18: Placeholder. Not used.
A19: Halftime, upper range | B19: Fruit | C19: 10000 | D19: days | E19: Placeholder. Not used.
A20: Halftime, central estimate | B20: Vegetation | C20: 10000 | D20: days | E20: Placeholder. Not used.
A21: Halftime, lower range | B21: Vegetation | C21: 10000 | D21: days | E21: Placeholder. Not used.
A22: Halftime, upper range | B22: Vegetation | C22: 10000 | D22: days | E22: Placeholder. Not used.

Sheet B02
A1: Toxicity values for Borates
A3: Receptor | B3: Receptor | C3: Qualifier | D3: Endpoint | E3: Value | F3: Units | G3: Document Reference
A4: Human | B4: acute | C4: N/A | D4: Reference Dose (RfD) | E4: 3.5 | F4: mg/kg bw | G4: Section 3.3.3.
A5: Human | B5: chronic | C5: N/A | D5: Reference Dose (RfD) | E5: 0.088 | F5: mg/kg bw/day | G5: Section 3.3.2.
A6: Mammal, Nos | B6: acute | C6: N/A | D6: NOAEL | E6: 350 | F6: mg/kg bw | G6: Section 4.3.2.1.
A7: Mammal, Nos | B7: chronic | C7: N/A | D7: NOAEL | E7: 8.8 | F7: mg/kg bw/day | G7: Section 4.3.2.1.
A8: Bird, NOS | B8: acute | C8: N/A | D8: NOAEL | E8: 113 | F8: mg/kg bw | G8: Section 4.3.2.2.
A9: Bird, NOS | B9: chronic | C9: N/A | D9: NOAEL | E9: 3.7 | F9: mg/kg bw/day | G9: Section 4.3.2.2.
A10: Honeybee | B10: acute | C10: N/A | D10: NOAEL | E10: 540 | F10: mg/kg bw | G10: Section 4.3.2.3.
A11: Fish | B11: acute | C11: sensitive species | D11: NOAEC* | E11: 3.53 | F11: mg/L | G11: Section 4.3.3.1.
A12: Fish | B12: acute | C12: tolerant species | D12: NOAEC | E12: 192 | F12: mg/L | G12: Section 4.3.3.1.
A13: Fish | B13: chronic | C13: sensitive species | D13: LC01 | E13: 1.1 | F13: mg/L | G13: Section 4.3.3.1.
A14: Fish | B14: chronic | C14: tolerant species | D14: NOAEC | E14: 7.4 | F14: mg/L | G14: Section 4.3.3.1.
A15: Amphibian | B15: acute | C15: sensitive species | D15: NOEC | E15: 5 | F15: mg/L | G15: Section 4.3.3.2
A16: Amphibian | B16: acute | C16: tolerant species | D16: NOEC | E16: 25 | F16: mg/L | G16: Section 4.3.3.2
A17: Amphibian | B17: chronic | C17: sensitive species | D17: NOEC | E17: 1.75 | F17: mg/L | G17: Section 4.3.3.2
A18: Amphibian | B18: chronic | C18: tolerant species | D18: NOEC | E18: 25 | F18: mg/L | G18: Section 4.3.3.2
A19: Aquatic invertebrate | B19: acute | C19: sensitive species | D19: NOAEC | E19: 0.7 | F19: mg/L | G19: Section 4.3.3.2.
A20: Aquatic invertebrate | B20: acute | C20: tolerant species | D20: NOAEC | E20: 10 | F20: mg/L | G20: Section 4.3.3.2.
A21: Aquatic invertebrate | B21: chronic | C21: sensitive species | D21: NOAEC | E21: 0.7 | F21: mg/L | G21: Section 4.3.3.2.
A22: Aquatic invertebrate | B22: chronic | C22: tolerant species | D22: NOAEC | E22: 10 | F22: mg/L | G22: Section 4.3.3.2.
A23: Algae | B23: N/A | C23: sensitive species | D23: NOAEC | E23: 1.6 | F23: mg/L | G23: Section 4.3.3.4.
A24: Algae | B24: N/A | C24: tolerant species | D24: NOAEC | E24: 47.1 | F24: mg/L | G24: Section 4.3.3.4.
A25: Macrophyte, aquatic | B25: N/A | C25: sensitive species | D25: NOEC | E25: 4 | F25: mg/L | G25: Section 4.3.3.4.
A26: Macrophyte, aquatic | B26: N/A | C26: tolerant species | D26: NOEC | E26: 11 | F26: mg/L | G26: Section 4.3.3.4.
A27: Aquatic Microorganism | B27: N/A | C27: sensitive species | D27: NOEC | E27: 0.3 | F27: mg/L | G27: Section 4.3.3.4.
A28: Aquatic Microorganism | B28: N/A | C28: tolerant species | D28: NOEC | E28: 291 | F28: mg/L | G28: Section 4.3.3.4.

Sheet B03a
A1: Calculation of Zero-Order Dermal Permeability Rate (Kp) in cm/hour
A2: Short Title | B2: Calculation of Kp | E2: ChemDrmKp
A3: Parameter/Assumption | B3: Code / Range | C3: Equation/ Value | D3: Units | E3: Reference/Designation
A4: Molecular weight | B4: MW | C4: ='B01'!$C$9 -> 61.8317 | D4: g/mole | E4: Table 1
A5: Ko/w | B5: Kow | C5: ='B01'!$C$8 -> 0.175 | D5: unitless | E5: Table 1
A6: Vector a[] | B6: a[1] | C6: 1
B7: a[2] | C7: =C4 -> 61.8317
B8: a[3] | C8: =LOG10(C5) -> -0.7569619513
A9: Transpose of a[] (a') | B9: =$C$6 -> 1 | C9: =$C$7 -> 61.8317 | D9: =$C$8 -> -0.7569619513
A10: X'X Cross Product Matrix | B10: X'X
B11: 0.055931 | C11: -9.41546e-05 | D11: -0.0103443
B12: -9.41546e-05 | C12: 5.978e-07 | D12: -2.22508e-05
B13: -0.0103443 | C13: -2.22508e-05 | D13: 0.00740677
A14: a'X'X a | B14: a'X'X a | C14: =MMULT(B9:D9,MMULT(B11:D13, C6:C8)) -> 0.06856036883
A15: Coefficients for model
A16: Intercept | B16: K0 | C16: -2.72576
A17: Coeff for MW | B17: K1 | C17: -0.006151
A18: Coeff for Log10(Kow) | B18: K2 | C18: 0.706648
A19: Standard deviation of model | B19: s | C19: 0.727129
A20: Critical value at 0.025 with 87 d.f. | B20: t0.025 | C20: 1.96
A21: Log10 of Estimated dermal permeability rate (Kp) | B21: Log(Kp) = | C21: K0 + K1 MW + K2 Log10(Kow)
B22: Central | C22: =$C$16 + ($C$17*$C$4) + ($C$18*LOG10($C$5)) -> -3.640992436 | E22: Eq
B23: Lower 95% CI | C23: =$C$22 - ($C$20 * $C$19 * ($C$14^0.5)) -> -4.014160191 | E23: Eq
B24: Upper 95% CI | C24: =$C$22 + ($C$20 * $C$19 * ($C$14^0.5)) -> -3.267824681 | E24: Eq
A25: Estimated dermal permeability rate (Kp) | B25: Kp = | C25: 10Log(Kp)
B26: Central | C26: =10^C22 -> 0.0002285638613 | D26: cm/hour | E26: Eq
B27: Lower 95% CI | C27: =10^C23 -> 9.679207701e-05 | E27: Eq
B28: Upper 95% CI | C28: =10^C24 -> 0.0005397284604 | E28: Eq

Sheet B03b
A1: Calculation of First-Order Dermal Absorption Rate
A2: Short Title | B2: Calculation of ka | E2: ChemDrmKa
A3: Parameter/Assumption | B3: Code / Range | C3: Equation/ Value | D3: Units | E3: Reference/Designation
A4: Molecular weight | B4: MW | C4: ='B01'!$C$9 -> 61.8317 | D4: g/mole | E4: Table 1
A5: Ko/w | B5: Kow | C5: ='B01'!$C$8 -> 0.175 | D5: unitless | E5: Table 1
A6: Vector a[] | B6: a[1] | C6: 1
B7: a[2] | C7: =C4 -> 61.8317
B8: a[3] | C8: =LOG10(C5) -> -0.7569619513
A9: Transpose of a[] (a') | B9: =$C$6 -> 1 | C9: =$C$7 -> 61.8317 | D9: =$C$8 -> -0.7569619513
A10: X'X Cross Product Matrix | B10: X'X
B11: 0.307537 | C11: -0.00103089 | D11: 0.00822769
B12: -0.00103089 | C12: 4.377e-06 | D12: -9.44359e-05
B13: 0.00822769 | C13: -9.44359e-05 | D13: 0.0085286
A14: a'X'X a | B14: a'X'X a | C14: =MMULT(B9:D9,MMULT(B11:D13, C6:C8)) -> 0.1980583248
A15: Coefficients for model
A16: Intercept | B16: K0 | C16: -1.49615
A17: Coeff for MW | B17: K1 | C17: -0.005657
A18: Coeff for Log10(Kow) | B18: K2 | C18: 0.233255
A19: Standard deviation of model | B19: s | C19: 0.787218
A20: Critical value at 0.025 with 26 d.f. | B20: t0.025 | C20: 2.056
A21: Log10 of Estimated first-order absorption rate | B21: Log(ka) = | C21: K0 + K1 MW + K2 Log10(Kow)
B22: Central | C22: =$C$16 + ($C$17*$C$4) + ($C$18*LOG10($C$5)) -> -2.022497087 | E22: Eq
B23: Lower 95% CI | C23: =$C$22 - ($C$20 * $C$19 * ($C$14^0.5)) -> -2.74279918 | E23: Eq
B24: Upper 95% CI | C24: =$C$22 + ($C$20 * $C$19 * ($C$14^0.5)) -> -1.302194994 | E24: Eq
A25: Estimated first-order absorption rate | B25: ka = | C25: 10Log(ka)
B26: Central | C26: =10^C22 -> 0.009495173683 | D26: hour-1 | E26: Eq
B27: Lower 95% CI | C27: =10^C23 -> 0.001808009966 | E27: Eq
B28: Upper 95% CI | C28: =10^C24 -> 0.04986605439 | E28: Eq

Sheet B04Rt
A1: Estimates of Water Contamination Rates -- i.e., the concentration in ambient water per pound applied per acre
A2: Parameter/Assumption | B2: Code / Range | C2: Equation/ Value | D2: Units | E2: WCRV6
A3: Short-term peak concentrations | B3: Peak | E3: WCRV6
B4: Central | C4: 0.041 | D4: mg/L | E4: Section 3.2.3.4.6
B5: Lower | C5: 1.2e-09 | E5: Section 3.2.3.4.6
B6: Upper | C6: 0.43 | E6: Section 3.2.3.4.6
A7: Longer-term average concentrations | B7: Average
B8: Central | C8: 0.018 | D8: mg/L | E8: Section 3.2.3.4.6
B9: Lower | C9: 6e-10 | E9: Section 3.2.3.4.6
B10: Upper | C10: 0.23 | E10: Section 3.2.3.4.6
A11: User Specified Gleams-Driver File: | B11: None

Sheet B04a
A1: Expected Concentrations in Surface Water | E1: EECRtV6
A2: Parameter/Assumption | B2: Code / Range | C2: Equation/ Value | D2: Units | E2: EECRtV6
A3: Application Rate | B3: ApRt | C3: ='A01'!ApRt_C -> 0.105 | D3: lb/acre | E3: Worksheet A01
A4: Water Contamination Rates
A5: Short-term peak water contamination rates (WCR) | B5: Peak
B6: Central | C6: =B04Rt!$C$4 -> 0.041 | D6: mg/L | E6: Section 3.2.3.4.6
B7: Lower | C7: =B04Rt!$C$5 -> 1.2e-09 | E7: Section 3.2.3.4.6
B8: Upper | C8: =B04Rt!$C$6 -> 0.43 | E8: Section 3.2.3.4.6
A9: Longer-term average water contamination rates (WCR) | B9: Average
B10: Central | C10: =B04Rt!$C$8 -> 0.018 | D10: mg/L | E10: Section 3.2.3.4.6
B11: Lower | C11: =B04Rt!$C$9 -> 6e-10 | E11: Section 3.2.3.4.6
B12: Upper | C12: =B04Rt!$C$10 -> 0.23 | E12: Section 3.2.3.4.6
A13: EECs in Surface Water
A14: Short-term peak concentrations | B14: Peak
B15: Central | C15: =$C$3*C6 -> 0.004305 | D15: mg/L | E15: Eq
B16: Lower | C16: =$C$3*C7 -> 1.26e-10 | E16: Eq
B17: Upper | C17: 0.04515 | E17: Eq
A18: Longer-term average concentrations | B18: Average
B19: Central | C19: =$C$3*C10 -> 0.00189 | D19: mg/L | E19: Eq
B20: Lower | C20: =$C$3*C11 -> 6.3e-11 | E20: Eq
B21: Upper | C21: 0.02415 | E21: Eq

Sheet B04b
A1: Pond: Concentration of pesticide in pond water after an accidental spill
A2: Short Title | B2: Pond Spill | E2: PondSpillApRt
A3: Receptor | B3: Pond
A4: Duration | B4: Acute
A5: Parameter/Assumption | B5: Code / Range | C5: Equation/ Value | D5: Units | E5: Reference/Designation
A6: Surface Area of Pond | B6: SA | C6: ='A01'!C$30 -> 1000 | D6: m2 | E6: Worksheet A01
A7: Depth of Pond | B7: Depth | C7: ='A01'!C$31 -> 1 | D7: meter | E7: Worksheet A01
A8: Volume of Pond | B8: VPM | C8: =C6*C7 -> 1000 | D8: m3 | E8: Eq
B9: VPL | C9: =1000*C8 -> 1000000 | D9: liters | E9: Eq
A10: Application Rate | B10: ApRt | C10: ='A01'!ApRt_C -> 0.105 | D10: lbs | E10: Worksheet A01
A11: Number of treated acres of pesticide involved in the spill. | B11: Acres
B12: Central | C12: ='A01'!C$58 -> 5 | D12: acres | E12: Worksheet A01
B13: Lower | C13: ='A01'!C$59 -> 1 | E13: Worksheet A01
B14: Upper | C14: ='A01'!C$60 -> 10 | E14: Worksheet A01
A15: Pounds of compound spilled into water | B15: Lbs
B16: Central | C16: =$C$10*C12 -> 0.525 | D16: lbs a.i. or a.e | E16: Eq.
B17: Lower | C17: =$C$10*C13 -> 0.105 | E17: Eq.
B18: Upper | C18: 1.05 | E18: Eq.
A19: mg per lb | B19: MgLbs | C19: 453600 | D19: mg/lbs
A20: Toxic Equivalency Factor for formulation: (See risk assessment if this has a value other than 1.) | B20: TEF
B21: Central | C21: ='A01'!C$42 -> 1 | D21: unitless | E21: Worksheet A01
B22: Lower | C22: ='A01'!C$43 -> 1 | E22: Worksheet A01
B23: Upper | C23: ='A01'!C$44 -> 1 | E23: Worksheet A01
A24: Concentration in pond water | B24: ConcWat | C24: Lbs × TEF x MgLbs ÷ VPL
B25: Central | C25: =C16*C21*C$19/C$9 -> 0.23814 | D25: mg/L | E25: Eq
B26: Lower | C26: =C17*C22*C$19/C$9 -> 0.047628 | E26: Eq
B27: Upper | C27: =C18*C23*C$19/C$9 -> 0.47628 | E27: Eq

Sheet C01a
A1: Exposure estimates for Stump Applicator based on the amount of material handled per day
A2: Short Title | B2: Wet Stump Application | E2: WkAltGenExp
A3: Receptor | B3: Worker
A4: Duration | B4: Chronic
A5: Parameter/Assumption | B5: Code / Range | C5: Equation/ Value | D5: Units | E5: Reference/Equation
A6: Stump Application Rate | B6: StumpApRt | C6: ='A01'!C$4 -> 0.000525 | D6: lb/ft2 | E6: Worksheet A01
A7: Stump Surface Treated per Day | B7: StumpFt | C7: Hrs × APH
B8: Central | C8: ='A01'!C$24 -> 500 | D8: ft2/day | E8: Worksheet A01
B9: Lower | C9: ='A01'!C$25 -> 200 | E9: Worksheet A01
B10: Upper | C10: ='A01'!C$26 -> 1000 | E10: Worksheet A01
A11: Toxic Equivalency Factor for formulation: (See risk assessment if this has a value other than 1.) | B11: TEF
B12: Central | C12: ='A01'!C$42 -> 1 | D12: unitless | E12: Worksheet A01
B13: Lower | C13: ='A01'!C$43 -> 1 | E13: Worksheet A01
B14: Upper | C14: ='A01'!C$44 -> 1 | E14: Worksheet A01
A15: Amount handled per day: | B15: Amnt | C15: ApRt × ATD × TEF
B16: Central | C16: =C$6*C8 *C12 -> 0.2625 | D16: lb/day | E16: Eq
B17: Lower | C17: =C$6*C9 *C13 -> 0.105 | E17: Eq
B18: Upper | C18: =C$6*C10 *C14 -> 0.525 | E18: Eq
A19: Absorbed dose rate: | B19: ADR
B20: Central | C20: ='A01'!C$50 -> 6e-05 | D20: (mg agent/kg bw) ÷ (lbs agent handled per day) | E20: Worksheet A01
B21: Lower | C21: ='A01'!C$51 -> 1e-05 | E21: Worksheet A01
B22: Upper | C22: ='A01'!C$52 -> 0.0004 | E22: Worksheet A01
A23: Clothing Protection Factor | B23: Prot
B24: Central | C24: ='A01'!C$38 -> 0 | D24: Unitless (value between 0 [no protection] and 1 [complete protection]) | E24: Worksheet A01
B25: Upper | C25: ='A01'!C$40 -> 0 | E25: Worksheet A01
B26: Lower | C26: ='A01'!C$39 -> 0 | E26: Worksheet A01
A27: Absorbed dose | B27: Dose | C27: Amnt × ADR × (1-Prot)
B28: Central | C28: =C16*C20*(1-C24) -> 1.575e-05 | D28: mg/kg bw/day | E28: Eq
B29: Lower | C29: =C17*C21*(1-C25) -> 1.05e-06 | E29: Eq
B30: Upper | C30: =C18*C22*(1-C26) -> 0.00021 | E30: Eq

Sheet C01b
A1: Exposure estimates based on Pesticide Handlers Exposure Database (PHED) Method
A2: Short Title | B2: Backpack Stump Application, PHED | E2: WkPHEDAlt01
A3: Receptor | B3: Worker
A4: Duration | B4: Chronic | E4: Scenario parameter
A5: Parameter/Assumption | B5: Code / Range | C5: Equation/ Value | D5: Units | E5: Reference/Equation
A6: Body Weight | B6: BW | C6: =A02a!$C$39 -> 70 | E6: ICRP 1975
A7: Stump Application Rate | B7: StumpApRt | C7: ='A01'!C$4 -> 0.000525 | D7: lb/ft2 | E7: Worksheet A01
A8: Stump Surface Treated per Day | B8: StumpFt
B9: Central | C9: ='A01'!C$24 -> 500 | D9: ft2/day | E9: Worksheet A01
B10: Lower | C10: ='A01'!C$25 -> 200 | E10: Worksheet A01
B11: Upper | C11: ='A01'!C$26 -> 1000 | E11: Worksheet A01
A12: Amount a.i. handled per day: | B12: Amnt | C12: StumpApRt × StumpFt
B13: Central | C13: =$C$7*C9 -> 0.2625 | D13: lb a.i. | E13: Eq.
B14: Lower | C14: =$C$7*C10 -> 0.105 | E14: Eq.
B15: Upper | C15: =$C$7*C11 -> 0.525 | E15: Eq.
A16: Dermal Exposure Rate: | B16: DermRate
B17: Central | C17: 4.12 | D17: mg per lb handled | E17: Scenario parameter
B18: Lower | C18: 4.12 | E18: Scenario parameter
B19: Upper | C19: 4.12 | E19: Scenario parameter
A20: PPE Factor for Dermal Exposure: | B20: DermPPE
B21: Central | C21: 0 | D21: Proportion
B22: Upper | C22: 0
B23: Lower | C23: 0
A24: Amount Deposited on Skin | B24: DermAmnt | C24: Amnt × DermRate × (1-DermPPE)
B25: Central | C25: =C13*C17*(1-C21) -> 1.0815 | D25: mg/day | E25: Eq.
B26: Lower | C26: =C14*C18*(1-C22) -> 0.4326 | E26: Eq.
B27: Upper | C27: =C15*C19*(1-C23) -> 2.163 | E27: Eq.
A28: First-order dermal absorption rates | B28: ka
B29: Central | C29: ='B01'!$C$11 -> 8.8e-05 | D29: hour-1 | E29: Section 3.2.2.2
B30: Lower | C30: ='B01'!$C$12 -> 2e-05 | E30: Section 3.2.2.2
B31: Upper | C31: ='B01'!$C$13 -> 0.00016 | E31: Section 3.2.2.2
A32: Period of exposure | B32: T | C32: 10 | D32: hours | E32: Scenario parameter
A33: Proportion absorbed by skin over period T | B33: Prop | C33: 1-exp(-ka T)
B34: Central | C34: =1-EXP(-C29*C$32) -> 0.0008796129136 | D34: Proportion | E34: Eq.
B35: Lower | C35: =1-EXP(-C30*C$32) -> 0.0001999800013 | E35: Eq.
B36: Upper | C36: =1-EXP(-C31*C$32) -> 0.001598720682 | E36: Eq.
A37: Absorbed Dermal Dose | B37: DermAbs | C37: Amnt × Prop
B38: Central | C38: =C25*C34 -> 0.000951301366 | D38: mg | E38: Eq.
B39: Lower | C39: =C26*C35 -> 8.651134858e-05 | D39: mg | E39: Eq.
B40: Upper | C40: =C27*C36 -> 0.003458032836 | D40: mg | E40: Eq.
A41: Inhalation Exposure Rate: | B41: InhExpRate
B42: Central | C42: 0.00258 | D42: mg/lb handled | E42: Scenario parameter
B43: Lower | C43: 0.00258 | E43: Scenario parameter
B44: Upper | C44: 0.00258 | E44: Scenario parameter
A45: PPE Factor for Inhalation Exposure: | B45: InhPPE
B46: Central | C46: 0 | D46: Proportion
B47: Upper | C47: 0
B48: Lower | C48: 0
A49: Inhalation Absorption Rate: | B49: InhRate | C49: 1 | D49: Proportion
A50: Absorbed Inhalation Dose | B50: InhAbs | C50: Amnt × InhExpRate × (1-InhPPE)
B51: Central | C51: =C13*C42*C$49 -> 0.00067725 | D51: mg | E51: Eq.
B52: Lower | C52: =C14*C43*C$49 -> 0.0002709 | E52: Eq.
B53: Upper | C53: =C15*C44*C$49 -> 0.0013545 | E53: Eq.
A54: Total Absorbed dose | B54: Dose | C54: (DermAbs + InhAbs) ÷ BW
B55: Central | C55: =(C38+C51)/$C$6 -> 2.326501951e-05 | D55: mg/kg bw/day | E55: Eq
B56: Lower | C56: =(C39+C52)/$C$6 -> 5.105876408e-06 | E56: Eq
B57: Upper | C57: 6.875046909e-05 | E57: Eq

Sheet C01c
A1: Exposure estimates based on Pesticide Handlers Exposure Database (PHED) Method
A2: Short Title | B2: Wet Stump Application, HED/PHED | E2: WkPHEDAlt01
A3: Receptor | B3: Worker
A4: Duration | B4: Chronic | E4: Scenario parameter
A5: Parameter/Assumption | B5: Code / Range | C5: Equation/ Value | D5: Units | E5: Reference/Equation
A6: Body Weight | B6: BW | C6: =A02a!$C$39 -> 70 | E6: ICRP 1975
A7: Stump Application Rate | B7: StumpApRt | C7: ='A01'!C$4 -> 0.000525 | D7: lb/ft2 | E7: Worksheet A01
A8: Stump Surface Treated per Day | B8: StumpFt
B9: Central | C9: ='A01'!C$24 -> 500 | D9: ft2/day | E9: Worksheet A01
B10: Lower | C10: ='A01'!C$25 -> 200 | E10: Worksheet A01
B11: Upper | C11: ='A01'!C$26 -> 1000 | E11: Worksheet A01
A12: Amount a.i. handled per day: | B12: Amnt | C12: StumpApRt × StumpFt
B13: Central | C13: =$C$7*C9 -> 0.2625 | D13: lb a.i. | E13: Eq.
B14: Lower | C14: =$C$7*C10 -> 0.105 | E14: Eq.
B15: Upper | C15: =$C$7*C11 -> 0.525 | E15: Eq.
A16: Dermal Exposure Rate: | B16: DermRate
B17: Central | C17: 0 | D17: mg per lb handled | E17: Scenario parameter
B18: Lower | C18: 0 | E18: Scenario parameter
B19: Upper | C19: 0 | E19: Scenario parameter
A20: PPE Factor for Dermal Exposure: | B20: DermPPE
B21: Central | C21: 0 | D21: Proportion
B22: Upper | C22: 0
B23: Lower | C23: 0
A24: Amount Deposited on Skin | B24: DermAmnt | C24: Amnt × DermRate × (1-DermPPE)
B25: Central | C25: =C13*C17*(1-C21) -> 0 | D25: mg/day | E25: Eq.
B26: Lower | C26: =C14*C18*(1-C22) -> 0 | E26: Eq.
B27: Upper | C27: =C15*C19*(1-C23) -> 0 | E27: Eq.
A28: First-order dermal absorption rates | B28: ka
B29: Central | C29: ='B01'!$C$11 -> 8.8e-05 | D29: hour-1 | E29: Section 3.2.2.2
B30: Lower | C30: ='B01'!$C$12 -> 2e-05 | E30: Section 3.2.2.2
B31: Upper | C31: ='B01'!$C$13 -> 0.00016 | E31: Section 3.2.2.2
A32: Period of exposure | B32: T | C32: 10 | D32: hours | E32: Scenario parameter
A33: Proportion absorbed by skin over period T | B33: Prop | C33: 1-exp(-ka T)
B34: Central | C34: =1-EXP(-C29*C$32) -> 0.0008796129136 | D34: Proportion | E34: Eq.
B35: Lower | C35: =1-EXP(-C30*C$32) -> 0.0001999800013 | E35: Eq.
B36: Upper | C36: =1-EXP(-C31*C$32) -> 0.001598720682 | E36: Eq.
A37: Absorbed Dermal Dose | B37: DermAbs | C37: Amnt × Prop
B38: Central | C38: =C25*C34 -> 0 | D38: mg | E38: Eq.
B39: Lower | C39: =C26*C35 -> 0 | D39: mg | E39: Eq.
B40: Upper | C40: =C27*C36 -> 0 | D40: mg | E40: Eq.
A41: Inhalation Exposure Rate: | B41: InhExpRate
B42: Central | C42: 0.03 | D42: mg/lb handled | E42: Scenario parameter
B43: Lower | C43: 0.03 | E43: Scenario parameter
B44: Upper | C44: 0.03 | E44: Scenario parameter
A45: PPE Factor for Inhalation Exposure: | B45: InhPPE
B46: Central | C46: 0 | D46: Proportion
B47: Upper | C47: 0
B48: Lower | C48: 0
A49: Inhalation Absorption Rate: | B49: InhRate | C49: 1 | D49: Proportion
A50: Absorbed Inhalation Dose | B50: InhAbs | C50: Amnt × InhExpRate × (1-InhPPE)
B51: Central | C51: =C13*C42*C$49 -> 0.007875 | D51: mg | E51: Eq.
B52: Lower | C52: =C14*C43*C$49 -> 0.00315 | E52: Eq.
B53: Upper | C53: =C15*C44*C$49 -> 0.01575 | E53: Eq.
A54: Total Absorbed dose | B54: Dose | C54: (DermAbs + InhAbs) ÷ BW
B55: Central | C55: =(C38+C51)/$C$6 -> 0.0001125 | D55: mg/kg bw/day | E55: Eq
B56: Lower | C56: =(C39+C52)/$C$6 -> 4.5e-05 | E56: Eq
B57: Upper | C57: 0.000225 | E57: Eq

Sheet C01d_Ac
A1: Exposure estimates based on Pesticide Handlers Exposure Database (PHED) Method
A2: Short Title | B2: Dry Stump Application, HED | E2: WkPHEDAlt01
A3: Receptor | B3: Worker
A4: Duration | B4: Acute | E4: Scenario parameter
A5: Parameter/Assumption | B5: Code / Range | C5: Equation/ Value | D5: Units | E5: Reference/Equation
A6: Body Weight | B6: BW | C6: =A02a!$C$39 -> 70 | E6: ICRP 1975
A7: Stump Application Rate | B7: StumpApRt | C7: ='A01'!C$4 -> 0.000525 | D7: lb/ft2 | E7: Worksheet A01
A8: Stump Surface Treated per Day | B8: StumpFt
B9: Central | C9: ='A01'!C$24 -> 500 | D9: ft2/day | E9: Worksheet A01
B10: Lower | C10: ='A01'!C$25 -> 200 | E10: Worksheet A01
B11: Upper | C11: ='A01'!C$26 -> 1000 | E11: Worksheet A01
A12: Amount a.i. handled per day: | B12: Amnt | C12: StumpApRt × StumpFt
B13: Central | C13: =$C$7*C9 -> 0.2625 | D13: lb a.i. | E13: Eq.
B14: Lower | C14: =$C$7*C10 -> 0.105 | E14: Eq.
B15: Upper | C15: =$C$7*C11 -> 0.525 | E15: Eq.
A16: Dermal Exposure Rate: | B16: DermRate
B17: Central | C17: 0 | D17: mg per lb handled | E17: Scenario parameter
B18: Lower | C18: 0 | E18: Scenario parameter
B19: Upper | C19: 0 | E19: Scenario parameter
A20: PPE Factor for Dermal Exposure: | B20: DermPPE
B21: Central | C21: 0 | D21: Proportion
B22: Upper | C22: 0
B23: Lower | C23: 0
A24: Amount Deposited on Skin | B24: DermAmnt | C24: Amnt × DermRate × (1-DermPPE)
B25: Central | C25: =C13*C17*(1-C21) -> 0 | D25: mg/day | E25: Eq.
B26: Lower | C26: =C14*C18*(1-C22) -> 0 | E26: Eq.
B27: Upper | C27: =C15*C19*(1-C23) -> 0 | E27: Eq.
A28: First-order dermal absorption rates | B28: ka
B29: Central | C29: ='B01'!$C$11 -> 8.8e-05 | D29: hour-1 | E29: Section 3.2.2.2
B30: Lower | C30: ='B01'!$C$12 -> 2e-05 | E30: Section 3.2.2.2
B31: Upper | C31: ='B01'!$C$13 -> 0.00016 | E31: Section 3.2.2.2
A32: Period of exposure | B32: T | C32: 10 | D32: hours | E32: Scenario parameter
A33: Proportion absorbed by skin over period T | B33: Prop | C33: 1-exp(-ka T)
B34: Central | C34: =1-EXP(-C29*C$32) -> 0.0008796129136 | D34: Proportion | E34: Eq.
B35: Lower | C35: =1-EXP(-C30*C$32) -> 0.0001999800013 | E35: Eq.
B36: Upper | C36: =1-EXP(-C31*C$32) -> 0.001598720682 | E36: Eq.
A37: Absorbed Dermal Dose | B37: DermAbs | C37: Amnt × Prop
B38: Central | C38: =C25*C34 -> 0 | D38: mg | E38: Eq.
B39: Lower | C39: =C26*C35 -> 0 | D39: mg | E39: Eq.
B40: Upper | C40: =C27*C36 -> 0 | D40: mg | E40: Eq.
A41: Inhalation Exposure Rate: | B41: InhExpRate
B42: Central | C42: 3.5 | D42: mg/lb handled | E42: Scenario parameter
B43: Lower | C43: 1.75 | E43: Scenario parameter
B44: Upper | C44: 17.5 | E44: Scenario parameter
A45: PPE Factor for Inhalation Exposure: | B45: InhPPE
B46: Central | C46: 0 | D46: Proportion
B47: Upper | C47: 0
B48: Lower | C48: 0
A49: Inhalation Absorption Rate: | B49: InhRate | C49: 1 | D49: Proportion
A50: Absorbed Inhalation Dose | B50: InhAbs | C50: Amnt × InhExpRate × (1-InhPPE)
B51: Central | C51: =C13*C42*C$49 -> 0.91875 | D51: mg | E51: Eq.
B52: Lower | C52: =C14*C43*C$49 -> 0.18375 | E52: Eq.
B53: Upper | C53: =C15*C44*C$49 -> 9.1875 | E53: Eq.
A54: Total Absorbed dose | B54: Dose | C54: (DermAbs + InhAbs) ÷ BW
B55: Central | C55: =(C38+C51)/$C$6 -> 0.013125 | D55: mg/kg bw/day | E55: Eq
B56: Lower | C56: =(C39+C52)/$C$6 -> 0.002625 | E56: Eq
B57: Upper | C57: 0.13125 | E57: Eq

Sheet C01d_Ch
A1: Exposure estimates based on Pesticide Handlers Exposure Database (PHED) Method
A2: Short Title | B2: Dry Stump Application, HED | E2: WkPHEDAlt01
A3: Receptor | B3: Worker
A4: Duration | B4: Chronic | E4: Scenario parameter
A5: Parameter/Assumption | B5: Code / Range | C5: Equation/ Value | D5: Units | E5: Reference/Equation
A6: Body Weight | B6: BW | C6: =A02a!$C$39 -> 70 | E6: ICRP 1975
A7: Stump Application Rate | B7: StumpApRt | C7: ='A01'!C$4 -> 0.000525 | D7: lb/ft2 | E7: Worksheet A01
A8: Stump Surface Treated per Day | B8: StumpFt
B9: Central | C9: ='A01'!C$24 -> 500 | D9: ft2/day | E9: Worksheet A01
B10: Lower | C10: ='A01'!C$25 -> 200 | E10: Worksheet A01
B11: Upper | C11: ='A01'!C$26 -> 1000 | E11: Worksheet A01
A12: Amount a.i. handled per day: | B12: Amnt | C12: StumpApRt × StumpFt
B13: Central | C13: =$C$7*C9 -> 0.2625 | D13: lb a.i. | E13: Eq.
B14: Lower | C14: =$C$7*C10 -> 0.105 | E14: Eq.
B15: Upper | C15: =$C$7*C11 -> 0.525 | E15: Eq.
A16: Dermal Exposure Rate: | B16: DermRate
B17: Central | C17: 0 | D17: mg per lb handled | E17: Scenario parameter
B18: Lower | C18: 0 | E18: Scenario parameter
B19: Upper | C19: 0 | E19: Scenario parameter
A20: PPE Factor for Dermal Exposure: | B20: DermPPE
B21: Central | C21: 0 | D21: Proportion
B22: Upper | C22: 0
B23: Lower | C23: 0
A24: Amount Deposited on Skin | B24: DermAmnt | C24: Amnt × DermRate × (1-DermPPE)
B25: Central | C25: =C13*C17*(1-C21) -> 0 | D25: mg/day | E25: Eq.
B26: Lower | C26: =C14*C18*(1-C22) -> 0 | E26: Eq.
B27: Upper | C27: =C15*C19*(1-C23) -> 0 | E27: Eq.
A28: First-order dermal absorption rates | B28: ka
B29: Central | C29: ='B01'!$C$11 -> 8.8e-05 | D29: hour-1 | E29: Section 3.2.2.2
B30: Lower | C30: ='B01'!$C$12 -> 2e-05 | E30: Section 3.2.2.2
B31: Upper | C31: ='B01'!$C$13 -> 0.00016 | E31: Section 3.2.2.2
A32: Period of exposure | B32: T | C32: 10 | D32: hours | E32: Scenario parameter
A33: Proportion absorbed by skin over period T | B33: Prop | C33: 1-exp(-ka T)
B34: Central | C34: =1-EXP(-C29*C$32) -> 0.0008796129136 | D34: Proportion | E34: Eq.
B35: Lower | C35: =1-EXP(-C30*C$32) -> 0.0001999800013 | E35: Eq.
B36: Upper | C36: =1-EXP(-C31*C$32) -> 0.001598720682 | E36: Eq.
A37: Absorbed Dermal Dose | B37: DermAbs | C37: Amnt × Prop
B38: Central | C38: =C25*C34 -> 0 | D38: mg | E38: Eq.
B39: Lower | C39: =C26*C35 -> 0 | D39: mg | E39: Eq.
B40: Upper | C40: =C27*C36 -> 0 | D40: mg | E40: Eq.
A41: Inhalation Exposure Rate: | B41: InhExpRate
B42: Central | C42: 3.5 | D42: mg/lb handled | E42: Scenario parameter
B43: Lower | C43: 1.75 | E43: Scenario parameter
B44: Upper | C44: 17.5 | E44: Scenario parameter
A45: PPE Factor for Inhalation Exposure: | B45: InhPPE
B46: Central | C46: 0 | D46: Proportion
B47: Upper | C47: 0
B48: Lower | C48: 0
A49: Inhalation Absorption Rate: | B49: InhRate | C49: 1 | D49: Proportion
A50: Absorbed Inhalation Dose | B50: InhAbs | C50: Amnt × InhExpRate × (1-InhPPE)
B51: Central | C51: =C13*C42*C$49 -> 0.91875 | D51: mg | E51: Eq.
B52: Lower | C52: =C14*C43*C$49 -> 0.18375 | E52: Eq.
B53: Upper | C53: =C15*C44*C$49 -> 9.1875 | E53: Eq.
A54: Total Absorbed dose | B54: Dose | C54: (DermAbs + InhAbs) ÷ BW
B55: Central | C55: =(C38+C51)/$C$6 -> 0.013125 | D55: mg/kg bw/day | E55: Eq
B56: Lower | C56: =(C39+C52)/$C$6 -> 0.002625 | E56: Eq
B57: Upper | C57: 0.13125 | E57: Eq

Sheet C02aD
A1: Dermal Exposure Assessment for a Granular Exposure Using Zero-Order Absorption, Worker, Surface Area, Hands, for 1 minute(s)
A2: Short Title | B2: Contaminated Gloves, 1 minute, Dry Ap. | E2: DrmZrGran
A3: Receptor | B3: Worker
A4: Duration | B4: Acute
A5: Surface Contaminated | B5: Surface Area, Hands
A6: Parameter/Assumption | B6: Code / Range | C6: Equation/ Value | D6: Units | E6: Reference/Designation
A7: Surface Area | B7: SA | C7: =A02a!$C$40 -> 840 | D7: cm2 | E7: U.S. EPA/ORD 1992
A8: Duration of Exposure | B8: T_min | C8: 1 | D8: minutes | E8: Scenario parameter
B9: T_hr | C9: =C8/60 -> 0.01666666667 | D9: hours | E9: Eq
A10: Body weight | B10: BW | C10: =A02a!$C$39 -> 70 | D10: kg | E10: ICRP 1975
A11: Water Solubility (mg/mL) | B11: WS | C11: ='B01'!$C$10/1000 -> 54.3 | D11: mg/mL | E11: Table 12
A12: Toxic Equivalency Factor for formulation: (See risk assessment if this has a value other than 1.) | B12: TEF
B13: Central | C13: ='A01'!C$42 -> 1 | D13: Unitless | E13: Worksheet A01
B14: Lower | C14: ='A01'!C$43 -> 1 | E14: Worksheet A01
B15: Upper | C15: ='A01'!C$44 -> 1 | E15: Worksheet A01
A16: Dermal permeability | B16: Kp
B17: Central | C17: ='B01'!$C$14 -> 1.8e-07 | D17: cm/hour | E17: Section 3.2.2.2
B18: Lower | C18: ='B01'!$C$15 -> 4.1e-08 | E18: Section 3.2.2.2
B19: Upper | C19: ='B01'!$C$16 -> 3.2e-07 | E19: Section 3.2.2.2
A20: Absorbed Dose | B20: Dose | C20: Kp × WS × T_hr × SA x TEF ÷ BW
B21: Central | C21: =C17*C$11*C$9*C$7*C13/C$10 -> 1.9548e-06 | D21: mg/kg | E21: Eq
B22: Lower | C22: =C18*C$11*C$9*C$7*C14/C$10 -> 4.4526e-07 | D22: mg/kg | E22: Eq
B23: Upper | C23: =C19*C$11*C$9*C$7*C15/C$10 -> 3.4752e-06 | D23: mg/kg | E23: Eq

Sheet C02aW
A1: Accidental Dermal Exposure Assessment Using Zero-Order Absorption, Worker, Surface Area, Hands, for 1 minute(s)
A2: Short Title | B2: Contaminated Gloves, 1 minute, Wet Ap. | E2: DrmZr
A3: Receptor | B3: Worker
A4: Duration | B4: Acute
A5: Surface Contaminated | B5: Surface Area, Hands
A6: Parameter/Assumption | B6: Code / Range | C6: Equation/ Value | D6: Units | E6: Reference/Designation
A7: Surface Area | B7: SA | C7: =A02a!$C$40 -> 840 | D7: cm2 | E7: U.S. EPA/ORD 1992
A8: Duration of Exposure | B8: T_min | C8: 1 | D8: minutes | E8: Scenario parameter
B9: T_hr | C9: =C8/60 -> 0.01666666667 | D9: hours | E9: Eq
A10: Body weight | B10: BW | C10: =A02a!$C$39 -> 70 | D10: kg | E10: ICRP 1975
A11: Concentration in solution (mg/mL) | B11: Conc
B12: Central | C12: ='A01'!FldConc_C -> 13 | D12: mg/mL | E12: Worksheet A01
B13: Lower | C13: ='A01'!FldConc_L -> 13 | E13: Worksheet A01
B14: Upper | C14: ='A01'!FldConc_U -> 13 | E14: Worksheet A01
A15: Toxic Equivalency Factor for formulation: (See risk assessment if this has a value other than 1.) | B15: TEF
B16: Central | C16: ='A01'!C$42 -> 1 | D16: Unitless | E16: Worksheet A01
B17: Lower | C17: ='A01'!C$43 -> 1 | E17: Worksheet A01
B18: Upper | C18: ='A01'!C$44 -> 1 | E18: Worksheet A01
A19: Dermal permeability | B19: Kp
B20: Central | C20: ='B01'!$C$14 -> 1.8e-07 | D20: cm/hour | E20: Section 3.2.2.2
B21: Lower | C21: ='B01'!$C$15 -> 4.1e-08 | E21: Section 3.2.2.2
B22: Upper | C22: ='B01'!$C$16 -> 3.2e-07 | E22: Section 3.2.2.2
A23: Absorbed Dose | B23: Dose | C23: Kp × Conc × T_hr × SA x TEF ÷ BW
B24: Central | C24: =C20*C12*C$9*C$7*C16/C$10 -> 4.68e-07 | D24: mg/kg | E24: Eq
B25: Lower | C25: =C21*C13*C$9*C$7*C17/C$10 -> 1.066e-07 | D25: mg/kg | E25: Eq
B26: Upper | C26: =C22*C14*C$9*C$7*C18/C$10 -> 8.32e-07 | D26: mg/kg | E26: Eq

Sheet C02bD
A1: Dermal Exposure Assessment for a Granular Exposure Using Zero-Order Absorption, Worker, Surface Area, Hands, for 60 minute(s)
A2: Short Title | B2: Contaminated Gloves, 1 hour, Dry Ap. | E2: DrmZrGran
A3: Receptor | B3: Worker
A4: Duration | B4: Acute
A5: Surface Contaminated | B5: Surface Area, Hands
A6: Parameter/Assumption | B6: Code / Range | C6: Equation/ Value | D6: Units | E6: Reference/Designation
A7: Surface Area | B7: SA | C7: =A02a!$C$40 -> 840 | D7: cm2 | E7: U.S. EPA/ORD 1992
A8: Duration of Exposure | B8: T_min | C8: 60 | D8: minutes | E8: Scenario parameter
B9: T_hr | C9: =C8/60 -> 1 | D9: hours | E9: Eq
A10: Body weight | B10: BW | C10: =A02a!$C$39 -> 70 | D10: kg | E10: ICRP 1975
A11: Water Solubility (mg/mL) | B11: WS | C11: ='B01'!$C$10/1000 -> 54.3 | D11: mg/mL | E11: Table 12
A12: Toxic Equivalency Factor for formulation: (See risk assessment if this has a value other than 1.) | B12: TEF
B13: Central | C13: ='A01'!C$42 -> 1 | D13: Unitless | E13: Worksheet A01
B14: Lower | C14: ='A01'!C$43 -> 1 | E14: Worksheet A01
B15: Upper | C15: ='A01'!C$44 -> 1 | E15: Worksheet A01
A16: Dermal permeability | B16: Kp
B17: Central | C17: ='B01'!$C$14 -> 1.8e-07 | D17: cm/hour | E17: Section 3.2.2.2
B18: Lower | C18: ='B01'!$C$15 -> 4.1e-08 | E18: Section 3.2.2.2
B19: Upper | C19: ='B01'!$C$16 -> 3.2e-07 | E19: Section 3.2.2.2
A20: Absorbed Dose | B20: Dose | C20: Kp × WS × T_hr × SA x TEF ÷ BW
B21: Central | C21: =C17*C$11*C$9*C$7*C13/C$10 -> 0.000117288 | D21: mg/kg | E21: Eq
B22: Lower | C22: =C18*C$11*C$9*C$7*C14/C$10 -> 2.67156e-05 | D22: mg/kg | E22: Eq
B23: Upper | C23: =C19*C$11*C$9*C$7*C15/C$10 -> 0.000208512 | D23: mg/kg | E23: Eq

Sheet C02bW
A1: Accidental Dermal Exposure Assessment Using Zero-Order Absorption, Worker, Surface Area, Hands, for 60 minute(s)
A2: Short Title | B2: Contaminated Gloves, 1 hour, Wet Ap. | E2: DrmZr
A3: Receptor | B3: Worker
A4: Duration | B4: Acute
A5: Surface Contaminated | B5: Surface Area, Hands
A6: Parameter/Assumption | B6: Code / Range | C6: Equation/ Value | D6: Units | E6: Reference/Designation
A7: Surface Area | B7: SA | C7: =A02a!$C$40 -> 840 | D7: cm2 | E7: U.S. EPA/ORD 1992
A8: Duration of Exposure | B8: T_min | C8: 60 | D8: minutes | E8: Scenario parameter
B9: T_hr | C9: =C8/60 -> 1 | D9: hours | E9: Eq
A10: Body weight | B10: BW | C10: =A02a!$C$39 -> 70 | D10: kg | E10: ICRP 1975
A11: Concentration in solution (mg/mL) | B11: Conc
B12: Central | C12: ='A01'!FldConc_C -> 13 | D12: mg/mL | E12: Worksheet A01
B13: Lower | C13: ='A01'!FldConc_L -> 13 | E13: Worksheet A01
B14: Upper | C14: ='A01'!FldConc_U -> 13 | E14: Worksheet A01
A15: Toxic Equivalency Factor for formulation: (See risk assessment if this has a value other than 1.) | B15: TEF
B16: Central | C16: ='A01'!C$42 -> 1 | D16: Unitless | E16: Worksheet A01
B17: Lower | C17: ='A01'!C$43 -> 1 | E17: Worksheet A01
B18: Upper | C18: ='A01'!C$44 -> 1 | E18: Worksheet A01
A19: Dermal permeability | B19: Kp
B20: Central | C20: ='B01'!$C$14 -> 1.8e-07 | D20: cm/hour | E20: Section 3.2.2.2
B21: Lower | C21: ='B01'!$C$15 -> 4.1e-08 | E21: Section 3.2.2.2
B22: Upper | C22: ='B01'!$C$16 -> 3.2e-07 | E22: Section 3.2.2.2
A23: Absorbed Dose | B23: Dose | C23: Kp × Conc × T_hr × SA x TEF ÷ BW
B24: Central | C24: =C20*C12*C$9*C$7*C16/C$10 -> 2.808e-05 | D24: mg/kg | E24: Eq
B25: Lower | C25: =C21*C13*C$9*C$7*C17/C$10 -> 6.396e-06 | D25: mg/kg | E25: Eq
B26: Upper | C26: =C22*C14*C$9*C$7*C18/C$10 -> 4.992e-05 | D26: mg/kg | E26: Eq

Sheet C03a
A1: Accidental Dermal Exposure Assessment Using First-Order Absorption, Worker, Surface Area, Hands, for 60 minute(s)
A2: Short Title | B2: Spill on hands, 1 hour | E2: DrmFOA
A3: Receptor | B3: Worker
A4: Duration | B4: Acute
A5: Surface Contaminated | B5: Surface Area, Hands
A6: Parameter/Assumption | B6: Code / Range | C6: Equation/ Value | D6: Units | E6: Reference/Designation
A7: Surface Area | B7: SA | C7: =A02a!$C$40 -> 840 | D7: cm2 | E7: U.S. EPA/ORD 1992
A8: Duration of Exposure | C8: 60 | D8: minutes | E8: Scenario parameter
B9: T | C9: =C8/60 -> 1 | D9: hours | E9: Eq
A10: Body weight | B10: BW | C10: =A02a!$C$39 -> 70 | D10: kg | E10: ICRP 1975
A11: Liquid adhering to skin | B11: L | C11: =A02d!$C$11 -> 0.008 | D11: mL/cm2 | E11: Mason and Johnson 1987
A12: Concentration in solution | B12: Conc
B13: Central | C13: ='A01'!FldConc_C -> 13 | D13: mg/mL | E13: Worksheet A01
B14: Lower | C14: ='A01'!FldConc_L -> 13 | E14: Worksheet A01
B15: Upper | C15: ='A01'!FldConc_U -> 13 | E15: Worksheet A01
A16: First-order dermal absorption rates | B16: ka
B17: Central | C17: ='B01'!$C$11 -> 8.8e-05 | D17: hour-1 | E17: Section 3.2.2.2
B18: Lower | C18: ='B01'!$C$12 -> 2e-05 | E18: Section 3.2.2.2
B19: Upper | C19: ='B01'!$C$13 -> 0.00016 | E19: Section 3.2.2.2
A20: Toxic Equivalency Factor for formulation: (See risk assessment if this has a value other than 1.) | B20: TEF
B21: Central | C21: ='A01'!C$42 -> 1 | D21: Unitless | E21: Worksheet A01
B22: Lower | C22: ='A01'!C$43 -> 1 | E22: Worksheet A01
B23: Upper | C23: ='A01'!C$44 -> 1 | E23: Worksheet A01
A24: Amount Deposited on Skin | B24: Amnt | C24: L × SA × Conc x TEF
B25: Central | C25: =$C$11*$C$7*C13*C21 -> 87.36 | D25: mg | E25: Eq
B26: Lower | C26: =$C$11*$C$7*C14*C22 -> 87.36 | E26: Eq
B27: Upper | C27: =$C$11*$C$7*C15*C23 -> 87.36 | E27: Eq
A28: Skin Loading | B28: Loading
B29: Central | C29: =C25/C$7 -> 0.104 | D29: mg/cm2 | E29: Eq
B30: Lower | C30: =C26/C$7 -> 0.104 | E30: Eq
B31: Upper | C31: =C27/C$7 -> 0.104 | E31: Eq
A32: Proportion absorbed over period T | B32: Prop | C32: 1-exp(-ka T)
B33: Central | C33: =1-EXP(-C17 *$C$9) -> 8.799612811e-05 | D33: hour-1 | E33: Eq
B34: Lower | C34: =1-EXP(-C18 *$C$9) -> 1.99998e-05 | E34: Eq
B35: Upper | C35: =1-EXP(-C19 *$C$9) -> 0.0001599872007 | E35: Eq
A36: Absorbed Dose | B36: Dose | C36: Amnt × Prop ÷ BW
B37: Central | C37: =C25*C33/$C$10 -> 0.0001098191679 | D37: mg/kg bw | E37: Eq
B38: Lower | C38: =C26*C34/$C$10 -> 2.49597504e-05 | E38: Eq
B39: Upper | C39: =C27*C35/$C$10 -> 0.0001996640265 | E39: Eq

Sheet C03b
A1: Accidental Dermal Exposure Assessment Using First-Order Absorption, Worker, Surface Area, Lower legs, for 60 minute(s)
A2: Short Title | B2: Spill on lower legs, 1 hour | E2: DrmFOA
A3: Receptor | B3: Worker
A4: Duration | B4: Acute
A5: Surface Contaminated | B5: Surface Area, Lower legs
A6: Parameter/Assumption | B6: Code / Range | C6: Equation/ Value | D6: Units | E6: Reference/Designation
A7: Surface Area | B7: SA | C7: =A02a!$C$41 -> 2070 | D7: cm2 | E7: U.S. EPA/ORD 1992
A8: Duration of Exposure | C8: 60 | D8: minutes | E8: Scenario parameter
B9: T | C9: =C8/60 -> 1 | D9: hours | E9: Eq
A10: Body weight | B10: BW | C10: =A02a!$C$39 -> 70 | D10: kg | E10: ICRP 1975
A11: Liquid adhering to skin | B11: L | C11: =A02d!$C$11 -> 0.008 | D11: mL/cm2 | E11: Mason and Johnson 1987
A12: Concentration in solution | B12: Conc
B13: Central | C13: ='A01'!FldConc_C -> 13 | D13: mg/mL | E13: Worksheet A01
B14: Lower | C14: ='A01'!FldConc_L -> 13 | E14: Worksheet A01
B15: Upper | C15: ='A01'!FldConc_U -> 13 | E15: Worksheet A01
A16: First-order dermal absorption rates | B16: ka
B17: Central | C17: ='B01'!$C$11 -> 8.8e-05 | D17: hour-1 | E17: Section 3.2.2.2
B18: Lower | C18: ='B01'!$C$12 -> 2e-05 | E18: Section 3.2.2.2
B19: Upper | C19: ='B01'!$C$13 -> 0.00016 | E19: Section 3.2.2.2
A20: Toxic Equivalency Factor for formulation: (See risk assessment if this has a value other than 1.) | B20: TEF
B21: Central | C21: ='A01'!C$42 -> 1 | D21: Unitless | E21: Worksheet A01
B22: Lower | C22: ='A01'!C$43 -> 1 | E22: Worksheet A01
B23: Upper | C23: ='A01'!C$44 -> 1 | E23: Worksheet A01
A24: Amount Deposited on Skin | B24: Amnt | C24: L × SA × Conc x TEF
B25: Central | C25: =$C$11*$C$7*C13*C21 -> 215.28 | D25: mg | E25: Eq
B26: Lower | C26: =$C$11*$C$7*C14*C22 -> 215.28 | E26: Eq
B27: Upper | C27: =$C$11*$C$7*C15*C23 -> 215.28 | E27: Eq
A28: Skin Loading | B28: Loading
B29: Central | C29: =C25/C$7 -> 0.104 | D29: mg/cm2 | E29: Eq
B30: Lower | C30: =C26/C$7 -> 0.104 | E30: Eq
B31: Upper | C31: =C27/C$7 -> 0.104 | E31: Eq
A32: Proportion absorbed over period T | B32: Prop | C32: 1-exp(-ka T)
B33: Central | C33: =1-EXP(-C17 *$C$9) -> 8.799612811e-05 | D33: hour-1 | E33: Eq
B34: Lower | C34: =1-EXP(-C18 *$C$9) -> 1.99998e-05 | E34: Eq
B35: Upper | C35: =1-EXP(-C19 *$C$9) -> 0.0001599872007 | E35: Eq
A36: Absorbed Dose | B36: Dose | C36: Amnt × Prop ÷ BW
B37: Central | C37: =C25*C33/$C$10 -> 0.0002706258066 | D37: mg/kg bw | E37: Eq
B38: Lower | C38: =C26*C34/$C$10 -> 6.150795635e-05 | E38: Eq
B39: Upper | C39: =C27*C35/$C$10 -> 0.000492029208 | E39: Eq

Sheet D01a
A1: Accidental Dermal Exposure Assessment Using First-Order Absorption, Child, Surface Area, Whole body, for 60 minute(s)
A2: Short Title | B2: Child direct spray, 1 hour | E2: DrmFOA
A3: Receptor | B3: Child
A4: Duration | B4: Acute
A5: Surface Contaminated | B5: Surface Area, Whole body
A6: Parameter/Assumption | B6: Code / Range | C6: Equation/ Value | D6: Units | E6: Reference/Designation
A7: Surface Area | B7: SA | C7: =A02a!$C$29 -> 6030 | D7: cm2 | E7: U.S. EPA/ORD 1996
A8: Duration of Exposure | C8: 60 | D8: minutes | E8: Scenario parameter
B9: T | C9: =C8/60 -> 1 | D9: hours | E9: Eq
A10: Body weight | B10: BW | C10: =A02a!$C$28 -> 13.3 | D10: kg | E10: U.S. EPA/ORD 1996
A11: Liquid adhering to skin | B11: L | C11: =A02d!$C$11 -> 0.008 | D11: mL/cm2 | E11: Mason and Johnson 1987
A12: Concentration in solution | B12: Conc
B13: Central | C13: ='A01'!FldConc_C -> 13 | D13: mg/mL | E13: Worksheet A01
B14: Lower | C14: ='A01'!FldConc_L -> 13 | E14: Worksheet A01
B15: Upper | C15: ='A01'!FldConc_U -> 13 | E15: Worksheet A01
A16: First-order dermal absorption rates | B16: ka
B17: Central | C17: ='B01'!$C$11 -> 8.8e-05 | D17: hour-1 | E17: Section 3.2.2.2
B18: Lower | C18: ='B01'!$C$12 -> 2e-05 | E18: Section 3.2.2.2
B19: Upper | C19: ='B01'!$C$13 -> 0.00016 | E19: Section 3.2.2.2
A20: Toxic Equivalency Factor for formulation: (See risk assessment if this has a value other than 1.) | B20: TEF
B21: Central | C21: ='A01'!C$42 -> 1 | D21: Unitless | E21: Worksheet A01
B22: Lower | C22: ='A01'!C$43 -> 1 | E22: Worksheet A01
B23: Upper | C23: ='A01'!C$44 -> 1 | E23: Worksheet A01
A24: Amount Deposited on Skin | B24: Amnt | C24: L × SA × Conc x TEF
B25: Central | C25: =$C$11*$C$7*C13*C21 -> 627.12 | D25: mg | E25: Eq
B26: Lower | C26: =$C$11*$C$7*C14*C22 -> 627.12 | E26: Eq
B27: Upper | C27: =$C$11*$C$7*C15*C23 -> 627.12 | E27: Eq
A28: Skin Loading | B28: Loading
B29: Central | C29: =C25/C$7 -> 0.104 | D29: mg/cm2 | E29: Eq
B30: Lower | C30: =C26/C$7 -> 0.104 | E30: Eq
B31: Upper | C31: =C27/C$7 -> 0.104 | E31: Eq
A32: Proportion absorbed over period T | B32: Prop | C32: 1-exp(-ka T)
B33: Central | C33: =1-EXP(-C17 *$C$9) -> 8.799612811e-05 | D33: hour-1 | E33: Eq
B34: Lower | C34: =1-EXP(-C18 *$C$9) -> 1.99998e-05 | E34: Eq
B35: Upper | C35: =1-EXP(-C19 *$C$9) -> 0.0001599872007 | E35: Eq
A36: Absorbed Dose | B36: Dose | C36: Amnt × Prop ÷ BW
B37: Central | C37: =C25*C33/$C$10 -> 0.004149182847 | D37: mg/kg bw | E37: Eq
B38: Lower | C38: =C26*C34/$C$10 -> 0.0009430281637 | E38: Eq
B39: Upper | C39: =C27*C35/$C$10 -> 0.00754369724 | E39: Eq

Sheet D01b
A1: Accidental Dermal Exposure Assessment Using First-Order Absorption, Adult Female, Surface Area, Feet and lower Legs, for 60 minute(s)
A2: Short Title | B2: Adult female, lower legs, 1 hour | E2: DrmFOA
A3: Receptor | B3: Adult Female
A4: Duration | B4: Acute
A5: Surface Contaminated | B5: Surface Area, Feet and lower Legs
A6: Parameter/Assumption | B6: Code / Range | C6: Equation/ Value | D6: Units | E6: Reference/Designation
A7: Surface Area | B7: SA | C7: =A02a!$C$5 -> 2915 | D7: cm2 | E7: U.S. EPA/ORD 1992
A8: Duration of Exposure | C8: 60 | D8: minutes | E8: Scenario parameter
B9: T | C9: =C8/60 -> 1 | D9: hours | E9: Eq
A10: Body weight | B10: BW | C10: =A02a!$C$4 -> 64 | D10: kg | E10: U.S. EPA/ORD 1985
A11: Liquid adhering to skin | B11: L | C11: =A02d!$C$11 -> 0.008 | D11: mL/cm2 | E11: Mason and Johnson 1987
A12: Concentration in solution | B12: Conc
B13: Central | C13: ='A01'!FldConc_C -> 13 | D13: mg/mL | E13: Worksheet A01
B14: Lower | C14: ='A01'!FldConc_L -> 13 | E14: Worksheet A01
B15: Upper | C15: ='A01'!FldConc_U -> 13 | E15: Worksheet A01
A16: First-order dermal absorption rates | B16: ka
B17: Central | C17: ='B01'!$C$11 -> 8.8e-05 | D17: hour-1 | E17: Section 3.2.2.2
B18: Lower | C18: ='B01'!$C$12 -> 2e-05 | E18: Section 3.2.2.2
B19: Upper | C19: ='B01'!$C$13 -> 0.00016 | E19: Section 3.2.2.2
A20: Toxic Equivalency Factor for formulation: (See risk assessment if this has a value other than 1.) | B20: TEF
B21: Central | C21: ='A01'!C$42 -> 1 | D21: Unitless | E21: Worksheet A01
B22: Lower | C22: ='A01'!C$43 -> 1 | E22: Worksheet A01
B23: Upper | C23: ='A01'!C$44 -> 1 | E23: Worksheet A01
A24: Amount Deposited on Skin | B24: Amnt | C24: L × SA × Conc x TEF
B25: Central | C25: =$C$11*$C$7*C13*C21 -> 303.16 | D25: mg | E25: Eq
B26: Lower | C26: =$C$11*$C$7*C14*C22 -> 303.16 | E26: Eq
B27: Upper | C27: =$C$11*$C$7*C15*C23 -> 303.16 | E27: Eq
A28: Skin Loading | B28: Loading
B29: Central | C29: =C25/C$7 -> 0.104 | D29: mg/cm2 | E29: Eq
B30: Lower | C30: =C26/C$7 -> 0.104 | E30: Eq
B31: Upper | C31: =C27/C$7 -> 0.104 | E31: Eq
A32: Proportion absorbed over period T | B32: Prop | C32: 1-exp(-ka T)
B33: Central | C33: =1-EXP(-C17 *$C$9) -> 8.799612811e-05 | D33: hour-1 | E33: Eq
B34: Lower | C34: =1-EXP(-C18 *$C$9) -> 1.99998e-05 | E34: Eq
B35: Upper | C35: =1-EXP(-C19 *$C$9) -> 0.0001599872007 | E35: Eq
A36: Absorbed Dose | B36: Dose | C36: Amnt × Prop ÷ BW
B37: Central | C37: =C25*C33/$C$10 -> 0.0004168266594 | D37: mg/kg bw | E37: Eq
B38: Lower | C38: =C26*C34/$C$10 -> 9.473655263e-05 | E38: Eq
B39: Upper | C39: =C27*C35/$C$10 -> 0.0007578393712 | E39: Eq

Sheet D01c
A1: Consumption of Fixed Amount of Compound by a Child, acute exposure
A2: Short Title | B2: Direct Consumption | E2: DirConFixed
A3: Receptor | B3: Child
A4: Duration | B4: Acute
A5: Material consumed | B5: Boxax as boron equivalents
A6: Parameter/Assumption | B6: Code / Range | C6: Equation/ Value | D6: Units | E6: Reference/Designation
A7: Body Weight | B7: BW | C7: 11 | D7: kg | E7: Scenario parameter
A8: Amount of boronl consumed | B8: Amnt
B9: Central | C9: 14 | D9: mg B | E9: Scenario parameter
B10: Lower | C10: 5.6 | E10: Scenario parameter
B11: Upper | C11: 34 | E11: Scenario parameter
A12: Toxic Equivalency Factor for formulation: (See risk assessment if this has a value other than 1.) | B12: TEF
B13: Central | C13: ='A01'!C$42 -> 1 | D13: Unitless | E13: Worksheet A01
B14: Lower | C14: ='A01'!C$43 -> 1 | E14: Worksheet A01
B15: Upper | C15: ='A01'!C$44 -> 1 | E15: Worksheet A01
A16: Dose | B16: Dose | C16: Conc × Amnt ×TEF
B17: Central | C17: =C9*C13/C$7 -> 1.272727273 | D17: mg/kg bw | E17: Eq
B18: Lower | C18: =C10*C14/C$7 -> 0.5090909091 | E18: Eq
B19: Upper | C19: =C11*C15/C$7 -> 3.090909091 | E19: Eq

Sheet D05
A1: Consumption of contaminated water by Child, Accidental Spill
A2: Short Title | B2: Accidental Spill | E2: WatAmntV6
A3: Receptor | B3: Child
A4: Duration | B4: Acute | E4: Scenario parameter
A5: Parameter/Assumption | B5: Code / Range | C5: Equation/ Value | D5: Units | E5: Reference/Designation
A6: Concentration in water | B6: ConcWat
B7: Central | C7: =B04b!Acute_C -> 0.23814 | D7: mg/L | E7: ='B04b'!Acute_C
B8: Lower | C8: =B04b!Acute_L -> 0.047628 | E8: ='B04b'!Acute_L
B9: Upper | C9: =B04b!Acute_U -> 0.47628 | E9: ='B04b'!Acute_U
A10: Receptor
A11: Amount of water consumed in one day | B11: Amnt
B12: Central | C12: ='A03'!$E$44 -> 1 | D12: liters/day | E12: U.S. EPA/ORD 1996
B13: Lower | C13: ='A03'!$E$45 -> 0.61 | E13: U.S. EPA/ORD 1996
B14: Upper | C14: ='A03'!$E$46 -> 1.5 | E14: U.S. EPA/ORD 1996
A15: Body weight | B15: BW | C15: =A02a!$C$28 -> 13.3 | D15: kg | E15: U.S. EPA/ORD 1996
A16: Dose | B16: Dose | C16: ConcWat × Amnt ÷ BW
B17: Central | C17: =C7*C12/C$15 -> 0.01790526316 | D17: mg/kg | E17: Eq
B18: Lower | C18: =C8*C13/C$15 -> 0.002184442105 | D18: mg/kg | E18: Eq
B19: Upper | C19: =C9*C14/C$15 -> 0.05371578947 | D19: mg/kg | E19: Eq

Sheet D06
A1: Consumption of contaminated water by Child, Peak Conentrations
A2: Short Title | B2: Peak Conentrations | E2: WatAmntV6
A3: Receptor | B3: Child
A4: Duration | B4: Acute | E4: Scenario parameter
A5: Parameter/Assumption | B5: Code / Range | C5: Equation/ Value | D5: Units | E5: Reference/Designation
A6: Concentration in water | B6: ConcWat
B7: Central | C7: =B04a!Acute_C -> 0.004305 | D7: mg/L | E7: ='B04a'!Acute_C
B8: Lower | C8: =B04a!Acute_L -> 1.26e-10 | E8: ='B04a'!Acute_L
B9: Upper | C9: =B04a!Acute_U -> 0.04515 | E9: ='B04a'!Acute_U
A10: Receptor
A11: Amount of water consumed in one day | B11: Amnt
B12: Central | C12: ='A03'!$E$44 -> 1 | D12: liters/day | E12: U.S. EPA/ORD 1996
B13: Lower | C13: ='A03'!$E$45 -> 0.61 | E13: U.S. EPA/ORD 1996
B14: Upper | C14: ='A03'!$E$46 -> 1.5 | E14: U.S. EPA/ORD 1996
A15: Body weight | B15: BW | C15: =A02a!$C$28 -> 13.3 | D15: kg | E15: U.S. EPA/ORD 1996
A16: Dose | B16: Dose | C16: ConcWat × Amnt ÷ BW
B17: Central | C17: =C7*C12/C$15 -> 0.0003236842105 | D17: mg/kg | E17: Eq
B18: Lower | C18: =C8*C13/C$15 -> 5.778947368e-12 | D18: mg/kg | E18: Eq
B19: Upper | C19: =C9*C14/C$15 -> 0.005092105263 | D19: mg/kg | E19: Eq

Sheet D07
A1: Consumption of contaminated water by Adult Male, Longer-term Conentrations
A2: Short Title | B2: Longer-term Conentrations | E2: WatAmntV6
A3: Receptor | B3: Adult Male
A4: Duration | B4: Chronic | E4: Scenario parameter
A5: Parameter/Assumption | B5: Code / Range | C5: Equation/ Value | D5: Units | E5: Reference/Designation
A6: Concentration in water | B6: ConcWat
B7: Central | C7: =B04a!Chronic_C -> 0.00189 | D7: mg/L | E7: ='B04a'!Chronic_C
B8: Lower | C8: =B04a!Chronic_L -> 6.3e-11 | E8: ='B04a'!Chronic_L
B9: Upper | C9: =B04a!Chronic_U -> 0.02415 | E9: ='B04a'!Chronic_U
A10: Receptor
A11: Amount of water consumed in one day | B11: Amnt
B12: Central | C12: ='A03'!$E$31 -> 2 | D12: liters/day | E12: U.S. EPA/ORD 1996
B13: Lower | C13: ='A03'!$E$32 -> 1.4 | E13: U.S. EPA/ORD 1996
B14: Upper | C14: ='A03'!$E$33 -> 2.4 | E14: U.S. EPA/ORD 1996
A15: Body weight | B15: BW | C15: =A02a!$C$8 -> 70 | D15: kg | E15: ICRP 1975
A16: Dose | B16: Dose | C16: ConcWat × Amnt ÷ BW
B17: Central | C17: =C7*C12/C$15 -> 5.4e-05 | D17: mg/kg | E17: Eq
B18: Lower | C18: =C8*C13/C$15 -> 1.26e-12 | D18: mg/kg | E18: Eq
B19: Upper | C19: =C9*C14/C$15 -> 0.000828 | D19: mg/kg | E19: Eq

Sheet D08a
A1: Consumption of Contaminated Fish (Accidental Spill), Adult Male, acute exposure
A2: Short Title | B2: Fish consumption | E2: FishAmntV6
A3: Receptor | B3: Adult Male
A4: Duration | B4: acute
A5: Parameter/Assumption | B5: Code / Range | C5: Equation/ Value | D5: Units | E5: Reference/Designation
A6: Water
A7: Concentration in water | B7: ConcWat | C7: ApR × WCR
B8: Central | C8: =B04b!Acute_C -> 0.23814 | D8: mg/L | E8: ='B04b'!Acute_C
B9: Lower | C9: =B04b!Acute_L -> 0.047628 | E9: ='B04b'!Acute_L
B10: Upper | C10: =B04b!Acute_U -> 0.47628 | E10: ='B04b'!Acute_U
A11: Fish
A12: Bioconcentration factor | B12: BCF
B13: Central | C13: ='B01'!$C$4 -> 1 | D13: L/kg | E13: Section 3.2.3.5
B14: Lower | C14: ='B01'!$C$4 -> 1 | E14: Section 3.2.3.5
B15: Upper | C15: ='B01'!$C$4 -> 1 | E15: Section 3.2.3.5
A16: Concentration in fish | B16: ConcFish | C16: ConcWat × BCF
B17: Central | C17: =C8*C13 -> 0.23814 | D17: mg/kg | E17: Eq
B18: Lower | C18: =C9*C14 -> 0.047628 | E18: Eq
B19: Upper | C19: =C10*C15 -> 0.47628 | E19: Eq
A20: Receptor
A21: Amount of fish consumed | B21: Amnt
B22: Central | C22: ='A03'!$E$20 -> 0.158 | D22: kg/day | E22: Ruffle et al. 1994
B23: Lower | C23: ='A03'!$E$20 -> 0.158 | E23: Ruffle et al. 1994
B24: Upper | C24: ='A03'!$E$20 -> 0.158 | E24: Ruffle et al. 1994
A25: Toxic Equivalency Factor for formulation: (See risk assessment if this has a value other than 1.) | B25: TEF
B26: Central | C26: ='A01'!C$42 -> 1 | D26: Unitless | E26: Worksheet A01
B27: Lower | C27: ='A01'!C$43 -> 1 | E27: Worksheet A01
B28: Upper | C28: ='A01'!C$44 -> 1 | E28: Worksheet A01
A29: Body weight | B29: BW | C29: =A02a!$C$8 -> 70 | D29: kg | E29: ICRP 1975
A30: Dose | B30: Dose | C30: ConcFish× Amnt x TEF ÷ BW
B31: Central | C31: =C17*C22*C26/C$29 -> 0.000537516 | D31: mg/kg | E31: Eq
B32: Lower | C32: =C18*C23*C27/C$29 -> 0.0001075032 | D32: mg/kg | E32: Eq
B33: Upper | C33: =C19*C24*C28/C$29 -> 0.001075032 | D33: mg/kg | E33: Eq
E34: FishAmntV6

Sheet D08b
A1: Consumption of Contaminated Fish (Accidental Spill), Subsistence Populations, acute exposure
A2: Short Title | B2: Fish consumption | E2: FishAmntV6
A3: Receptor | B3: Subsistence Populations
A4: Duration | B4: acute
A5: Parameter/Assumption | B5: Code / Range | C5: Equation/ Value | D5: Units | E5: Reference/Designation
A6: Water
A7: Concentration in water | B7: ConcWat | C7: ApR × WCR
B8: Central | C8: =B04b!Acute_C -> 0.23814 | D8: mg/L | E8: ='B04b'!Acute_C
B9: Lower | C9: =B04b!Acute_L -> 0.047628 | E9: ='B04b'!Acute_L
B10: Upper | C10: =B04b!Acute_U -> 0.47628 | E10: ='B04b'!Acute_U
A11: Fish
A12: Bioconcentration factor | B12: BCF
B13: Central | C13: ='B01'!$C$4 -> 1 | D13: L/kg | E13: Section 3.2.3.5
B14: Lower | C14: ='B01'!$C$4 -> 1 | E14: Section 3.2.3.5
B15: Upper | C15: ='B01'!$C$4 -> 1 | E15: Section 3.2.3.5
A16: Concentration in fish | B16: ConcFish | C16: ConcWat × BCF
B17: Central | C17: =C8*C13 -> 0.23814 | D17: mg/kg | E17: Eq
B18: Lower | C18: =C9*C14 -> 0.047628 | E18: Eq
B19: Upper | C19: =C10*C15 -> 0.47628 | E19: Eq
A20: Receptor
A21: Amount of fish consumed | B21: Amnt
B22: Central | C22: ='A03'!$E$35 -> 0.77 | D22: kg/day | E22: U.S. EPA/ORD 1993
B23: Lower | C23: ='A03'!$E$35 -> 0.77 | E23: U.S. EPA/ORD 1993
B24: Upper | C24: ='A03'!$E$35 -> 0.77 | E24: U.S. EPA/ORD 1993
A25: Toxic Equivalency Factor for formulation: (See risk assessment if this has a value other than 1.) | B25: TEF
B26: Central | C26: ='A01'!C$42 -> 1 | D26: Unitless | E26: Worksheet A01
B27: Lower | C27: ='A01'!C$43 -> 1 | E27: Worksheet A01
B28: Upper | C28: ='A01'!C$44 -> 1 | E28: Worksheet A01
A29: Body weight | B29: BW | C29: =A02a!$C$9 -> 70 | D29: kg | E29: ICRP 1975
A30: Dose | B30: Dose | C30: ConcFish× Amnt x TEF ÷ BW
B31: Central | C31: =C17*C22*C26/C$29 -> 0.00261954 | D31: mg/kg | E31: Eq
B32: Lower | C32: =C18*C23*C27/C$29 -> 0.000523908 | D32: mg/kg | E32: Eq
B33: Upper | C33: =C19*C24*C28/C$29 -> 0.00523908 | D33: mg/kg | E33: Eq
E34: FishAmntV6

Sheet D09a
A1: Consumption of Contaminated Fish (Longer-term), Adult Male, chronic exposure
A2: Short Title | B2: Fish consumption | E2: FishAmntV6
A3: Receptor | B3: Adult Male
A4: Duration | B4: chronic
A5: Parameter/Assumption | B5: Code / Range | C5: Equation/ Value | D5: Units | E5: Reference/Designation
A6: Water
A7: Concentration in water | B7: ConcWat | C7: ApR × WCR
B8: Central | C8: =B04a!Chronic_C -> 0.00189 | D8: mg/L | E8: ='B04a'!Chronic_C
B9: Lower | C9: =B04a!Chronic_L -> 6.3e-11 | E9: ='B04a'!Chronic_L
B10: Upper | C10: =B04a!Chronic_U -> 0.02415 | E10: ='B04a'!Chronic_U
A11: Fish
A12: Bioconcentration factor | B12: BCF
B13: Central | C13: ='B01'!$C$5 -> 1 | D13: L/kg | E13: Section 3.2.3.5
B14: Lower | C14: ='B01'!$C$5 -> 1 | E14: Section 3.2.3.5
B15: Upper | C15: ='B01'!$C$5 -> 1 | E15: Section 3.2.3.5
A16: Concentration in fish | B16: ConcFish | C16: ConcWat × BCF
B17: Central | C17: =C8*C13 -> 0.00189 | D17: mg/kg | E17: Eq
B18: Lower | C18: =C9*C14 -> 6.3e-11 | E18: Eq
B19: Upper | C19: =C10*C15 -> 0.02415 | E19: Eq
A20: Receptor
A21: Amount of fish consumed | B21: Amnt
B22: Central | C22: ='A03'!$E$19 -> 0.01 | D22: kg/day | E22: U.S. EPA/ORD 1996
B23: Lower | C23: ='A03'!$E$19 -> 0.01 | E23: U.S. EPA/ORD 1996
B24: Upper | C24: ='A03'!$E$19 -> 0.01 | E24: U.S. EPA/ORD 1996
A25: Toxic Equivalency Factor for formulation: (See risk assessment if this has a value other than 1.) | B25: TEF
B26: Central | C26: ='A01'!C$42 -> 1 | D26: Unitless | E26: Worksheet A01
B27: Lower | C27: ='A01'!C$43 -> 1 | E27: Worksheet A01
B28: Upper | C28: ='A01'!C$44 -> 1 | E28: Worksheet A01
A29: Body weight | B29: BW | C29: =A02a!$C$8 -> 70 | D29: kg | E29: ICRP 1975
A30: Dose | B30: Dose | C30: ConcFish× Amnt x TEF ÷ BW
B31: Central | C31: =C17*C22*C26/C$29 -> 2.7e-07 | D31: mg/kg | E31: Eq
B32: Lower | C32: =C18*C23*C27/C$29 -> 9e-15 | D32: mg/kg | E32: Eq
B33: Upper | C33: =C19*C24*C28/C$29 -> 3.45e-06 | D33: mg/kg | E33: Eq
E34: FishAmntV6

Sheet D09b
A1: Consumption of Contaminated Fish (Longer-term), Subsistence Populations, chronic exposure
A2: Short Title | B2: Fish consumption | E2: FishAmntV6
A3: Receptor | B3: Subsistence Populations
A4: Duration | B4: chronic
A5: Parameter/Assumption | B5: Code / Range | C5: Equation/ Value | D5: Units | E5: Reference/Designation
A6: Water
A7: Concentration in water | B7: ConcWat | C7: ApR × WCR
B8: Central | C8: =B04a!Chronic_C -> 0.00189 | D8: mg/L | E8: ='B04a'!Chronic_C
B9: Lower | C9: =B04a!Chronic_L -> 6.3e-11 | E9: ='B04a'!Chronic_L
B10: Upper | C10: =B04a!Chronic_U -> 0.02415 | E10: ='B04a'!Chronic_U
A11: Fish
A12: Bioconcentration factor | B12: BCF
B13: Central | C13: ='B01'!$C$5 -> 1 | D13: L/kg | E13: Section 3.2.3.5
B14: Lower | C14: ='B01'!$C$5 -> 1 | E14: Section 3.2.3.5
B15: Upper | C15: ='B01'!$C$5 -> 1 | E15: Section 3.2.3.5
A16: Concentration in fish | B16: ConcFish | C16: ConcWat × BCF
B17: Central | C17: =C8*C13 -> 0.00189 | D17: mg/kg | E17: Eq
B18: Lower | C18: =C9*C14 -> 6.3e-11 | E18: Eq
B19: Upper | C19: =C10*C15 -> 0.02415 | E19: Eq
A20: Receptor
A21: Amount of fish consumed | B21: Amnt
B22: Central | C22: ='A03'!$E$34 -> 0.081 | D22: kg/day | E22: U.S. EPA/ORD 1996
B23: Lower | C23: ='A03'!$E$34 -> 0.081 | E23: U.S. EPA/ORD 1996
B24: Upper | C24: ='A03'!$E$34 -> 0.081 | E24: U.S. EPA/ORD 1996
A25: Toxic Equivalency Factor for formulation: (See risk assessment if this has a value other than 1.) | B25: TEF
B26: Central | C26: ='A01'!C$42 -> 1 | D26: Unitless | E26: Worksheet A01
B27: Lower | C27: ='A01'!C$43 -> 1 | E27: Worksheet A01
B28: Upper | C28: ='A01'!C$44 -> 1 | E28: Worksheet A01
A29: Body weight | B29: BW | C29: =A02a!$C$9 -> 70 | D29: kg | E29: ICRP 1975
A30: Dose | B30: Dose | C30: ConcFish× Amnt x TEF ÷ BW
B31: Central | C31: =C17*C22*C26/C$29 -> 2.187e-06 | D31: mg/kg | E31: Eq
B32: Lower | C32: =C18*C23*C27/C$29 -> 7.29e-14 | D32: mg/kg | E32: Eq
B33: Upper | C33: =C19*C24*C28/C$29 -> 2.7945e-05 | D33: mg/kg | E33: Eq
E34: FishAmntV6

Sheet D09c
A1: Consumption of Contaminated Fish (Peak Exposure), Adult Male, acute exposure
A2: Short Title | B2: Fish consumption | E2: FishAmntV6
A3: Receptor | B3: Adult Male
A4: Duration | B4: acute
A5: Parameter/Assumption | B5: Code / Range | C5: Equation/ Value | D5: Units | E5: Reference/Designation
A6: Water
A7: Concentration in water | B7: ConcWat | C7: ApR × WCR
B8: Central | C8: =B04a!Acute_C -> 0.004305 | D8: mg/L | E8: ='B04a'!Acute_C
B9: Lower | C9: =B04a!Acute_L -> 1.26e-10 | E9: ='B04a'!Acute_L
B10: Upper | C10: =B04a!Acute_U -> 0.04515 | E10: ='B04a'!Acute_U
A11: Fish
A12: Bioconcentration factor | B12: BCF
B13: Central | C13: ='B01'!$C$4 -> 1 | D13: L/kg | E13: Section 3.2.3.5
B14: Lower | C14: ='B01'!$C$4 -> 1 | E14: Section 3.2.3.5
B15: Upper | C15: ='B01'!$C$4 -> 1 | E15: Section 3.2.3.5
A16: Concentration in fish | B16: ConcFish | C16: ConcWat × BCF
B17: Central | C17: =C8*C13 -> 0.004305 | D17: mg/kg | E17: Eq
B18: Lower | C18: =C9*C14 -> 1.26e-10 | E18: Eq
B19: Upper | C19: =C10*C15 -> 0.04515 | E19: Eq
A20: Receptor
A21: Amount of fish consumed | B21: Amnt
B22: Central | C22: ='A03'!$E$20 -> 0.158 | D22: kg/day | E22: Ruffle et al. 1994
B23: Lower | C23: ='A03'!$E$20 -> 0.158 | E23: Ruffle et al. 1994
B24: Upper | C24: ='A03'!$E$20 -> 0.158 | E24: Ruffle et al. 1994
A25: Toxic Equivalency Factor for formulation: (See risk assessment if this has a value other than 1.) | B25: TEF
B26: Central | C26: ='A01'!C$42 -> 1 | D26: Unitless | E26: Worksheet A01
B27: Lower | C27: ='A01'!C$43 -> 1 | E27: Worksheet A01
B28: Upper | C28: ='A01'!C$44 -> 1 | E28: Worksheet A01
A29: Body weight | B29: BW | C29: =A02a!$C$8 -> 70 | D29: kg | E29: ICRP 1975
A30: Dose | B30: Dose | C30: ConcFish× Amnt x TEF ÷ BW
B31: Central | C31: =C17*C22*C26/C$29 -> 9.717e-06 | D31: mg/kg | E31: Eq
B32: Lower | C32: =C18*C23*C27/C$29 -> 2.844e-13 | D32: mg/kg | E32: Eq
B33: Upper | C33: =C19*C24*C28/C$29 -> 0.00010191 | D33: mg/kg | E33: Eq
E34: FishAmntV6

Sheet D09d
A1: Consumption of Contaminated Fish (Peak Exposure), Subsistence Populations, acute exposure
A2: Short Title | B2: Fish consumption | E2: FishAmntV6
A3: Receptor | B3: Subsistence Populations
A4: Duration | B4: acute
A5: Parameter/Assumption | B5: Code / Range | C5: Equation/ Value | D5: Units | E5: Reference/Designation
A6: Water
A7: Concentration in water | B7: ConcWat | C7: ApR × WCR
B8: Central | C8: =B04a!Acute_C -> 0.004305 | D8: mg/L | E8: ='B04a'!Acute_C
B9: Lower | C9: =B04a!Acute_L -> 1.26e-10 | E9: ='B04a'!Acute_L
B10: Upper | C10: =B04a!Acute_U -> 0.04515 | E10: ='B04a'!Acute_U
A11: Fish
A12: Bioconcentration factor | B12: BCF
B13: Central | C13: ='B01'!$C$4 -> 1 | D13: L/kg | E13: Section 3.2.3.5
B14: Lower | C14: ='B01'!$C$4 -> 1 | E14: Section 3.2.3.5
B15: Upper | C15: ='B01'!$C$4 -> 1 | E15: Section 3.2.3.5
A16: Concentration in fish | B16: ConcFish | C16: ConcWat × BCF
B17: Central | C17: =C8*C13 -> 0.004305 | D17: mg/kg | E17: Eq
B18: Lower | C18: =C9*C14 -> 1.26e-10 | E18: Eq
B19: Upper | C19: =C10*C15 -> 0.04515 | E19: Eq
A20: Receptor
A21: Amount of fish consumed | B21: Amnt
B22: Central | C22: ='A03'!$E$35 -> 0.77 | D22: kg/day | E22: U.S. EPA/ORD 1993
B23: Lower | C23: ='A03'!$E$35 -> 0.77 | E23: U.S. EPA/ORD 1993
B24: Upper | C24: ='A03'!$E$35 -> 0.77 | E24: U.S. EPA/ORD 1993
A25: Toxic Equivalency Factor for formulation: (See risk assessment if this has a value other than 1.) | B25: TEF
B26: Central | C26: ='A01'!C$42 -> 1 | D26: Unitless | E26: Worksheet A01
B27: Lower | C27: ='A01'!C$43 -> 1 | E27: Worksheet A01
B28: Upper | C28: ='A01'!C$44 -> 1 | E28: Worksheet A01
A29: Body weight | B29: BW | C29: =A02a!$C$9 -> 70 | D29: kg | E29: ICRP 1975
A30: Dose | B30: Dose | C30: ConcFish× Amnt x TEF ÷ BW
B31: Central | C31: =C17*C22*C26/C$29 -> 4.7355e-05 | D31: mg/kg | E31: Eq
B32: Lower | C32: =C18*C23*C27/C$29 -> 1.386e-12 | D32: mg/kg | E32: Eq
B33: Upper | C33: =C19*C24*C28/C$29 -> 0.00049665 | D33: mg/kg | E33: Eq
E34: FishAmntV6

Sheet D10
A1: Swimming Exposure Assessment Using Zero-Order Absorption, Adult Female, Surface Area, Whole body, for 60 minute(s)
A2: Short Title | B2: Swimming | E2: DrmZrSwm
A3: Receptor | B3: Adult Female
A4: Duration | B4: Acute
A5: Surface Contaminated | B5: Surface Area, Whole body
A6: Parameter/Assumption | B6: Code / Range | C6: Equation/ Value | D6: Units | E6: Reference/Designation
A7: Application Rate | B7: ApRt | C7: ='A01'!ApRt_C -> 0.105 | D7: lb/acre | E7: Worksheet A01
A8: Surface Area | B8: SA | C8: =A02a!$C$7 -> 16900 | D8: cm2 | E8: U.S. EPA/ORD 1997
A9: Duration of Exposure | B9: T_min | C9: ='A01'!C$36 -> 60 | D9: minutes | E9: Worksheet A01
B10: T_hr | C10: =C9/60 -> 1 | D10: hours | E10: Eq
A11: Body weight | B11: BW | C11: =A02a!$C$4 -> 64 | D11: kg | E11: U.S. EPA/ORD 1985
A12: Water contamination rate | B12: WCR
B13: Central | C13: =B04Rt!$C$4 -> 0.041 | D13: mg/L per lb/acre | E13: Section 3.2.3.4.6
B14: Lower | C14: =B04Rt!$C$5 -> 1.2e-09 | E14: Section 3.2.3.4.6
B15: Upper | C15: =B04Rt!$C$6 -> 0.43 | E15: Section 3.2.3.4.6
A16: Concentration in water in mg/mL | B16: ConcWat | C16: ApR × WCR / 1000
B17: Central | C17: =C$7*C13/1000 -> 4.305e-06 | D17: mg/mL | E17: Eq
B18: Lower | C18: =C$7*C14/1000 -> 1.26e-13 | E18: Eq
B19: Upper | C19: =C$7*C15/1000 -> 4.515e-05 | E19: Eq
A20: Toxic Equivalency Factor for formulation: (See risk assessment if this has a value other than 1.) | B20: TEF
B21: Central | C21: ='A01'!C$42 -> 1 | D21: Unitless | E21: Worksheet A01
B22: Lower | C22: ='A01'!C$43 -> 1 | E22: Worksheet A01
B23: Upper | C23: ='A01'!C$44 -> 1 | E23: Worksheet A01
A24: Dermal permeability | B24: Kp
B25: Central | C25: ='B01'!$C$14 -> 1.8e-07 | D25: cm/hour | E25: Section 3.2.2.2
B26: Lower | C26: ='B01'!$C$15 -> 4.1e-08 | E26: Section 3.2.2.2
B27: Upper | C27: ='B01'!$C$16 -> 3.2e-07 | E27: Section 3.2.2.2
A28: Absorbed Dose | B28: Dose | C28: Kp × Conc × T_hr × SA × TEF ÷ BW
B29: Central | C29: =C25*C17*C$10*C$8*C21/C$11 -> 2.046220312e-10 | D29: mg/kg
B30: Lower | C30: =C26*C18*C$10*C$8*C22/C$11 -> 1.364146875e-18 | D30: mg/kg
B31: Upper | C31: =C27*C19*C$10*C$8*C23/C$11 -> 3.815175e-09 | D31: mg/kg

Sheet E01
A1: Summary of Worker Exposure Assessments
A2: Application Rate: | B2: ='A01'!ApRt_C -> 0.105 | C2: lb a.i./acre | F2: E01aV5-Borate
A3: Scenario | B3: Receptor | C3: mg/kg/day or mg/kg/event | F3: Detail Worksheet
C4: Central | D4: Lower | E4: Upper
A5: Accidental/Incidental Exposures
A6: Contaminated Gloves, 1 minute | B6: Worker | C6: ='C02aW'!Dose_C -> 4.68e-07 | D6: ='C02aW'!Dose_L -> 1.066e-07 | E6: ='C02aW'!Dose_U -> 8.32e-07 | F6: C02aW | G6: Wet
A7: Contaminated Gloves, 1 hour | B7: Worker | C7: ='C02bW'!Dose_C -> 2.808e-05 | D7: ='C02bW'!Dose_L -> 6.396e-06 | E7: ='C02bW'!Dose_U -> 4.992e-05 | F7: C02bW | G7: Wet
A8: Contaminated Gloves, 1 minute | B8: Worker | C8: ='C02aD'!Dose_C -> 1.9548e-06 | D8: ='C02aD'!Dose_L -> 4.4526e-07 | E8: ='C02aD'!Dose_U -> 3.4752e-06 | F8: C02aD | G8: Dry
A9: Contaminated Gloves, 1 hour | B9: Worker | C9: ='C02bD'!Dose_C -> 0.000117288 | D9: ='C02bD'!Dose_L -> 2.67156e-05 | E9: ='C02bD'!Dose_U -> 0.000208512 | F9: C02bD | G9: Dry
A10: Spill on Hands, 1 hour | B10: Worker | C10: ='C03a'!Dose_C -> 0.0001098191679 | D10: ='C03a'!Dose_L -> 2.49597504e-05 | E10: ='C03a'!Dose_U -> 0.0001996640265 | F10: C03a | G10: Wet
A11: Spill on lower legs, 1 hour | B11: Worker | C11: ='C03b'!Dose_C -> 0.0002706258066 | D11: ='C03b'!Dose_L -> 6.150795635e-05 | E11: ='C03b'!Dose_U -> 0.000492029208 | F11: C03b | G11: Wet
A12: General Exposures
A13: Liquid Application, Standard | B13: Worker | C13: ='C01a'!Dose_C -> 1.575e-05 | D13: ='C01a'!Dose_L -> 1.05e-06 | E13: ='C01a'!Dose_U -> 0.00021 | F13: C01a | G13: Wet
A14: Liquid Application, Backpack, PHED | B14: Worker | C14: ='C01b'!Dose_C -> 2.326501951e-05 | D14: ='C01b'!Dose_L -> 5.105876408e-06 | E14: ='C01b'!Dose_U -> 6.875046909e-05 | F14: C01b | G14: Wet
A15: Liquid Application, HED, PHED | B15: Worker | C15: ='C01c'!Dose_C -> 0.0001125 | D15: ='C01c'!Dose_L -> 4.5e-05 | E15: ='C01c'!Dose_U -> 0.000225 | F15: C01c | G15: Wet
A16: Dry Application, HED, Acute | B16: Worker | C16: ='C01d_Ac'!Dose_C -> 0.013125 | D16: ='C01d_Ac'!Dose_L -> 0.002625 | E16: ='C01d_Ac'!Dose_U -> 0.13125 | F16: C01d_Ac | G16: Dry
A17: Dry Application, HED, Chronic | B17: Worker | C17: ='C01d_Ch'!Dose_C -> 0.013125 | D17: ='C01d_Ch'!Dose_L -> 0.002625 | E17: ='C01d_Ch'!Dose_U -> 0.13125 | F17: C01d_Ch | G17: Dry

Sheet E02
A1: Summary of Worker Hazard Quotients (Toxicity)
A2: Application Rate: | B2: ='A01'!ApRt_C -> 0.105 | C2: lb a.i./acre | F2: E01aV5-Borate
A3: Scenario | B3: Receptor | C3: Hazard Quotients | F3: Toxicity Value
C4: Central | D4: Lower | E4: Upper
A5: Accidental/Incidental Exposures
A6: Contaminated Gloves, 1 minute | B6: Worker | C6: ='C02aW'!$C$24/$F$6 -> 1.337142857e-07 | D6: ='C02aW'!$C$25/$F$6 -> 3.045714286e-08 | E6: ='C02aW'!$C$26/$F$6 -> 2.377142857e-07 | F6: ='B02'!$E$4 -> 3.5 | G6: Wet
A7: Contaminated Gloves, 1 hour | B7: Worker | C7: ='C02bW'!$C$24/$F$7 -> 8.022857143e-06 | D7: ='C02bW'!$C$25/$F$7 -> 1.827428571e-06 | E7: ='C02bW'!$C$26/$F$7 -> 1.426285714e-05 | F7: ='B02'!$E$4 -> 3.5 | G7: Wet
A8: Contaminated Gloves, 1 minute | B8: Worker | C8: ='C02aD'!$C$21/$F$8 -> 5.585142857e-07 | D8: ='C02aD'!$C$22/$F$8 -> 1.272171429e-07 | E8: ='C02aD'!$C$23/$F$8 -> 9.929142857e-07 | F8: ='B02'!$E$4 -> 3.5 | G8: Dry
A9: Contaminated Gloves, 1 hour | B9: Worker | C9: ='C02bD'!$C$21/$F$9 -> 3.351085714e-05 | D9: ='C02bD'!$C$22/$F$9 -> 7.633028571e-06 | E9: ='C02bD'!$C$23/$F$9 -> 5.957485714e-05 | F9: ='B02'!$E$4 -> 3.5 | G9: Dry
A10: Spill on Hands, 1 hour | B10: Worker | C10: ='C03a'!$C$37/$F$10 -> 3.137690511e-05 | D10: ='C03a'!$C$38/$F$10 -> 7.131357258e-06 | E10: ='C03a'!$C$39/$F$10 -> 5.70468647e-05 | F10: ='B02'!$E$4 -> 3.5 | G10: Wet
A11: Spill on lower legs, 1 hour | B11: Worker | C11: ='C03b'!$C$37/$F$11 -> 7.732165902e-05 | D11: ='C03b'!$C$38/$F$11 -> 1.757370181e-05 | E11: ='C03b'!$C$39/$F$11 -> 0.0001405797737 | F11: ='B02'!$E$4 -> 3.5 | G11: Wet
A12: General Exposures
A13: Liquid Application, Standard | B13: Worker | C13: ='C01a'!$C$28/$F$13 -> 0.0001789772727 | D13: ='C01a'!$C$29/$F$13 -> 1.193181818e-05 | E13: ='C01a'!$C$30/$F$13 -> 0.002386363636 | F13: ='B02'!$E$5 -> 0.088 | G13: Wet
A14: Liquid Application, Backpack, PHED | B14: Worker | C14: ='C01b'!$C$55/$F$14 -> 0.0002643752218 | D14: ='C01b'!$C$56/$F$14 -> 5.802132282e-05 | E14: ='C01b'!$C$57/$F$14 -> 0.0007812553305 | F14: ='B02'!$E$5 -> 0.088 | G14: Wet
A15: Liquid Application, HED, PHED | B15: Worker | C15: ='C01c'!$C$55/$F$15 -> 0.001278409091 | D15: ='C01c'!$C$56/$F$15 -> 0.0005113636364 | E15: ='C01c'!$C$57/$F$15 -> 0.002556818182 | F15: ='B02'!$E$5 -> 0.088 | G15: Wet
A16: Dry Application, HED, Acute | B16: Worker | C16: ='C01d_Ac'!$C$55/$F$16 -> 0.00375 | D16: ='C01d_Ac'!$C$56/$F$16 -> 0.00075 | E16: ='C01d_Ac'!$C$57/$F$16 -> 0.0375 | F16: ='B02'!$E$4 -> 3.5 | G16: Dry
A17: Dry Application, HED, Chronic | B17: Worker | C17: ='C01d_Ch'!$C$55/$F$17 -> 0.1491477273 | D17: ='C01d_Ch'!$C$56/$F$17 -> 0.02982954545 | E17: ='C01d_Ch'!$C$57/$F$17 -> 1.491477273 | F17: ='B02'!$E$5 -> 0.088 | G17: Dry

Sheet E03
A1: Summary of Exposure Assessments for the General Public
A2: Application Rate: | B2: ='A01'!ApRt_C -> 0.105 | C2: lb a.i./acre | F2: E03bV6
A3: Scenario | B3: Receptor | C3: mg/kg/day or mg/kg/event | F3: Detail Worksheet
C4: Central | D4: Lower | E4: Upper | K4: Lower | L4: Central | M4: Upper | N4: Check
A5: Accidental Acute Exposures (dose in mg/kg/event)
A6: Direct Spray of Child, whole body | B6: Child | C6: =D01a!Dose_C -> 0.004149182847 | D6: =D01a!Dose_L -> 0.0009430281637 | E6: =D01a!Dose_U -> 0.00754369724 | F6: D01a | G6: Wet | J6: Spray: Child | K6: =IF(D6>0, D6, "") -> 0.0009430281637 | L6: =IF(ISERROR(C6-K6), "", C6-K6) -> 0.003206154683 | M6: =IF(ISERROR(E6-C6), "", E6-C6) -> 0.003394514393 | N6: =E6-SUM(K6:M6) -> 0
A7: Direct Spray of Woman, feet and lower legs | B7: Adult Female | C7: =D01b!Dose_C -> 0.0004168266594 | D7: =D01b!Dose_L -> 9.473655263e-05 | E7: =D01b!Dose_U -> 0.0007578393712 | F7: D01b | G7: Wet | J7: Spray: Woman | K7: =IF(D7>0, D7, "") -> 9.473655263e-05 | L7: =IF(ISERROR(C7-K7), "", C7-K7) -> 0.0003220901067 | M7: =IF(ISERROR(E7-C7), "", E7-C7) -> 0.0003410127119 | N7: =E7-SUM(K7:M7) -> 0
A8: Direct Consumption | B8: Child | C8: =D01c!Dose_C -> 1.272727273 | D8: =D01c!Dose_L -> 0.5090909091 | E8: =D01c!Dose_U -> 3.090909091 | F8: D01c | G8: Dry
A9: Water consumption (spill) | B9: Child | C9: ='D05'!Dose_C -> 0.01790526316 | D9: ='D05'!Dose_L -> 0.002184442105 | E9: ='D05'!Dose_U -> 0.05371578947 | F9: D05 | J9: Water: Child | K9: 0.002184442105 | L9: 0.01572082105 | M9: 0.03581052632 | N9: 0
A10: Fish consumption (spill) | B10: Adult Male | C10: =D08a!Dose_C -> 0.000537516 | D10: =D08a!Dose_L -> 0.0001075032 | E10: =D08a!Dose_U -> 0.001075032 | F10: D08a | J10: Fish: General | K10: 0.0001075032 | L10: 0.0004300128 | M10: 0.000537516 | N10: 0
A11: Fish consumption (spill) | B11: Subsistence Populations | C11: =D08b!Dose_C -> 0.00261954 | D11: =D08b!Dose_L -> 0.000523908 | E11: =D08b!Dose_U -> 0.00523908 | F11: D08b | J11: Fish: Subsist | K11: 0.000523908 | L11: 0.002095632 | M11: 0.00261954 | N11: 0
A12: Non-Accidental Acute Exposures (dose in mg/kg/event)
A13: Vegetation Contact, shorts and T-shirt | B13: Adult Female | C13: No Exposure Assessment | J13: Contact: Female | K13: =IF(D13>0, D13, "") ->  | L13: =IF(ISERROR(C13-K13), "", C13-K13) ->  | M13: =IF(ISERROR(E13-C13), "", E13-C13) ->  | N13: =E13-SUM(K13:M13) -> 0
A14: Contaminated Fruit | B14: Adult Female | C14: No Exposure Assessment | J14: Fruit: Female | N14: 0
A15: Contaminated Vegetation | B15: Adult Female | C15: No Exposure Assessment | J15: Veg: Female | N15: 0
A16: Swimming, one hour | B16: Adult Female | C16: ='D10'!Dose_C -> 2.046220312e-10 | D16: ='D10'!Dose_L -> 1.364146875e-18 | E16: ='D10'!Dose_U -> 3.815175e-09 | F16: D10 | J16: Swim: Female | K16: 1.364146875e-18 | L16: 2.046220299e-10 | M16: 3.610552969e-09 | N16: 0
A17: Water consumption | B17: Child | C17: ='D06'!Dose_C -> 0.0003236842105 | D17: ='D06'!Dose_L -> 5.778947368e-12 | E17: ='D06'!Dose_U -> 0.005092105263 | F17: D06 | J17: Water: Child | K17: 5.778947368e-12 | L17: 0.0003236842047 | M17: 0.004768421053 | N17: 0
A18: Fish consumption | B18: Adult Male | C18: =D09c!Dose_C -> 9.717e-06 | D18: =D09c!Dose_L -> 2.844e-13 | E18: =D09c!Dose_U -> 0.00010191 | F18: D09c | J18: Fish: Male | K18: 2.844e-13 | L18: 9.716999716e-06 | M18: 9.2193e-05 | N18: 0
A19: Fish consumption | B19: Subsistence Populations | C19: =D09d!Dose_C -> 4.7355e-05 | D19: =D09d!Dose_L -> 1.386e-12 | E19: =D09d!Dose_U -> 0.00049665 | F19: D09d | J19: Fish: Subsist | K19: 1.386e-12 | L19: 4.735499861e-05 | M19: 0.000449295 | N19: 0
A20: Chronic/Longer Term Exposures (dose in mg/kg/day)
A21: Contaminated Fruit | B21: Adult Female | C21: No Exposure Assessment | J21: Fruit: Female | K21: =IF(D21>0, D21, "") ->  | L21: =IF(ISERROR(C21-K21), "", C21-K21) ->  | M21: =IF(ISERROR(E21-C21), "", E21-C21) ->  | N21: =E21-SUM(K21:M21) -> 0
A22: Contaminated Vegetation | B22: Adult Female | C22: No Exposure Assessment | J22: Veg: Female | N22: 0
A23: Water consumption | B23: Adult Male | C23: ='D07'!Dose_C -> 5.4e-05 | D23: ='D07'!Dose_L -> 1.26e-12 | E23: ='D07'!Dose_U -> 0.000828 | F23: D07 | J23: Water: Male | K23: 1.26e-12 | L23: 5.399999874e-05 | M23: 0.000774 | N23: 0
A24: Fish consumption | B24: Adult Male | C24: =D09a!Dose_C -> 2.7e-07 | D24: =D09a!Dose_L -> 9e-15 | E24: =D09a!Dose_U -> 3.45e-06 | F24: D09a | J24: Fish: Male | K24: 9e-15 | L24: 2.69999991e-07 | M24: 3.18e-06 | N24: 0
A25: Fish consumption | B25: Subsistence Populations | C25: =D09b!Dose_C -> 2.187e-06 | D25: =D09b!Dose_L -> 7.29e-14 | E25: =D09b!Dose_U -> 2.7945e-05 | F25: D09b | J25: Fish: Subsist | K25: 7.29e-14 | L25: 2.186999927e-06 | M25: 2.5758e-05 | N25: 0

Sheet E04
A1: Summary of Hazard Quotients (Toxicity) for the General Public
A2: Application Rate: | B2: ='A01'!ApRt_C -> 0.105 | C2: lb a.i./acre | F2: E03bV6
A3: Scenario | B3: Receptor | C3: Hazard Quotients | F3: Toxicity Value
C4: Central | D4: Lower | E4: Upper | K4: Lower | L4: Central | M4: Upper | N4: Check
A5: Accidental Acute Exposures (dose in mg/kg/event)
A6: Direct Spray of Child, whole body | B6: Child | C6: =D01a!$C$37/$F$6 -> 0.001185480813 | D6: =D01a!$C$38/$F$6 -> 0.0002694366182 | E6: =D01a!$C$39/$F$6 -> 0.002155342069 | F6: ='B02'!$E$4 -> 3.5 | G6: Wet | J6: Spray: Child | K6: =IF(D6>0, D6, "") -> 0.0002694366182 | L6: =IF(ISERROR(C6-K6), "", C6-K6) -> 0.0009160441952 | M6: =IF(ISERROR(E6-C6), "", E6-C6) -> 0.0009698612552 | N6: =E6-SUM(K6:M6) -> 0
A7: Direct Spray of Woman, feet and lower legs | B7: Adult Female | C7: =D01b!$C$37/$F$7 -> 0.0001190933312 | D7: =D01b!$C$38/$F$7 -> 2.706758647e-05 | E7: =D01b!$C$39/$F$7 -> 0.0002165255346 | F7: ='B02'!$E$4 -> 3.5 | G7: Wet | J7: Spray: Woman | K7: =IF(D7>0, D7, "") -> 2.706758647e-05 | L7: =IF(ISERROR(C7-K7), "", C7-K7) -> 9.202574478e-05 | M7: =IF(ISERROR(E7-C7), "", E7-C7) -> 9.743220339e-05 | N7: =E7-SUM(K7:M7) -> 0
A8: Direct Consumption | B8: Child | C8: =D01c!$C$17/$F$8 -> 0.3636363636 | D8: =D01c!$C$18/$F$8 -> 0.1454545455 | E8: =D01c!$C$19/$F$8 -> 0.8831168831 | F8: ='B02'!$E$4 -> 3.5 | G8: Dry
A9: Water consumption (spill) | B9: Child | C9: ='D05'!$C$17/$F$9 -> 0.005115789474 | D9: ='D05'!$C$18/$F$9 -> 0.0006241263158 | E9: ='D05'!$C$19/$F$9 -> 0.01534736842 | F9: ='B02'!$E$4 -> 3.5 | J9: Water: Child | K9: 0.0006241263158 | L9: 0.004491663158 | M9: 0.01023157895 | N9: 0
A10: Fish consumption (spill) | B10: Adult Male | C10: =D08a!$C$31/$F$10 -> 0.000153576 | D10: =D08a!$C$32/$F$10 -> 3.07152e-05 | E10: =D08a!$C$33/$F$10 -> 0.000307152 | F10: ='B02'!$E$4 -> 3.5 | J10: Fish: General | K10: 3.07152e-05 | L10: 0.0001228608 | M10: 0.000153576 | N10: 0
A11: Fish consumption (spill) | B11: Subsistence Populations | C11: =D08b!$C$31/$F$11 -> 0.00074844 | D11: =D08b!$C$32/$F$11 -> 0.000149688 | E11: =D08b!$C$33/$F$11 -> 0.00149688 | F11: ='B02'!$E$4 -> 3.5 | J11: Fish: Subsist | K11: 0.000149688 | L11: 0.000598752 | M11: 0.00074844 | N11: 0
A12: Non-Accidental Acute Exposures (dose in mg/kg/event)
A13: Vegetation Contact, shorts and T-shirt | B13: Adult Female | C13: No exposure assessment. | J13: Contact: Female | K13: =IF(D13>0, D13, "") ->  | L13: =IF(ISERROR(C13-K13), "", C13-K13) ->  | M13: =IF(ISERROR(E13-C13), "", E13-C13) ->  | N13: =E13-SUM(K13:M13) -> 0
A14: Contaminated Fruit | B14: Adult Female | C14: No exposure assessment. | J14: Fruit: Female | N14: 0
A15: Contaminated Vegetation | B15: Adult Female | C15: No exposure assessment. | J15: Veg: Female | N15: 0
A16: Swimming, one hour | B16: Adult Female | C16: ='D10'!$C$29/$F$16 -> 5.84634375e-11 | D16: ='D10'!$C$30/$F$16 -> 3.8975625e-19 | E16: ='D10'!$C$31/$F$16 -> 1.09005e-09 | F16: ='B02'!$E$4 -> 3.5 | J16: Swim: Female | K16: 3.8975625e-19 | L16: 5.846343711e-11 | M16: 1.031586562e-09 | N16: 0
A17: Water consumption | B17: Child | C17: ='D06'!$C$17/$F$17 -> 9.248120301e-05 | D17: ='D06'!$C$18/$F$17 -> 1.65112782e-12 | E17: ='D06'!$C$19/$F$17 -> 0.001454887218 | F17: ='B02'!$E$4 -> 3.5 | J17: Water: Child | K17: 1.65112782e-12 | L17: 9.248120136e-05 | M17: 0.001362406015 | N17: 0
A18: Fish consumption | B18: Adult Male | C18: =D09c!$C$31/$F$18 -> 2.776285714e-06 | D18: =D09c!$C$32/$F$18 -> 8.125714286e-14 | E18: =D09c!$C$33/$F$18 -> 2.911714286e-05 | F18: ='B02'!$E$4 -> 3.5 | J18: Fish: Male | K18: 8.125714286e-14 | L18: 2.776285633e-06 | M18: 2.634085714e-05 | N18: 0
A19: Fish consumption | B19: Subsistence Populations | C19: =D09d!$C$31/$F$19 -> 1.353e-05 | D19: =D09d!$C$32/$F$19 -> 3.96e-13 | E19: =D09d!$C$33/$F$19 -> 0.0001419 | F19: ='B02'!$E$4 -> 3.5 | J19: Fish: Subsist | K19: 3.96e-13 | L19: 1.35299996e-05 | M19: 0.00012837 | N19: 0
A20: Chronic/Longer Term Exposures (dose in mg/kg/day)
A21: Contaminated Fruit | B21: Adult Female | C21: No exposure assessment. | J21: Fruit: Female | K21: =IF(D21>0, D21, "") ->  | L21: =IF(ISERROR(C21-K21), "", C21-K21) ->  | M21: =IF(ISERROR(E21-C21), "", E21-C21) ->  | N21: =E21-SUM(K21:M21) -> 0
A22: Contaminated Vegetation | B22: Adult Female | C22: No exposure assessment. | J22: Veg: Female | N22: 0
A23: Water consumption | B23: Adult Male | C23: ='D07'!$C$17/$F$23 -> 0.0006136363636 | D23: ='D07'!$C$18/$F$23 -> 1.431818182e-11 | E23: ='D07'!$C$19/$F$23 -> 0.009409090909 | F23: ='B02'!$E$5 -> 0.088 | J23: Water: Male | K23: 1.431818182e-11 | L23: 0.0006136363493 | M23: 0.008795454545 | N23: 0
A24: Fish consumption | B24: Adult Male | C24: =D09a!$C$31/$F$24 -> 3.068181818e-06 | D24: =D09a!$C$32/$F$24 -> 1.022727273e-13 | E24: =D09a!$C$33/$F$24 -> 3.920454545e-05 | F24: ='B02'!$E$5 -> 0.088 | J24: Fish: Male | K24: 1.022727273e-13 | L24: 3.068181716e-06 | M24: 3.613636364e-05 | N24: 0
A25: Fish consumption | B25: Subsistence Populations | C25: =D09b!$C$31/$F$25 -> 2.485227273e-05 | D25: =D09b!$C$32/$F$25 -> 8.284090909e-13 | E25: =D09b!$C$33/$F$25 -> 0.0003175568182 | F25: ='B02'!$E$5 -> 0.088 | J25: Fish: Subsist | K25: 8.284090909e-13 | L25: 2.48522719e-05 | M25: 0.0002927045455 | N25: 0

Sheet F01
A1: Consumption of Fixed Amount of Compound by a Mammal, large, acute exposure
A2: Short Title | B2: Direct Consumption | E2: DirConStump
A3: Receptor | B3: Mammal, large
A4: Duration | B4: Acute
A5: Material consumed | B5: Boxax as boron equivalents
A6: Parameter/Assumption | B6: Code / Range | C6: Equation/ Value | D6: Units | E6: Reference/Designation
A7: Body Weight | B7: BW | C7: 70 | D7: kg | E7: Scenario parameter
A8: Stump Application Rate | B8: StumpRate | C8: ='A01'!C$4 -> 0.000525 | D8: lb B/ft2 | E8: Worksheet A01
A9: Converation for lbs to mg. | B9: Conv1 | C9: 453592 | D9: mg/lb
A10: Mg B/ft2 | B10: mg/ft | C10: =C8*C9 -> 238.1358 | D10: mg/ft2 | E10: Eq
A11: Area (ft2) cleared by 70 kg deer | B11: Area
B12: Central | C12: 1 | D12: ft2 | E12: Scenario parameter
B13: Lower | C13: 0.5
B14: Upper | C14: 2
A15: Body Weight of deer | B15: BWDeer | C15: 70 | D15: kg | E15: Scenario parameter
A16: Area (ft2) cleared | B16: Area
B17: Central | C17: =C12*($C$7/$C$15) -> 1 | D17: ft2 | E17: Eq
B18: Lower | C18: =C13*($C$7/$C$15) -> 0.5 | E18: Eq
B19: Upper | C19: 2 | E19: Eq
A20: Amount of boronl consumed | B20: Amnt
B21: Central | C21: =$C$10 *C17 -> 238.1358 | D21: mg B | E21: Eq
B22: Lower | C22: =$C$10 *C18 -> 119.0679 | E22: Eq
B23: Upper | C23: 476.2716 | E23: Eq
A24: Toxic Equivalency Factor for formulation: (See risk assessment if this has a value other than 1.) | B24: TEF
B25: Central | C25: ='A01'!C$42 -> 1 | D25: Unitless | E25: Worksheet A01
B26: Lower | C26: ='A01'!C$43 -> 1 | E26: Worksheet A01
B27: Upper | C27: ='A01'!C$44 -> 1 | E27: Worksheet A01
A28: Dose | B28: Dose | C28: Conc × Amnt ×TEF
B29: Central | C29: =C21*C25/C$7 -> 3.40194 | D29: mg B/kg bw | E29: Eq
B30: Lower | C30: =C22*C26/C$7 -> 1.70097 | E30: Eq
B31: Upper | C31: =C23*C27/C$7 -> 6.80388 | E31: Eq

Sheet F02
A1: Consumption of Fixed Amount of Compound by a Bird, large, acute exposure
A2: Short Title | B2: Direct Consumption | E2: DirConStump
A3: Receptor | B3: Bird, large
A4: Duration | B4: Acute
A5: Material consumed | B5: Boxax as boron equivalents
A6: Parameter/Assumption | B6: Code / Range | C6: Equation/ Value | D6: Units | E6: Reference/Designation
A7: Body Weight | B7: BW | C7: 4 | D7: kg | E7: Scenario parameter
A8: Stump Application Rate | B8: StumpRate | C8: ='A01'!C$4 -> 0.000525 | D8: lb B/ft2 | E8: Worksheet A01
A9: Converation for lbs to mg. | B9: Conv1 | C9: 453592 | D9: mg/lb
A10: Mg B/ft2 | B10: mg/ft | C10: =C8*C9 -> 238.1358 | D10: mg/ft2 | E10: Eq
A11: Area (ft2) cleared by 70 kg deer | B11: Area
B12: Central | C12: 1 | D12: ft2 | E12: Scenario parameter
B13: Lower | C13: 0.5
B14: Upper | C14: 2
A15: Body Weight of deer | B15: BWDeer | C15: 70 | D15: kg | E15: Scenario parameter
A16: Area (ft2) cleared | B16: Area
B17: Central | C17: =C12*($C$7/$C$15) -> 0.05714285714 | D17: ft2 | E17: Eq
B18: Lower | C18: =C13*($C$7/$C$15) -> 0.02857142857 | E18: Eq
B19: Upper | C19: 0.1142857143 | E19: Eq
A20: Amount of boronl consumed | B20: Amnt
B21: Central | C21: =$C$10 *C17 -> 13.60776 | D21: mg B | E21: Eq
B22: Lower | C22: =$C$10 *C18 -> 6.80388 | E22: Eq
B23: Upper | C23: 27.21552 | E23: Eq
A24: Toxic Equivalency Factor for formulation: (See risk assessment if this has a value other than 1.) | B24: TEF
B25: Central | C25: ='A01'!C$42 -> 1 | D25: Unitless | E25: Worksheet A01
B26: Lower | C26: ='A01'!C$43 -> 1 | E26: Worksheet A01
B27: Upper | C27: ='A01'!C$44 -> 1 | E27: Worksheet A01
A28: Dose | B28: Dose | C28: Conc × Amnt ×TEF
B29: Central | C29: =C21*C25/C$7 -> 3.40194 | D29: mg B/kg bw | E29: Eq
B30: Lower | C30: =C22*C26/C$7 -> 1.70097 | E30: Eq
B31: Upper | C31: =C23*C27/C$7 -> 6.80388 | E31: Eq

Sheet F03
A1: Consumption of Fixed Amount of Compound by a Mammal, small, acute exposure
A2: Short Title | B2: Direct Consumption | E2: DirConStump
A3: Receptor | B3: Mammal, small
A4: Duration | B4: Acute
A5: Material consumed | B5: Boxax as boron equivalents
A6: Parameter/Assumption | B6: Code / Range | C6: Equation/ Value | D6: Units | E6: Reference/Designation
A7: Body Weight | B7: BW | C7: 0.02 | D7: kg | E7: Scenario parameter
A8: Stump Application Rate | B8: StumpRate | C8: ='A01'!C$4 -> 0.000525 | D8: lb B/ft2 | E8: Worksheet A01
A9: Converation for lbs to mg. | B9: Conv1 | C9: 453592 | D9: mg/lb
A10: Mg B/ft2 | B10: mg/ft | C10: =C8*C9 -> 238.1358 | D10: mg/ft2 | E10: Eq
A11: Area (ft2) cleared by 70 kg deer | B11: Area
B12: Central | C12: 1 | D12: ft2 | E12: Scenario parameter
B13: Lower | C13: 0.5
B14: Upper | C14: 2
A15: Body Weight of deer | B15: BWDeer | C15: 70 | D15: kg | E15: Scenario parameter
A16: Area (ft2) cleared | B16: Area
B17: Central | C17: =C12*($C$7/$C$15) -> 0.0002857142857 | D17: ft2 | E17: Eq
B18: Lower | C18: =C13*($C$7/$C$15) -> 0.0001428571429 | E18: Eq
B19: Upper | C19: 0.0005714285714 | E19: Eq
A20: Amount of boronl consumed | B20: Amnt
B21: Central | C21: =$C$10 *C17 -> 0.0680388 | D21: mg B | E21: Eq
B22: Lower | C22: =$C$10 *C18 -> 0.0340194 | E22: Eq
B23: Upper | C23: 0.1360776 | E23: Eq
A24: Toxic Equivalency Factor for formulation: (See risk assessment if this has a value other than 1.) | B24: TEF
B25: Central | C25: ='A01'!C$42 -> 1 | D25: Unitless | E25: Worksheet A01
B26: Lower | C26: ='A01'!C$43 -> 1 | E26: Worksheet A01
B27: Upper | C27: ='A01'!C$44 -> 1 | E27: Worksheet A01
A28: Dose | B28: Dose | C28: Conc × Amnt ×TEF
B29: Central | C29: =C21*C25/C$7 -> 3.40194 | D29: mg B/kg bw | E29: Eq
B30: Lower | C30: =C22*C26/C$7 -> 1.70097 | E30: Eq
B31: Upper | C31: =C23*C27/C$7 -> 6.80388 | E31: Eq

Sheet F04
A1: Consumption of Fixed Amount of Compound by a Bird, small, acute exposure
A2: Short Title | B2: Direct Consumption | E2: DirConStump
A3: Receptor | B3: Bird, small
A4: Duration | B4: Acute
A5: Material consumed | B5: Boxax as boron equivalents
A6: Parameter/Assumption | B6: Code / Range | C6: Equation/ Value | D6: Units | E6: Reference/Designation
A7: Body Weight | B7: BW | C7: 0.01 | D7: kg | E7: Scenario parameter
A8: Stump Application Rate | B8: StumpRate | C8: ='A01'!C$4 -> 0.000525 | D8: lb B/ft2 | E8: Worksheet A01
A9: Converation for lbs to mg. | B9: Conv1 | C9: 453592 | D9: mg/lb
A10: Mg B/ft2 | B10: mg/ft | C10: =C8*C9 -> 238.1358 | D10: mg/ft2 | E10: Eq
A11: Area (ft2) cleared by 70 kg deer | B11: Area
B12: Central | C12: 1 | D12: ft2 | E12: Scenario parameter
B13: Lower | C13: 0.5
B14: Upper | C14: 2
A15: Body Weight of deer | B15: BWDeer | C15: 70 | D15: kg | E15: Scenario parameter
A16: Area (ft2) cleared | B16: Area
B17: Central | C17: =C12*($C$7/$C$15) -> 0.0001428571429 | D17: ft2 | E17: Eq
B18: Lower | C18: =C13*($C$7/$C$15) -> 7.142857143e-05 | E18: Eq
B19: Upper | C19: 0.0002857142857 | E19: Eq
A20: Amount of boronl consumed | B20: Amnt
B21: Central | C21: =$C$10 *C17 -> 0.0340194 | D21: mg B | E21: Eq
B22: Lower | C22: =$C$10 *C18 -> 0.0170097 | E22: Eq
B23: Upper | C23: 0.0680388 | E23: Eq
A24: Toxic Equivalency Factor for formulation: (See risk assessment if this has a value other than 1.) | B24: TEF
B25: Central | C25: ='A01'!C$42 -> 1 | D25: Unitless | E25: Worksheet A01
B26: Lower | C26: ='A01'!C$43 -> 1 | E26: Worksheet A01
B27: Upper | C27: ='A01'!C$44 -> 1 | E27: Worksheet A01
A28: Dose | B28: Dose | C28: Conc × Amnt ×TEF
B29: Central | C29: =C21*C25/C$7 -> 3.40194 | D29: mg B/kg bw | E29: Eq
B30: Lower | C30: =C22*C26/C$7 -> 1.70097 | E30: Eq
B31: Upper | C31: =C23*C27/C$7 -> 6.80388 | E31: Eq

Sheet F05a
A1: Consumption of contaminated water by Mammal, small, Accidental Spill
A2: Short Title | B2: Accidental Spill | E2: WatAlloV6
A3: Receptor | B3: Mammal, small
A4: Duration | B4: Acute | E4: Scenario parameter
A5: Parameter/Assumption | B5: Code / Range | C5: Equation/ Value | D5: Units | E5: Reference/Designation
A6: Concentration in water | B6: ConcWat
B7: Central | C7: =B04b!Acute_C -> 0.23814 | D7: mg/L | E7: ='B04b'!Acute_C
B8: Lower | C8: =B04b!Acute_L -> 0.047628 | E8: ='B04b'!Acute_L
B9: Upper | C9: =B04b!Acute_U -> 0.47628 | E9: ='B04b'!Acute_U
A10: Receptor
A11: Body weight | B11: BW | C11: =A02b!$C$71 -> 0.02 | D11: kg | E11: Default
A12: Allometric coefficients forwater consumption per day in liters and BW in kilograms
B13: alpha | C13: =A02b!$C$79 -> 0.099 | E13: U.S. EPA/ORD 1993
B14: beta | C14: =A02b!$C$80 -> 0.9 | E14: U.S. EPA/ORD 1993
A15: Amount of water consumed per day | C15: Amnt = alpha BW beta
B16: Amnt | C16: =C13*(C11^C14) -> 0.002927940121 | D16: liters | E16: Eq
A17: Absorbed Dose | B17: Dose | C17: ConcWat × Amnt ÷ BW
B18: Central | C18: =C7*C$16/C$11 -> 0.03486298302 | D18: mg/kg | E18: Eq
B19: Lower | C19: =C8*C$16/C$11 -> 0.006972596603 | D19: mg/kg | E19: Eq
B20: Upper | C20: =C9*C$16/C$11 -> 0.06972596603 | D20: mg/kg | E20: Eq

Sheet F05b
A1: Consumption of contaminated water by Mammal, small, Peak Concentrations
A2: Short Title | B2: Peak Concentrations | E2: WatAlloV6
A3: Receptor | B3: Mammal, small
A4: Duration | B4: Acute | E4: Scenario parameter
A5: Parameter/Assumption | B5: Code / Range | C5: Equation/ Value | D5: Units | E5: Reference/Designation
A6: Concentration in water | B6: ConcWat
B7: Central | C7: =B04a!Acute_C -> 0.004305 | D7: mg/L | E7: ='B04a'!Acute_C
B8: Lower | C8: =B04a!Acute_L -> 1.26e-10 | E8: ='B04a'!Acute_L
B9: Upper | C9: =B04a!Acute_U -> 0.04515 | E9: ='B04a'!Acute_U
A10: Receptor
A11: Body weight | B11: BW | C11: =A02b!$C$71 -> 0.02 | D11: kg | E11: Default
A12: Allometric coefficients forwater consumption per day in liters and BW in kilograms
B13: alpha | C13: =A02b!$C$79 -> 0.099 | E13: U.S. EPA/ORD 1993
B14: beta | C14: =A02b!$C$80 -> 0.9 | E14: U.S. EPA/ORD 1993
A15: Amount of water consumed per day | C15: Amnt = alpha BW beta
B16: Amnt | C16: =C13*(C11^C14) -> 0.002927940121 | D16: liters | E16: Eq
A17: Absorbed Dose | B17: Dose | C17: ConcWat × Amnt ÷ BW
B18: Central | C18: =C7*C$16/C$11 -> 0.0006302391109 | D18: mg/kg | E18: Eq
B19: Lower | C19: =C8*C$16/C$11 -> 1.844602276e-11 | D19: mg/kg | E19: Eq
B20: Upper | C20: =C9*C$16/C$11 -> 0.006609824822 | D20: mg/kg | E20: Eq

Sheet F05c
A1: Consumption of contaminated water by Mammal, small, Longer-term Concentrations
A2: Short Title | B2: Longer-term Concentrations | E2: WatAlloV6
A3: Receptor | B3: Mammal, small
A4: Duration | B4: Chronic | E4: Scenario parameter
A5: Parameter/Assumption | B5: Code / Range | C5: Equation/ Value | D5: Units | E5: Reference/Designation
A6: Concentration in water | B6: ConcWat
B7: Central | C7: =B04a!Chronic_C -> 0.00189 | D7: mg/L | E7: ='B04a'!Chronic_C
B8: Lower | C8: =B04a!Chronic_L -> 6.3e-11 | E8: ='B04a'!Chronic_L
B9: Upper | C9: =B04a!Chronic_U -> 0.02415 | E9: ='B04a'!Chronic_U
A10: Receptor
A11: Body weight | B11: BW | C11: =A02b!$C$71 -> 0.02 | D11: kg | E11: Default
A12: Allometric coefficients forwater consumption per day in liters and BW in kilograms
B13: alpha | C13: =A02b!$C$79 -> 0.099 | E13: U.S. EPA/ORD 1993
B14: beta | C14: =A02b!$C$80 -> 0.9 | E14: U.S. EPA/ORD 1993
A15: Amount of water consumed per day | C15: Amnt = alpha BW beta
B16: Amnt | C16: =C13*(C11^C14) -> 0.002927940121 | D16: liters | E16: Eq
A17: Absorbed Dose | B17: Dose | C17: ConcWat × Amnt ÷ BW
B18: Central | C18: =C7*C$16/C$11 -> 0.0002766903414 | D18: mg/kg | E18: Eq
B19: Lower | C19: =C8*C$16/C$11 -> 9.22301138e-12 | D19: mg/kg | E19: Eq
B20: Upper | C20: =C9*C$16/C$11 -> 0.003535487696 | D20: mg/kg | E20: Eq

Sheet F06a
A1: Consumption of contaminated water by Bird, small, Accidental Spill
A2: Short Title | B2: Accidental Spill | E2: WatAlloV6
A3: Receptor | B3: Bird, small
A4: Duration | B4: Acute | E4: Scenario parameter
A5: Parameter/Assumption | B5: Code / Range | C5: Equation/ Value | D5: Units | E5: Reference/Designation
A6: Concentration in water | B6: ConcWat
B7: Central | C7: =B04b!Acute_C -> 0.23814 | D7: mg/L | E7: ='B04b'!Acute_C
B8: Lower | C8: =B04b!Acute_L -> 0.047628 | E8: ='B04b'!Acute_L
B9: Upper | C9: =B04b!Acute_U -> 0.47628 | E9: ='B04b'!Acute_U
A10: Receptor
A11: Body weight | B11: BW | C11: =A02b!$C$31 -> 0.01 | D11: kg | E11: Default
A12: Allometric coefficients forwater consumption per day in liters and BW in kilograms
B13: alpha | C13: =A02b!$C$34 -> 0.059 | E13: U.S. EPA/ORD 1993
B14: beta | C14: =A02b!$C$35 -> 0.67 | E14: U.S. EPA/ORD 1993
A15: Amount of water consumed per day | C15: Amnt = alpha BW beta
B16: Amnt | C16: =C13*(C11^C14) -> 0.002696820319 | D16: liters | E16: Eq
A17: Absorbed Dose | B17: Dose | C17: ConcWat × Amnt ÷ BW
B18: Central | C18: =C7*C$16/C$11 -> 0.06422207907 | D18: mg/kg | E18: Eq
B19: Lower | C19: =C8*C$16/C$11 -> 0.01284441581 | D19: mg/kg | E19: Eq
B20: Upper | C20: =C9*C$16/C$11 -> 0.1284441581 | D20: mg/kg | E20: Eq

Sheet F06b
A1: Consumption of contaminated water by Bird, small, Peak Concentrations
A2: Short Title | B2: Peak Concentrations | E2: WatAlloV6
A3: Receptor | B3: Bird, small
A4: Duration | B4: Acute | E4: Scenario parameter
A5: Parameter/Assumption | B5: Code / Range | C5: Equation/ Value | D5: Units | E5: Reference/Designation
A6: Concentration in water | B6: ConcWat
B7: Central | C7: =B04a!Acute_C -> 0.004305 | D7: mg/L | E7: ='B04a'!Acute_C
B8: Lower | C8: =B04a!Acute_L -> 1.26e-10 | E8: ='B04a'!Acute_L
B9: Upper | C9: =B04a!Acute_U -> 0.04515 | E9: ='B04a'!Acute_U
A10: Receptor
A11: Body weight | B11: BW | C11: =A02b!$C$31 -> 0.01 | D11: kg | E11: Default
A12: Allometric coefficients forwater consumption per day in liters and BW in kilograms
B13: alpha | C13: =A02b!$C$34 -> 0.059 | E13: U.S. EPA/ORD 1993
B14: beta | C14: =A02b!$C$35 -> 0.67 | E14: U.S. EPA/ORD 1993
A15: Amount of water consumed per day | C15: Amnt = alpha BW beta
B16: Amnt | C16: =C13*(C11^C14) -> 0.002696820319 | D16: liters | E16: Eq
A17: Absorbed Dose | B17: Dose | C17: ConcWat × Amnt ÷ BW
B18: Central | C18: =C7*C$16/C$11 -> 0.001160981147 | D18: mg/kg | E18: Eq
B19: Lower | C19: =C8*C$16/C$11 -> 3.397993602e-11 | D19: mg/kg | E19: Eq
B20: Upper | C20: =C9*C$16/C$11 -> 0.01217614374 | D20: mg/kg | E20: Eq

Sheet F06c
A1: Consumption of contaminated water by Bird, small, Longer-term Concentrations
A2: Short Title | B2: Longer-term Concentrations | E2: WatAlloV6
A3: Receptor | B3: Bird, small
A4: Duration | B4: Chronic | E4: Scenario parameter
A5: Parameter/Assumption | B5: Code / Range | C5: Equation/ Value | D5: Units | E5: Reference/Designation
A6: Concentration in water | B6: ConcWat
B7: Central | C7: =B04a!Chronic_C -> 0.00189 | D7: mg/L | E7: ='B04a'!Chronic_C
B8: Lower | C8: =B04a!Chronic_L -> 6.3e-11 | E8: ='B04a'!Chronic_L
B9: Upper | C9: =B04a!Chronic_U -> 0.02415 | E9: ='B04a'!Chronic_U
A10: Receptor
A11: Body weight | B11: BW | C11: =A02b!$C$31 -> 0.01 | D11: kg | E11: Default
A12: Allometric coefficients forwater consumption per day in liters and BW in kilograms
B13: alpha | C13: =A02b!$C$34 -> 0.059 | E13: U.S. EPA/ORD 1993
B14: beta | C14: =A02b!$C$35 -> 0.67 | E14: U.S. EPA/ORD 1993
A15: Amount of water consumed per day | C15: Amnt = alpha BW beta
B16: Amnt | C16: =C13*(C11^C14) -> 0.002696820319 | D16: liters | E16: Eq
A17: Absorbed Dose | B17: Dose | C17: ConcWat × Amnt ÷ BW
B18: Central | C18: =C7*C$16/C$11 -> 0.0005096990402 | D18: mg/kg | E18: Eq
B19: Lower | C19: =C8*C$16/C$11 -> 1.698996801e-11 | D19: mg/kg | E19: Eq
B20: Upper | C20: =C9*C$16/C$11 -> 0.00651282107 | D20: mg/kg | E20: Eq

Sheet F07a
A1: Acute scenario for the consumption of Contaminated Fish (Accidental Spill) by Mammal, carnivorous
A2: Short Title | B2: Fish consumption, accidental spill | E2: FishKcalV6
A3: Predator | B3: Mammal, carnivorous
A4: Food Item (Prey) | B4: Fish
A5: Duration | B5: Acute | E5: Scenario parameter
A6: Parameter/Assumption | B6: Code / Range | C6: Equation/ Value | D6: Units | E6: Reference/Designation
A7: Water
A8: Concentration in water | B8: ConcWat
B9: Central | C9: =B04b!Acute_C -> 0.23814 | D9: mg/L | E9: ='B04b'!Acute_C
B10: Lower | C10: =B04b!Acute_L -> 0.047628 | E10: ='B04b'!Acute_L
B11: Upper | C11: =B04b!Acute_U -> 0.47628 | E11: ='B04b'!Acute_U
A12: Fish
A13: Bioconcentration factor | B13: BCF
B14: Central | C14: ='B01'!$C$6 -> 1 | D14: L/kg | E14: Section 3.2.3.5
B15: Lower | C15: ='B01'!$C$6 -> 1 | E15: Section 3.2.3.5
B16: Upper | C16: ='B01'!$C$6 -> 1 | E16: Section 3.2.3.5
A17: Concentration in fish | B17: ConcFish | C17: ConcWat × BCF
B18: Central | C18: =C9*C14 -> 0.23814 | D18: mg/kg | E18: Eq
B19: Lower | C19: =C10*C15 -> 0.047628 | E19: Eq
B20: Upper | C20: =C11*C16 -> 0.47628 | E20: Eq
A21: Receptor
A22: Body weight | B22: BW | C22: =A02b!$C$47 -> 5 | D22: kg | E22: U.S. EPA/ORD 1993
A23: Allometric coefficients for caloric requirement per day in kilocalories and BW in grams
B24: alpha | C24: =A02b!$C$48 -> 0.6167 | E24: U.S. EPA/ORD 1993
B25: beta | C25: =A02b!$C$49 -> 0.862 | E25: U.S. EPA/ORD 1993
A26: Caloric requirement per day | B26: KR | C26: =C24*(C22*1000)^C25 -> 951.8885266 | D26: kcal/day | E26: Eq
A27: Caloric content of commodity (dry weight) | B27: KCD | C27: ='A03'!$E$59 -> 4.47 | D27: kcal/gdw [Note 1] | E27: U.S. EPA/ORD 1993
A28: Food consumed per day (dry weight) | B28: AmntDry | C28: = KR ÷ KCD
C29: =C26/C27 -> 212.9504534 | D29: gdry/day | E29: Eq
A30: Water content of vegetation as a proportion | B30: PropWater | C30: ='A03'!$E$60 -> 0.7 | D30: gwater/gfood | E30: Ali et al. 2005
A31: Dry weight content of vegetation as a proportion | B31: PropDry | C31: = 1-PropWater
C32: =1-C30 -> 0.3 | D32: gdry/gfood | E32: Eq
A33: Amount of fish consumed per day, wet weight | B33: AmntFish | C33: = (AmntDry ÷ PropDry) ÷ (1000g/kg)
B34: Central | C34: =(C29/C32)/1000 -> 0.7098348446 | D34: kgfood/day | E34: Eq
B35: Lower | C35: =C34*0.3 -> 0.2129504534 | D35: Note 1 | E35: Eq
B36: Upper | C36: =C34*1.7 -> 1.206719236 | D36: Note 1 | E36: Eq
A37: Proportion of diet that is contaminated | B37: Prop
B38: Central | C38: 0.3 | D38: Unitless | E38: Scenario parameter
B39: Lower | C39: 0.1 | E39: Scenario parameter
B40: Upper | C40: 1 | E40: Scenario parameter
A41: Dose
A42: Toxic Equivalency Factor for formulation: (See risk assessment if this has a value other than 1.) | B42: TEF
B43: Central | C43: ='A01'!C$42 -> 1 | D43: Unitless | E43: Worksheet A01
B44: Lower | C44: ='A01'!C$43 -> 1 | D44: Note 2 | E44: Worksheet A01
B45: Upper | C45: ='A01'!C$44 -> 1 | D45: Note 2 | E45: Worksheet A01
A46: Dose | B46: Dose | C46: = ConcFish × AmntFish × Prop ÷ BW
B47: Central | C47: =C18*C34*C38/C$22 -> 0.01014240419 | D47: mg/kg | E47: Eq
B48: Lower | C48: =C19*C35*C39/C$22 -> 0.0002028480839 | D48: mg/kg | E48: Eq
B49: Upper | C49: 0.1149472475 | D49: mg/kg | E49: Eq
E50: FishKcalV6

Sheet F07b
A1: Acute scenario for the consumption of Contaminated Fish (Peak) by Mammal, carnivorous
A2: Short Title | B2: Fish consumption, accidental spill | E2: FishKcalV6
A3: Predator | B3: Mammal, carnivorous
A4: Food Item (Prey) | B4: Fish
A5: Duration | B5: Acute | E5: Scenario parameter
A6: Parameter/Assumption | B6: Code / Range | C6: Equation/ Value | D6: Units | E6: Reference/Designation
A7: Water
A8: Concentration in water | B8: ConcWat
B9: Central | C9: =B04a!Acute_C -> 0.004305 | D9: mg/L | E9: ='B04a'!Acute_C
B10: Lower | C10: =B04a!Acute_L -> 1.26e-10 | E10: ='B04a'!Acute_L
B11: Upper | C11: =B04a!Acute_U -> 0.04515 | E11: ='B04a'!Acute_U
A12: Fish
A13: Bioconcentration factor | B13: BCF
B14: Central | C14: ='B01'!$C$6 -> 1 | D14: L/kg | E14: Section 3.2.3.5
B15: Lower | C15: ='B01'!$C$6 -> 1 | E15: Section 3.2.3.5
B16: Upper | C16: ='B01'!$C$6 -> 1 | E16: Section 3.2.3.5
A17: Concentration in fish | B17: ConcFish | C17: ConcWat × BCF
B18: Central | C18: =C9*C14 -> 0.004305 | D18: mg/kg | E18: Eq
B19: Lower | C19: =C10*C15 -> 1.26e-10 | E19: Eq
B20: Upper | C20: =C11*C16 -> 0.04515 | E20: Eq
A21: Receptor
A22: Body weight | B22: BW | C22: =A02b!$C$47 -> 5 | D22: kg | E22: U.S. EPA/ORD 1993
A23: Allometric coefficients for caloric requirement per day in kilocalories and BW in grams
B24: alpha | C24: =A02b!$C$48 -> 0.6167 | E24: U.S. EPA/ORD 1993
B25: beta | C25: =A02b!$C$49 -> 0.862 | E25: U.S. EPA/ORD 1993
A26: Caloric requirement per day | B26: KR | C26: =C24*(C22*1000)^C25 -> 951.8885266 | D26: kcal/day | E26: Eq
A27: Caloric content of commodity (dry weight) | B27: KCD | C27: ='A03'!$E$59 -> 4.47 | D27: kcal/gdw [Note 1] | E27: U.S. EPA/ORD 1993
A28: Food consumed per day (dry weight) | B28: AmntDry | C28: = KR ÷ KCD
C29: =C26/C27 -> 212.9504534 | D29: gdry/day | E29: Eq
A30: Water content of vegetation as a proportion | B30: PropWater | C30: ='A03'!$E$60 -> 0.7 | D30: gwater/gfood | E30: Ali et al. 2005
A31: Dry weight content of vegetation as a proportion | B31: PropDry | C31: = 1-PropWater
C32: =1-C30 -> 0.3 | D32: gdry/gfood | E32: Eq
A33: Amount of fish consumed per day, wet weight | B33: AmntFish | C33: = (AmntDry ÷ PropDry) ÷ (1000g/kg)
B34: Central | C34: =(C29/C32)/1000 -> 0.7098348446 | D34: kgfood/day | E34: Eq
B35: Lower | C35: =C34*0.3 -> 0.2129504534 | D35: Note 1 | E35: Eq
B36: Upper | C36: =C34*1.7 -> 1.206719236 | D36: Note 1 | E36: Eq
A37: Proportion of diet that is contaminated | B37: Prop
B38: Central | C38: 0.3 | D38: Unitless | E38: Scenario parameter
B39: Lower | C39: 0.1 | E39: Scenario parameter
B40: Upper | C40: 1 | E40: Scenario parameter
A41: Dose
A42: Toxic Equivalency Factor for formulation: (See risk assessment if this has a value other than 1.) | B42: TEF
B43: Central | C43: ='A01'!C$42 -> 1 | D43: Unitless | E43: Worksheet A01
B44: Lower | C44: ='A01'!C$43 -> 1 | D44: Note 2 | E44: Worksheet A01
B45: Upper | C45: ='A01'!C$44 -> 1 | D45: Note 2 | E45: Worksheet A01
A46: Dose | B46: Dose | C46: = ConcFish × AmntFish × Prop ÷ BW
B47: Central | C47: =C18*C34*C38/C$22 -> 0.0001833503404 | D47: mg/kg | E47: Eq
B48: Lower | C48: =C19*C35*C39/C$22 -> 5.366351425e-13 | D48: mg/kg | E48: Eq
B49: Upper | C49: 0.0108966747 | D49: mg/kg | E49: Eq
E50: FishKcalV6

Sheet F07c
A1: Chronic scenario for the consumption of Contaminated Fish (Longer-term) by Mammal, carnivorous
A2: Short Title | B2: Fish consumption, accidental spill | E2: FishKcalV6
A3: Predator | B3: Mammal, carnivorous
A4: Food Item (Prey) | B4: Fish
A5: Duration | B5: Chronic | E5: Scenario parameter
A6: Parameter/Assumption | B6: Code / Range | C6: Equation/ Value | D6: Units | E6: Reference/Designation
A7: Water
A8: Concentration in water | B8: ConcWat
B9: Central | C9: =B04a!Chronic_C -> 0.00189 | D9: mg/L | E9: ='B04a'!Chronic_C
B10: Lower | C10: =B04a!Chronic_L -> 6.3e-11 | E10: ='B04a'!Chronic_L
B11: Upper | C11: =B04a!Chronic_U -> 0.02415 | E11: ='B04a'!Chronic_U
A12: Fish
A13: Bioconcentration factor | B13: BCF
B14: Central | C14: ='B01'!$C$6 -> 1 | D14: L/kg | E14: Section 3.2.3.5
B15: Lower | C15: ='B01'!$C$6 -> 1 | E15: Section 3.2.3.5
B16: Upper | C16: ='B01'!$C$6 -> 1 | E16: Section 3.2.3.5
A17: Concentration in fish | B17: ConcFish | C17: ConcWat × BCF
B18: Central | C18: =C9*C14 -> 0.00189 | D18: mg/kg | E18: Eq
B19: Lower | C19: =C10*C15 -> 6.3e-11 | E19: Eq
B20: Upper | C20: =C11*C16 -> 0.02415 | E20: Eq
A21: Receptor
A22: Body weight | B22: BW | C22: =A02b!$C$47 -> 5 | D22: kg | E22: U.S. EPA/ORD 1993
A23: Allometric coefficients for caloric requirement per day in kilocalories and BW in grams
B24: alpha | C24: =A02b!$C$48 -> 0.6167 | E24: U.S. EPA/ORD 1993
B25: beta | C25: =A02b!$C$49 -> 0.862 | E25: U.S. EPA/ORD 1993
A26: Caloric requirement per day | B26: KR | C26: =C24*(C22*1000)^C25 -> 951.8885266 | D26: kcal/day | E26: Eq
A27: Caloric content of commodity (dry weight) | B27: KCD | C27: ='A03'!$E$59 -> 4.47 | D27: kcal/gdw [Note 1] | E27: U.S. EPA/ORD 1993
A28: Food consumed per day (dry weight) | B28: AmntDry | C28: = KR ÷ KCD
C29: =C26/C27 -> 212.9504534 | D29: gdry/day | E29: Eq
A30: Water content of vegetation as a proportion | B30: PropWater | C30: ='A03'!$E$60 -> 0.7 | D30: gwater/gfood | E30: Ali et al. 2005
A31: Dry weight content of vegetation as a proportion | B31: PropDry | C31: = 1-PropWater
C32: =1-C30 -> 0.3 | D32: gdry/gfood | E32: Eq
A33: Amount of fish consumed per day, wet weight | B33: AmntFish | C33: = (AmntDry ÷ PropDry) ÷ (1000g/kg)
B34: Central | C34: =(C29/C32)/1000 -> 0.7098348446 | D34: kgfood/day | E34: Eq
B35: Lower | C35: =C34*0.3 -> 0.2129504534 | D35: Note 1 | E35: Eq
B36: Upper | C36: =C34*1.7 -> 1.206719236 | D36: Note 1 | E36: Eq
A37: Proportion of diet that is contaminated | B37: Prop
B38: Central | C38: 0.3 | D38: Unitless | E38: Scenario parameter
B39: Lower | C39: 0.1 | E39: Scenario parameter
B40: Upper | C40: 1 | E40: Scenario parameter
A41: Dose
A42: Toxic Equivalency Factor for formulation: (See risk assessment if this has a value other than 1.) | B42: TEF
B43: Central | C43: ='A01'!C$42 -> 1 | D43: Unitless | E43: Worksheet A01
B44: Lower | C44: ='A01'!C$43 -> 1 | D44: Note 2 | E44: Worksheet A01
B45: Upper | C45: ='A01'!C$44 -> 1 | D45: Note 2 | E45: Worksheet A01
A46: Dose | B46: Dose | C46: = ConcFish × AmntFish × Prop ÷ BW
B47: Central | C47: =C18*C34*C38/C$22 -> 8.049527138e-05 | D47: mg/kg | E47: Eq
B48: Lower | C48: =C19*C35*C39/C$22 -> 2.683175713e-13 | D48: mg/kg | E48: Eq
B49: Upper | C49: 0.005828453909 | D49: mg/kg | E49: Eq
E50: FishKcalV6

Sheet F08a
A1: Acute scenario for the consumption of Contaminated Fish (Accidental Spill) by Bird, piscivorous
A2: Short Title | B2: Fish consumption, accidental spill | E2: FishKcalV6
A3: Predator | B3: Bird, piscivorous
A4: Food Item (Prey) | B4: Fish
A5: Duration | B5: Acute | E5: Scenario parameter
A6: Parameter/Assumption | B6: Code / Range | C6: Equation/ Value | D6: Units | E6: Reference/Designation
A7: Water
A8: Concentration in water | B8: ConcWat
B9: Central | C9: =B04b!Acute_C -> 0.23814 | D9: mg/L | E9: ='B04b'!Acute_C
B10: Lower | C10: =B04b!Acute_L -> 0.047628 | E10: ='B04b'!Acute_L
B11: Upper | C11: =B04b!Acute_U -> 0.47628 | E11: ='B04b'!Acute_U
A12: Fish
A13: Bioconcentration factor | B13: BCF
B14: Central | C14: ='B01'!$C$6 -> 1 | D14: L/kg | E14: Section 3.2.3.5
B15: Lower | C15: ='B01'!$C$6 -> 1 | E15: Section 3.2.3.5
B16: Upper | C16: ='B01'!$C$6 -> 1 | E16: Section 3.2.3.5
A17: Concentration in fish | B17: ConcFish | C17: ConcWat × BCF
B18: Central | C18: =C9*C14 -> 0.23814 | D18: mg/kg | E18: Eq
B19: Lower | C19: =C10*C15 -> 0.047628 | E19: Eq
B20: Upper | C20: =C11*C16 -> 0.47628 | E20: Eq
A21: Receptor
A22: Body weight | B22: BW | C22: =A02b!$C$24 -> 2.4 | D22: kg | E22: Sibley 2000
A23: Allometric coefficients for caloric requirement per day in kilocalories and BW in grams
B24: alpha | C24: =A02b!$C$27 -> 1.916 | E24: U.S. EPA/ORD 1993
B25: beta | C25: =A02b!$C$28 -> 0.704 | E25: U.S. EPA/ORD 1993
A26: Caloric requirement per day | B26: KR | C26: =C24*(C22*1000)^C25 -> 459.2659192 | D26: kcal/day | E26: Eq
A27: Caloric content of commodity (dry weight) | B27: KCD | C27: ='A03'!$E$36 -> 3.87 | D27: kcal/gdw [Note 1] | E27: U.S. EPA/ORD 1993
A28: Food consumed per day (dry weight) | B28: AmntDry | C28: = KR ÷ KCD
C29: =C26/C27 -> 118.6733641 | D29: gdry/day | E29: Eq
A30: Water content of vegetation as a proportion | B30: PropWater | C30: ='A03'!$E$37 -> 0.7 | D30: gwater/gfood | E30: Ali et al. 2005
A31: Dry weight content of vegetation as a proportion | B31: PropDry | C31: = 1-PropWater
C32: =1-C30 -> 0.3 | D32: gdry/gfood | E32: Eq
A33: Amount of fish consumed per day, wet weight | B33: AmntFish | C33: = (AmntDry ÷ PropDry) ÷ (1000g/kg)
B34: Central | C34: =(C29/C32)/1000 -> 0.3955778805 | D34: kgfood/day | E34: Eq
B35: Lower | C35: =C34*0.3 -> 0.1186733641 | D35: Note 1 | E35: Eq
B36: Upper | C36: =C34*1.7 -> 0.6724823968 | D36: Note 1 | E36: Eq
A37: Proportion of diet that is contaminated | B37: Prop
B38: Central | C38: 0.3 | D38: Unitless | E38: Scenario parameter
B39: Lower | C39: 0.1 | E39: Scenario parameter
B40: Upper | C40: 1 | E40: Scenario parameter
A41: Dose
A42: Toxic Equivalency Factor for formulation: (See risk assessment if this has a value other than 1.) | B42: TEF
B43: Central | C43: ='A01'!C$42 -> 1 | D43: Unitless | E43: Worksheet A01
B44: Lower | C44: ='A01'!C$43 -> 1 | D44: Note 2 | E44: Worksheet A01
B45: Upper | C45: ='A01'!C$44 -> 1 | D45: Note 2 | E45: Worksheet A01
A46: Dose | B46: Dose | C46: = ConcFish × AmntFish × Prop ÷ BW
B47: Central | C47: =C18*C34*C38/C$22 -> 0.01177536456 | D47: mg/kg | E47: Eq
B48: Lower | C48: =C19*C35*C39/C$22 -> 0.0002355072911 | D48: mg/kg | E48: Eq
B49: Upper | C49: 0.1334541316 | D49: mg/kg | E49: Eq
E50: FishKcalV6

Sheet F08b
A1: Acute scenario for the consumption of Contaminated Fish (Peak) by Bird, piscivorous
A2: Short Title | B2: Fish consumption, accidental spill | E2: FishKcalV6
A3: Predator | B3: Bird, piscivorous
A4: Food Item (Prey) | B4: Fish
A5: Duration | B5: Acute | E5: Scenario parameter
A6: Parameter/Assumption | B6: Code / Range | C6: Equation/ Value | D6: Units | E6: Reference/Designation
A7: Water
A8: Concentration in water | B8: ConcWat
B9: Central | C9: =B04a!Acute_C -> 0.004305 | D9: mg/L | E9: ='B04a'!Acute_C
B10: Lower | C10: =B04a!Acute_L -> 1.26e-10 | E10: ='B04a'!Acute_L
B11: Upper | C11: =B04a!Acute_U -> 0.04515 | E11: ='B04a'!Acute_U
A12: Fish
A13: Bioconcentration factor | B13: BCF
B14: Central | C14: ='B01'!$C$6 -> 1 | D14: L/kg | E14: Section 3.2.3.5
B15: Lower | C15: ='B01'!$C$6 -> 1 | E15: Section 3.2.3.5
B16: Upper | C16: ='B01'!$C$6 -> 1 | E16: Section 3.2.3.5
A17: Concentration in fish | B17: ConcFish | C17: ConcWat × BCF
B18: Central | C18: =C9*C14 -> 0.004305 | D18: mg/kg | E18: Eq
B19: Lower | C19: =C10*C15 -> 1.26e-10 | E19: Eq
B20: Upper | C20: =C11*C16 -> 0.04515 | E20: Eq
A21: Receptor
A22: Body weight | B22: BW | C22: =A02b!$C$24 -> 2.4 | D22: kg | E22: Sibley 2000
A23: Allometric coefficients for caloric requirement per day in kilocalories and BW in grams
B24: alpha | C24: =A02b!$C$27 -> 1.916 | E24: U.S. EPA/ORD 1993
B25: beta | C25: =A02b!$C$28 -> 0.704 | E25: U.S. EPA/ORD 1993
A26: Caloric requirement per day | B26: KR | C26: =C24*(C22*1000)^C25 -> 459.2659192 | D26: kcal/day | E26: Eq
A27: Caloric content of commodity (dry weight) | B27: KCD | C27: ='A03'!$E$36 -> 3.87 | D27: kcal/gdw [Note 1] | E27: U.S. EPA/ORD 1993
A28: Food consumed per day (dry weight) | B28: AmntDry | C28: = KR ÷ KCD
C29: =C26/C27 -> 118.6733641 | D29: gdry/day | E29: Eq
A30: Water content of vegetation as a proportion | B30: PropWater | C30: ='A03'!$E$37 -> 0.7 | D30: gwater/gfood | E30: Ali et al. 2005
A31: Dry weight content of vegetation as a proportion | B31: PropDry | C31: = 1-PropWater
C32: =1-C30 -> 0.3 | D32: gdry/gfood | E32: Eq
A33: Amount of fish consumed per day, wet weight | B33: AmntFish | C33: = (AmntDry ÷ PropDry) ÷ (1000g/kg)
B34: Central | C34: =(C29/C32)/1000 -> 0.3955778805 | D34: kgfood/day | E34: Eq
B35: Lower | C35: =C34*0.3 -> 0.1186733641 | D35: Note 1 | E35: Eq
B36: Upper | C36: =C34*1.7 -> 0.6724823968 | D36: Note 1 | E36: Eq
A37: Proportion of diet that is contaminated | B37: Prop
B38: Central | C38: 0.3 | D38: Unitless | E38: Scenario parameter
B39: Lower | C39: 0.1 | E39: Scenario parameter
B40: Upper | C40: 1 | E40: Scenario parameter
A41: Dose
A42: Toxic Equivalency Factor for formulation: (See risk assessment if this has a value other than 1.) | B42: TEF
B43: Central | C43: ='A01'!C$42 -> 1 | D43: Unitless | E43: Worksheet A01
B44: Lower | C44: ='A01'!C$43 -> 1 | D44: Note 2 | E44: Worksheet A01
B45: Upper | C45: ='A01'!C$44 -> 1 | D45: Note 2 | E45: Worksheet A01
A46: Dose | B46: Dose | C46: = ConcFish × AmntFish × Prop ÷ BW
B47: Central | C47: =C18*C34*C38/C$22 -> 0.0002128703469 | D47: mg/kg | E47: Eq
B48: Lower | C48: =C19*C35*C39/C$22 -> 6.230351618e-13 | D48: mg/kg | E48: Eq
B49: Upper | C49: 0.01265107509 | D49: mg/kg | E49: Eq
E50: FishKcalV6

Sheet F08c
A1: Chronic scenario for the consumption of Contaminated Fish (Longer-term) by Bird, piscivorous
A2: Short Title | B2: Fish consumption, accidental spill | E2: FishKcalV6
A3: Predator | B3: Bird, piscivorous
A4: Food Item (Prey) | B4: Fish
A5: Duration | B5: Chronic | E5: Scenario parameter
A6: Parameter/Assumption | B6: Code / Range | C6: Equation/ Value | D6: Units | E6: Reference/Designation
A7: Water
A8: Concentration in water | B8: ConcWat
B9: Central | C9: =B04a!Chronic_C -> 0.00189 | D9: mg/L | E9: ='B04a'!Chronic_C
B10: Lower | C10: =B04a!Chronic_L -> 6.3e-11 | E10: ='B04a'!Chronic_L
B11: Upper | C11: =B04a!Chronic_U -> 0.02415 | E11: ='B04a'!Chronic_U
A12: Fish
A13: Bioconcentration factor | B13: BCF
B14: Central | C14: ='B01'!$C$6 -> 1 | D14: L/kg | E14: Section 3.2.3.5
B15: Lower | C15: ='B01'!$C$6 -> 1 | E15: Section 3.2.3.5
B16: Upper | C16: ='B01'!$C$6 -> 1 | E16: Section 3.2.3.5
A17: Concentration in fish | B17: ConcFish | C17: ConcWat × BCF
B18: Central | C18: =C9*C14 -> 0.00189 | D18: mg/kg | E18: Eq
B19: Lower | C19: =C10*C15 -> 6.3e-11 | E19: Eq
B20: Upper | C20: =C11*C16 -> 0.02415 | E20: Eq
A21: Receptor
A22: Body weight | B22: BW | C22: =A02b!$C$24 -> 2.4 | D22: kg | E22: Sibley 2000
A23: Allometric coefficients for caloric requirement per day in kilocalories and BW in grams
B24: alpha | C24: =A02b!$C$27 -> 1.916 | E24: U.S. EPA/ORD 1993
B25: beta | C25: =A02b!$C$28 -> 0.704 | E25: U.S. EPA/ORD 1993
A26: Caloric requirement per day | B26: KR | C26: =C24*(C22*1000)^C25 -> 459.2659192 | D26: kcal/day | E26: Eq
A27: Caloric content of commodity (dry weight) | B27: KCD | C27: ='A03'!$E$36 -> 3.87 | D27: kcal/gdw [Note 1] | E27: U.S. EPA/ORD 1993
A28: Food consumed per day (dry weight) | B28: AmntDry | C28: = KR ÷ KCD
C29: =C26/C27 -> 118.6733641 | D29: gdry/day | E29: Eq
A30: Water content of vegetation as a proportion | B30: PropWater | C30: ='A03'!$E$37 -> 0.7 | D30: gwater/gfood | E30: Ali et al. 2005
A31: Dry weight content of vegetation as a proportion | B31: PropDry | C31: = 1-PropWater
C32: =1-C30 -> 0.3 | D32: gdry/gfood | E32: Eq
A33: Amount of fish consumed per day, wet weight | B33: AmntFish | C33: = (AmntDry ÷ PropDry) ÷ (1000g/kg)
B34: Central | C34: =(C29/C32)/1000 -> 0.3955778805 | D34: kgfood/day | E34: Eq
B35: Lower | C35: =C34*0.3 -> 0.1186733641 | D35: Note 1 | E35: Eq
B36: Upper | C36: =C34*1.7 -> 0.6724823968 | D36: Note 1 | E36: Eq
A37: Proportion of diet that is contaminated | B37: Prop
B38: Central | C38: 0.3 | D38: Unitless | E38: Scenario parameter
B39: Lower | C39: 0.1 | E39: Scenario parameter
B40: Upper | C40: 1 | E40: Scenario parameter
A41: Dose
A42: Toxic Equivalency Factor for formulation: (See risk assessment if this has a value other than 1.) | B42: TEF
B43: Central | C43: ='A01'!C$42 -> 1 | D43: Unitless | E43: Worksheet A01
B44: Lower | C44: ='A01'!C$43 -> 1 | D44: Note 2 | E44: Worksheet A01
B45: Upper | C45: ='A01'!C$44 -> 1 | D45: Note 2 | E45: Worksheet A01
A46: Dose | B46: Dose | C46: = ConcFish × AmntFish × Prop ÷ BW
B47: Central | C47: =C18*C34*C38/C$22 -> 9.345527426e-05 | D47: mg/kg | E47: Eq
B48: Lower | C48: =C19*C35*C39/C$22 -> 3.115175809e-13 | D48: mg/kg | E48: Eq
B49: Upper | C49: 0.006766854118 | D49: mg/kg | E49: Eq
E50: FishKcalV6

Sheet F09a
A1: Direct spray of Mammal, small assuming first-order absorption kinetics with spray of 0.5 of the body surface
A2: Short Title | B2: Direct spray, first-order absorption | E2: DrmFOA_Allo
A3: Receptor | B3: Mammal, small
A4: Duration | B4: Acute
A5: Parameter/Assumption | B5: Code / Range | C5: Equation/ Value | D5: Units | E5: Reference/Designation
A6: Application rate, lb/acre | B6: ApRt | C6: ='A01'!ApRt_C -> 0.105 | D6: lb/acre | E6: Worksheet A01
A7: Duration of Exposure | B7: T | C7: 24 | D7: hours | E7: Scenario parameter
A8: Body weight | B8: BW | C8: =A02b!$C$71 -> 0.02 | D8: kg | E8: Default
A9: Allometric coefficients for surface area
B10: alpha | C10: =A02b!$C$77 -> 0.11 | E10: U.S. EPA/ORD 1993
B11: beta | C11: =A02b!$C$78 -> 0.65 | E11: U.S. EPA/ORD 1993
A12: Surface Area | C12: =C10 * C8^C11 -> 0.008650917739 | D12: meters
B13: SA | C13: =C12*10000 -> 86.50917739 | D13: cm2 | E13: 10,000 cm2/m2
A14: Conversion Factor for lbs/acre to mg/cm2 | B14: CnvF | C14: 0.01121 | D14: mg/cm2/lb/acre
A15: Application rate, mg/cm2 | B15: ApRmgcm | C15: ApRlb/a × CnvF
C16: =C6*C$14 -> 0.00117705 | D16: lb/acre | E16: Eq
A17: First-order dermal absorption rates | B17: ka
B18: Central | C18: ='B01'!$C$11 -> 8.8e-05 | D18: hour-1 | E18: Section 3.2.2.2
B19: Lower | C19: ='B01'!$C$12 -> 2e-05 | E19: Section 3.2.2.2
B20: Upper | C20: ='B01'!$C$13 -> 0.00016 | E20: Section 3.2.2.2
A21: Proportion of body surface sprayed | B21: PrpSA | C21: 0.5 | D21: unitless | E21: Scenario parameter
A22: Toxic Equivalency Factor for formulation: (See risk assessment if this has a value other than 1.) | B22: TEF
B23: Central | C23: ='A01'!C$42 -> 1 | D23: Unitless | E23: Worksheet A01
B24: Lower | C24: ='A01'!C$43 -> 1 | E24: Worksheet A01
B25: Upper | C25: ='A01'!C$44 -> 1 | E25: Worksheet A01
A26: Amount Deposited on Skin | B26: Amnt | C26: ApRmgcm × SA × PrpSAx TEF
B27: Central | C27: =C$13*C$16*C$21*C23 -> 0.05091281362 | D27: mg | E27: Eq
B28: Lower | C28: =C$13*C$16*C$21*C24 -> 0.05091281362 | E28: Eq
B29: Upper | C29: =C$13*C$16*C$21*C25 -> 0.05091281362 | E29: Eq
A30: Skin Loading | B30: Loading
B31: Central | C31: =C27/C$13 -> 0.000588525 | D31: mg/cm2 | E31: Eq
B32: Lower | C32: =C28/C$13 -> 0.000588525 | E32: Eq
B33: Upper | C33: =C29/C$13 -> 0.000588525 | E33: Eq
A35: Proportion absorbed over period T | B35: Prop | C35: 1-exp(-ka T)
B36: Central | C36: =1-EXP(-C18 *C$7) -> 0.002109771297 | D36: hour-1 | E36: Eq
B37: Lower | C37: =1-EXP(-C19 *C$7) -> 0.0004798848184 | E37: Eq
B38: Upper | C38: =1-EXP(-C20 *C$7) -> 0.003832636628 | E38: Eq
A39: Absorbed Dose | B39: Dose | C39: Amnt × Prop ÷ BW
B40: Central | C40: =C27*C36/C$8 -> 0.005370719642 | D40: mg/kg bw | E40: Eq
B41: Lower | C41: =C28*C37/C$8 -> 0.001221614316 | E41: Eq
B42: Upper | C42: =C29*C38/C$8 -> 0.009756515716 | E42: Eq

Sheet F09b
A1: Direct spray of Mammal, small assuming 100% absorption
A2: Short Title | B2: Direct spray, 100% absorption | E2: Drm100_Allo
A3: Receptor | B3: Mammal, small
A4: Duration | B4: Acute
A5: Parameter/Assumption | B5: Code / Range | C5: Equation/ Value | D5: Units | E5: Reference/Designation
A6: Application rate, lb/acre | B6: ApRlb/ac | C6: ='A01'!ApRt_C -> 0.105 | D6: lb/acre | E6: Worksheet A01
A7: Conversion Factor for lbs/acre to mg/cm2 | B7: CnvF | C7: 0.01121 | D7: mg/cm2/lb/acre
A8: Application rate, mg/cm2 | B8: ApRmgcm | C8: ApRlb/a × CnvF
C9: =C6*C7 -> 0.00117705 | D9: lb/acre | E9: Eq
A10: Body weight | B10: BW | C10: =A02b!$C$71 -> 0.02 | D10: kg | E10: Default
A11: Allometric coefficients for surface area
B12: alpha | C12: =A02b!$C$77 -> 0.11 | E12: U.S. EPA/ORD 1993
B13: beta | C13: =A02b!$C$78 -> 0.65 | E13: U.S. EPA/ORD 1993
A14: Surface Area | C14: =C12 * C10^C13 -> 0.008650917739 | D14: meters
B15: SA | C15: =C14*10000 -> 86.50917739 | D15: cm2[10000 cm2/m2] | E15: Eq
A16: Proportion of body surface sprayed | B16: PrpSA
B17: Central | C17: 0.5 | D17: unitless | E17: Scenario parameter
B18: Lower | C18: 0.25 | E18: Scenario parameter
B19: Upper | C19: 1 | E19: Scenario parameter
A20: Toxic Equivalency Factor for formulation: (See risk assessment if this has a value other than 1.) | B20: TEF
B21: Central | C21: ='A01'!C$42 -> 1 | D21: Unitless | E21: Worksheet A01
B22: Lower | C22: ='A01'!C$43 -> 1 | E22: Worksheet A01
B23: Upper | C23: ='A01'!C$44 -> 1 | E23: Worksheet A01
A24: Amount Deposited on Skin | B24: Amnt | C24: ApRmgcm× SA × PrpSA× TEF
B25: Central | C25: =C$9*C$15*C17*C21 -> 0.05091281362 | D25: mg | E25: Eq
B26: Lower | C26: =C$9*C$15*C18*C22 -> 0.02545640681 | E26: Eq
B27: Upper | C27: 0.1018256272 | E27: Eq
A28: Absorbed Dose | B28: Dose | C28: Amnt ÷ BW
B29: Central | C29: =C25/C$10 -> 2.545640681 | D29: mg/kg bw | E29: Eq
B30: Lower | C30: =C26/C$10 -> 1.272820341 | E30: Eq
B31: Upper | C31: =C27/C$10 -> 5.091281362 | E31: Eq

Sheet G01
A1: Summary of Exposure Assessments for the Terrestrial Animals
F2: G01-Borax
A3: Scenario | B3: Receptor | C3: mg/kg/day or mg/kg/event | F3: Detail Worksheet
C4: Central | D4: Lower | E4: Upper
A5: Acute/Accidental Exposures (mg/kg/event)
A6: Direct Consumption from Stump
B7: Large mammal (70 kg) | C7: ='F01'!Dose_C -> 3.40194 | D7: ='F01'!Dose_L -> 1.70097 | E7: ='F01'!Dose_U -> 6.80388 | F7: F01
B8: Large Bird (4 kg) | C8: ='F02'!Dose_C -> 3.40194 | D8: ='F02'!Dose_L -> 1.70097 | E8: ='F02'!Dose_U -> 6.80388 | F8: F02
B9: Small mammal (20 g) | C9: ='F03'!Dose_C -> 3.40194 | D9: ='F03'!Dose_L -> 1.70097 | E9: ='F03'!Dose_U -> 6.80388 | F9: F03
B10: Small Bird (10 g) | C10: ='F04'!Dose_C -> 3.40194 | D10: ='F04'!Dose_L -> 1.70097 | E10: ='F04'!Dose_U -> 6.80388 | F10: F04
A11: Contaminated Water
A12: Accidental spill | B12: Small mammal (20 g) | C12: =F05a!Dose_C -> 0.03486298302 | D12: =F05a!Dose_L -> 0.006972596603 | E12: =F05a!Dose_U -> 0.06972596603 | F12: F05a
A13: Expected Peak Conc. | C13: =F05b!Dose_C -> 0.0006302391109 | D13: =F05b!Dose_L -> 1.844602276e-11 | E13: =F05b!Dose_U -> 0.006609824822 | F13: F05b
A14: Longer-term. Conc. | C14: =F05c!Dose_C -> 0.0002766903414 | D14: =F05c!Dose_L -> 9.22301138e-12 | E14: =F05c!Dose_U -> 0.003535487696 | F14: F05c
A15: Accidental spill | B15: Small Bird (10 g) | C15: =F06a!Dose_C -> 0.06422207907 | D15: =F06a!Dose_L -> 0.01284441581 | E15: =F06a!Dose_U -> 0.1284441581 | F15: F06a
A16: Expected Peak Conc. | C16: =F06b!Dose_C -> 0.001160981147 | D16: =F06b!Dose_L -> 3.397993602e-11 | E16: =F06b!Dose_U -> 0.01217614374 | F16: F06b
A17: Longer-term. Conc. | C17: =F06c!Dose_C -> 0.0005096990402 | D17: =F06c!Dose_L -> 1.698996801e-11 | E17: =F06c!Dose_U -> 0.00651282107 | F17: F06c
A18: Consumption of contaminated Fish
A19: Accidental spill | B19: Carnivorous Mammal (4 kg) | C19: =F07a!Dose_C -> 0.01014240419 | D19: =F07a!Dose_L -> 0.0002028480839 | E19: =F07a!Dose_U -> 0.1149472475 | F19: F07a
A20: Expected Peak Conc. | C20: =F07b!Dose_C -> 0.0001833503404 | D20: =F07b!Dose_L -> 5.366351425e-13 | E20: =F07b!Dose_U -> 0.0108966747 | F20: F07b
A21: Longer-term. Conc. | C21: =F07c!Dose_C -> 8.049527138e-05 | D21: =F07c!Dose_L -> 2.683175713e-13 | E21: =F07c!Dose_U -> 0.005828453909 | F21: F07c
A22: Accidental spill | B22: Fish Eating Bird (2.4 kg) | C22: =F08a!Dose_C -> 0.01177536456 | D22: =F08a!Dose_L -> 0.0002355072911 | E22: =F08a!Dose_U -> 0.1334541316 | F22: F08a
A23: Expected Peak Conc. | C23: =F08b!Dose_C -> 0.0002128703469 | D23: =F08b!Dose_L -> 6.230351618e-13 | E23: =F08b!Dose_U -> 0.01265107509 | F23: F08b
A24: Longer-term. Conc. | C24: =F08c!Dose_C -> 9.345527426e-05 | D24: =F08c!Dose_L -> 3.115175809e-13 | E24: =F08c!Dose_U -> 0.006766854118 | F24: F08c
A25: Direct Spray | H25: Wet
A26: first-order absorption | B26: Small mammal (20g) | C26: =F09a!Dose_C -> 0.005370719642 | D26: =F09a!Dose_L -> 0.001221614316 | E26: =F09a!Dose_U -> 0.009756515716 | F26: F09a | H26: Wet
A27: 100% absorption | B27: Small mammal (20g) | C27: =F09b!Dose_C -> 2.545640681 | D27: =F09b!Dose_L -> 1.272820341 | E27: =F09b!Dose_U -> 5.091281362 | F27: F09b | H27: Wet

Sheet G02
A1: Summary of Hazard Quotients (Toxicity) for the Terrestrial Animals
F2: G01-Borax
A3: Scenario | B3: Receptor | C3: Hazard Quotients | F3: Toxicity Value
C4: Central | D4: Lower | E4: Upper
A5: Acute/Accidental Exposures (mg/kg/event)
A6: Direct Consumption from Stump
B7: Large mammal (70 kg) | C7: ='F01'!$C$29/$F$7 -> 0.009719828571 | D7: ='F01'!$C$30/$F$7 -> 0.004859914286 | E7: ='F01'!$C$31/$F$7 -> 0.01943965714 | F7: ='B02'!$E$6 -> 350 | G7: NOAEL
B8: Large Bird (4 kg) | C8: ='F02'!$C$29/$F$8 -> 0.03010566372 | D8: ='F02'!$C$30/$F$8 -> 0.01505283186 | E8: ='F02'!$C$31/$F$8 -> 0.06021132743 | F8: ='B02'!$E$8 -> 113 | G8: NOAEL
B9: Small mammal (20 g) | C9: ='F03'!$C$29/$F$9 -> 0.009719828571 | D9: ='F03'!$C$30/$F$9 -> 0.004859914286 | E9: ='F03'!$C$31/$F$9 -> 0.01943965714 | F9: ='B02'!$E$6 -> 350 | G9: NOAEL
B10: Small Bird (10 g) | C10: ='F04'!$C$29/$F$10 -> 0.03010566372 | D10: ='F04'!$C$30/$F$10 -> 0.01505283186 | E10: ='F04'!$C$31/$F$10 -> 0.06021132743 | F10: ='B02'!$E$8 -> 113 | G10: NOAEL
A11: Contaminated Water
A12: Accidental spill | B12: Small mammal (20 g) | C12: =F05a!$C$18/$F$12 -> 9.96085229e-05 | D12: =F05a!$C$19/$F$12 -> 1.992170458e-05 | E12: =F05a!$C$20/$F$12 -> 0.0001992170458 | F12: ='B02'!$E$6 -> 350 | G12: NOAEL
A13: Expected Peak Conc. | C13: =F05b!$C$18/$F$13 -> 1.800683174e-06 | D13: =F05b!$C$19/$F$13 -> 5.270292217e-14 | E13: =F05b!$C$20/$F$13 -> 1.888521378e-05 | F13: ='B02'!$E$6 -> 350 | G13: NOAEL
A14: Longer-term. Conc. | C14: =F05c!$C$18/$F$14 -> 3.144208425e-05 | D14: =F05c!$C$19/$F$14 -> 1.048069475e-12 | E14: =F05c!$C$20/$F$14 -> 0.0004017599654 | F14: ='B02'!$E$7 -> 8.8 | G14: NOAEL
A15: Accidental spill | B15: Small Bird (10 g) | C15: =F06a!$C$18/$F$15 -> 0.0005683369829 | D15: =F06a!$C$19/$F$15 -> 0.0001136673966 | E15: =F06a!$C$20/$F$15 -> 0.001136673966 | F15: ='B02'!$E$8 -> 113 | G15: NOAEL
A16: Expected Peak Conc. | C16: =F06b!$C$18/$F$16 -> 1.027416944e-05 | D16: =F06b!$C$19/$F$16 -> 3.007073984e-13 | E16: =F06b!$C$20/$F$16 -> 0.0001077534844 | F16: ='B02'!$E$8 -> 113 | G16: NOAEL
A17: Longer-term. Conc. | C17: =F06c!$C$18/$F$17 -> 0.0001377564974 | D17: =F06c!$C$19/$F$17 -> 4.591883245e-12 | E17: =F06c!$C$20/$F$17 -> 0.001760221911 | F17: ='B02'!$E$9 -> 3.7 | G17: NOAEL
A18: Consumption of contaminated Fish
A19: Accidental spill | B19: Carnivorous Mammal (4 kg) | C19: =F07a!$C$47/$F$19 -> 2.89782977e-05 | D19: =F07a!$C$48/$F$19 -> 5.795659539e-07 | E19: =F07a!$C$49/$F$19 -> 0.0003284207072 | F19: ='B02'!$E$6 -> 350 | G19: NOAEL
A20: Expected Peak Conc. | C20: =F07b!$C$47/$F$20 -> 5.238581153e-07 | D20: =F07b!$C$48/$F$20 -> 1.533243264e-15 | E20: =F07b!$C$49/$F$20 -> 3.113335628e-05 | F20: ='B02'!$E$6 -> 350 | G20: NOAEL
A21: Longer-term. Conc. | C21: =F07c!$C$47/$F$21 -> 9.147189929e-06 | D21: =F07c!$C$48/$F$21 -> 3.04906331e-14 | E21: =F07c!$C$49/$F$21 -> 0.0006623243078 | F21: ='B02'!$E$7 -> 8.8 | G21: NOAEL
A22: Accidental spill | B22: Fish Eating Bird (2.4 kg) | C22: =F08a!$C$47/$F$22 -> 0.000104206766 | D22: =F08a!$C$48/$F$22 -> 2.08413532e-06 | E22: =F08a!$C$49/$F$22 -> 0.001181010015 | F22: ='B02'!$E$8 -> 113 | G22: NOAEL
A23: Expected Peak Conc. | C23: =F08b!$C$47/$F$23 -> 1.88380838e-06 | D23: =F08b!$C$48/$F$23 -> 5.513585502e-15 | E23: =F08b!$C$49/$F$23 -> 0.0001119564167 | F23: ='B02'!$E$8 -> 113 | G23: NOAEL
A24: Longer-term. Conc. | C24: =F08c!$C$47/$F$24 -> 2.525818223e-05 | D24: =F08c!$C$48/$F$24 -> 8.419394078e-14 | E24: =F08c!$C$49/$F$24 -> 0.001828879491 | F24: ='B02'!$E$9 -> 3.7 | G24: NOAEL
A25: Direct Spray | H25: Wet
A26: first-order absorption | B26: Small mammal (20g) | C26: =F09a!$C$40/$F$26 -> 1.534491326e-05 | D26: =F09a!$C$41/$F$26 -> 3.490326617e-06 | E26: =F09a!$C$42/$F$26 -> 2.787575919e-05 | F26: ='B02'!$E$6 -> 350 | G26: NOAEL | H26: Wet
A27: 100% absorption | B27: Small mammal (20g) | C27: =F09b!$C$29/$F$27 -> 0.007273259089 | D27: =F09b!$C$30/$F$27 -> 0.003636629544 | E27: =F09b!$C$31/$F$27 -> 0.01454651818 | F27: ='B02'!$E$6 -> 350 | G27: NOAEL | H27: Wet

Sheet G03
A1: Worksheet G03: Summary of Hazard Quotients for Aquatic Species
F2: AqToxSumV6
A3: Exposures | C3: Concentrations (mg/L)
B4: Scenario | C4: Central | D4: Lower | E4: Upper | F4: Worksheet
B5: Accidental Spill | C5: =B04b!Acute_C -> 0.23814 | D5: =B04b!Acute_L -> 0.047628 | E5: =B04b!Acute_U -> 0.47628 | F5: B04b
B6: Peak EEC | C6: =B04a!Acute_C -> 0.004305 | D6: =B04a!Acute_L -> 1.26e-10 | E6: =B04a!Acute_U -> 0.04515 | F6: B04a
B7: Chronic | C7: =B04a!Chronic_C -> 0.00189 | D7: =B04a!Chronic_L -> 6.3e-11 | E7: =B04a!Chronic_U -> 0.02415 | F7: B04a
A8: Receptor | B8: Type | C8: Hazard Quotients | F8: Toxicity Value | G8: Toxicity Endpoint
C9: Central | D9: Lower | E9: Upper
A10: Accidental Acute Exposures | K10: Lower | L10: Central | M10: Upper | N10: Check
A11: Fish | B11: Sensitive | C11: =C$5/$F11 -> 0.06746175637 | D11: =D$5/$F11 -> 0.01349235127 | E11: =E$5/$F11 -> 0.1349235127 | F11: ='B02'!$E$11 -> 3.53 | G11: NOAEC* | J11: Fish Sn | K11: =IF(D11>0, D11, "") -> 0.01349235127 | L11: =IF(ISERROR(C11-K11), "", C11-K11) -> 0.0539694051 | M11: =IF(ISERROR(E11-C11), "", E11-C11) -> 0.06746175637 | N11: =E11-SUM(K11:M11) -> 0
B12: Tolerant | C12: =C$5/$F12 -> 0.0012403125 | D12: 0.0002480625 | E12: 0.002480625 | F12: ='B02'!$E$12 -> 192 | G12: NOAEC | J12: Fish Tl | K12: 0.0002480625 | L12: 0.00099225 | M12: 0.0012403125 | N12: =E12-SUM(K12:M12) -> 0
A13: Amphibian | B13: Sensitive | C13: 0.047628 | D13: 0.0095256 | E13: 0.095256 | F13: ='B02'!$E$15 -> 5 | G13: NOEC | J13: Amph Sn | K13: 0.0095256 | L13: 0.0381024 | M13: 0.047628 | N13: =E13-SUM(K13:M13) -> 0
B14: Tolerant | C14: 0.0095256 | D14: 0.00190512 | E14: 0.0190512 | F14: ='B02'!$E$16 -> 25 | G14: NOEC | J14: Amph To | K14: 0.00190512 | L14: 0.00762048 | M14: 0.0095256 | N14: 0
A15: Invertebrate | B15: Sensitive | C15: 0.3402 | D15: 0.06804 | E15: 0.6804 | F15: ='B02'!$E$19 -> 0.7 | G15: NOAEC | J15: Invt Sn | K15: 0.06804 | L15: 0.27216 | M15: 0.3402 | N15: 0
B16: Tolerant | C16: 0.023814 | D16: 0.0047628 | E16: 0.047628 | F16: ='B02'!$E$20 -> 10 | G16: NOAEC | J16: Invt Tl | K16: 0.0047628 | L16: 0.0190512 | M16: 0.023814 | N16: 0
A17: Macrophyte | B17: Sensitive | C17: 0.059535 | D17: 0.011907 | E17: 0.11907 | F17: ='B02'!$E$25 -> 4 | G17: NOEC | J17: Plant Sn | K17: 0.011907 | L17: 0.047628 | M17: 0.059535 | N17: 0
B18: Tolerant | C18: 0.02164909091 | D18: 0.004329818182 | E18: 0.04329818182 | F18: ='B02'!$E$26 -> 11 | G18: NOEC | J18: Plant Tl | K18: 0.004329818182 | L18: 0.01731927273 | M18: 0.02164909091 | N18: 0
A19: Algae | B19: Sensitive | C19: 0.1488375 | D19: 0.0297675 | E19: 0.297675 | F19: ='B02'!$E$23 -> 1.6 | G19: NOAEC | J19: Algae Sn | K19: 0.0297675 | L19: 0.11907 | M19: 0.1488375 | N19: 0
B20: Tolerant | C20: 0.005056050955 | D20: 0.001011210191 | E20: 0.01011210191 | F20: ='B02'!$E$24 -> 47.1 | G20: NOAEC | J20: Algae Tl | K20: 0.001011210191 | L20: 0.004044840764 | M20: 0.005056050955 | N20: 0
A21: Non-Accidental Acute Exposures
A22: Fish | B22: Sensitive | C22: =C$6/$F22 -> 0.001219546742 | D22: =D$6/$F22 -> 3.569405099e-11 | E22: 0.01279036827 | F22: ='B02'!$E$11 -> 3.53 | G22: NOAEC* | J22: Fish Sn | K22: =IF(D22>0, D22, "") -> 3.569405099e-11 | L22: =IF(ISERROR(C22-K22), "", C22-K22) -> 0.001219546707 | M22: =IF(ISERROR(E22-C22), "", E22-C22) -> 0.01157082153 | N22: 0
B23: Tolerant | C23: =C$6/$F23 -> 2.2421875e-05 | D23: 6.5625e-13 | E23: 0.00023515625 | F23: ='B02'!$E$12 -> 192 | G23: NOAEC | J23: Fish Tl | K23: 6.5625e-13 | L23: 2.242187434e-05 | M23: 0.000212734375 | N23: 0
A24: Amphibian | B24: Sensitive | C24: 0.000861 | D24: 2.52e-11 | E24: 0.00903 | F24: ='B02'!$E$15 -> 5 | G24: NOEC | J24: Amph Sn | K24: 2.52e-11 | L24: 0.0008609999748 | M24: 0.008169 | N24: 0
B25: Tolerant | C25: 0.0001722 | D25: 5.04e-12 | E25: 0.001806 | F25: ='B02'!$E$16 -> 25 | G25: NOEC | J25: Amph To | K25: 5.04e-12 | L25: 0.000172199995 | M25: 0.0016338 | N25: 0
A26: Invertebrate | B26: Sensitive | C26: 0.00615 | D26: 1.8e-10 | E26: 0.0645 | F26: ='B02'!$E$19 -> 0.7 | G26: NOAEC | J26: Invt Sn | K26: 1.8e-10 | L26: 0.00614999982 | M26: 0.05835 | N26: 0
B27: Tolerant | C27: 0.0004305 | D27: 1.26e-11 | E27: 0.004515 | F27: ='B02'!$E$20 -> 10 | G27: NOAEC | J27: Invt Tl | K27: 1.26e-11 | L27: 0.0004304999874 | M27: 0.0040845 | N27: 0
A28: Macrophyte | B28: Sensitive | C28: 0.00107625 | D28: 3.15e-11 | E28: 0.0112875 | F28: ='B02'!$E$25 -> 4 | G28: NOEC | J28: Plant Sn | K28: 3.15e-11 | L28: 0.001076249968 | M28: 0.01021125 | N28: 0
B29: Tolerant | C29: 0.0003913636364 | D29: 1.145454545e-11 | E29: 0.004104545455 | F29: ='B02'!$E$26 -> 11 | G29: NOEC | J29: Plant Tl | K29: 1.145454545e-11 | L29: 0.0003913636249 | M29: 0.003713181818 | N29: 0
A30: Algae | B30: Sensitive | C30: 0.002690625 | D30: 7.875e-11 | E30: 0.02821875 | F30: ='B02'!$E$23 -> 1.6 | G30: NOAEC | J30: Algae Sn | K30: 7.875e-11 | L30: 0.002690624921 | M30: 0.025528125 | N30: 0
B31: Tolerant | C31: 9.140127389e-05 | D31: 2.675159236e-12 | E31: 0.0009585987261 | F31: ='B02'!$E$24 -> 47.1 | G31: NOAEC | J31: Algae Tl | K31: 2.675159236e-12 | L31: 9.140127121e-05 | M31: 0.0008671974522 | N31: 0
A32: Chronic/Longer Term Exposures
A33: Fish | B33: Sensitive | C33: =C$7/$F33 -> 0.001718181818 | D33: =D$7/$F33 -> 5.727272727e-11 | E33: 0.02195454545 | F33: ='B02'!$E$13 -> 1.1 | G33: LC01 | J33: Fish Sn | K33: =IF(D33>0, D33, "") -> 5.727272727e-11 | L33: =IF(ISERROR(C33-K33), "", C33-K33) -> 0.001718181761 | M33: =IF(ISERROR(E33-C33), "", E33-C33) -> 0.02023636364 | N33: 0
B34: Tolerant | C34: =C$7/$F34 -> 0.0002554054054 | D34: 8.513513514e-12 | E34: 0.003263513514 | F34: ='B02'!$E$14 -> 7.4 | G34: NOAEC | J34: Fish Tl | K34: 8.513513514e-12 | L34: 0.0002554053969 | M34: 0.003008108108 | N34: 0
A35: Amphibian | B35: Sensitive | C35: 0.00108 | D35: 3.6e-11 | E35: 0.0138 | F35: ='B02'!$E$17 -> 1.75 | G35: NOEC | J35: Amph Sn | K35: 3.6e-11 | L35: 0.001079999964 | M35: 0.01272 | N35: 0
B36: Tolerant | C36: 7.56e-05 | D36: 2.52e-12 | E36: 0.000966 | F36: ='B02'!$E$18 -> 25 | G36: NOEC | J36: Amph To | K36: 2.52e-12 | L36: 7.559999748e-05 | M36: 0.0008904 | N36: 0
A37: Invertebrate | B37: Sensitive | C37: 0.0027 | D37: 9e-11 | E37: 0.0345 | F37: ='B02'!$E$21 -> 0.7 | G37: NOAEC | J37: Invt Sn | K37: 9e-11 | L37: 0.00269999991 | M37: 0.0318 | N37: 0
B38: Tolerant | C38: 0.000189 | D38: 6.3e-12 | E38: 0.002415 | F38: ='B02'!$E$22 -> 10 | G38: NOAEC | J38: Invt Tl | K38: 6.3e-12 | L38: 0.0001889999937 | M38: 0.002226 | N38: 0
A39: Macrophyte | B39: Sensitive | C39: 0.0004725 | D39: 1.575e-11 | E39: 0.0060375 | F39: ='B02'!$E$25 -> 4 | G39: NOEC | J39: Plant Sn | K39: 1.575e-11 | L39: 0.0004724999842 | M39: 0.005565 | N39: 0
B40: Tolerant | C40: 0.0001718181818 | D40: 5.727272727e-12 | E40: 0.002195454545 | F40: ='B02'!$E$26 -> 11 | G40: NOEC | J40: Plant Tl | K40: 5.727272727e-12 | L40: 0.0001718181761 | M40: 0.002023636364 | N40: 0
A41: Algae | B41: Sensitive | C41: 0.00118125 | D41: 3.9375e-11 | E41: 0.01509375 | F41: ='B02'!$E$23 -> 1.6 | G41: NOAEC | J41: Algae Sn | K41: 3.9375e-11 | L41: 0.001181249961 | M41: 0.0139125 | N41: 0
B42: Tolerant | C42: 4.012738854e-05 | D42: 1.337579618e-12 | E42: 0.0005127388535 | F42: ='B02'!$E$24 -> 47.1 | G42: NOAEC | J42: Algae Tl | K42: =IF(D42>0, D42, "") -> 1.337579618e-12 | L42: =IF(ISERROR(C42-K42), "", C42-K42) -> 4.01273872e-05 | M42: =IF(ISERROR(E42-C42), "", E42-C42) -> 0.000472611465 | N42: 0

Sheet G04
A1: Summary of Exposure Assessment and Risk Characterization for Terrestrial Plants from Drift
A2: Short Title | B2: Drift to terrestrial plants
A3: Receptor | B3: Terrestrial vegetation
A4: Duration | B4: Acute
A5: Parameter/ Assumption | B5: Code / Range | C5: Equation/ Value | D5: Units | E5: Reference/ Designation
A6: Application Rate | B6: ApRt | C6: ='A01'!ApRt_C -> 0.105 | D6: lb/acre | E6: Worksheet A03
A7: Toxicity Values(Post-emergence in lb/ac)
A8: Sensitive species | B8: ToxValSens | C8: 0.03 | D8: lb/acre | E8: Table 18
A9: Tolerant species | B9: ToxValTol | C9: 0.03 | D9: lb/acre | E9: Table 18
A10: Proportion of Drift at distances downwind in feet [0 feet = direct spray] | B10: Prop
A11: 0 | C11: 1 | D11: unitless | E11: Standard rates for backpack
A12: 25 | C12: 0.00832
A13: 50 | C13: 0.00433
A14: 100 | C14: 0.00241
A15: 300 | C15: 0.000941
A16: 500 | C16: 0.000579
A17: 900 | C17: 0.000312
A18: Estimates of functional offsite application rate | B18: OfApRt | C18: =ApRt x Prop
A19: Direct Spray | C19: =$C$6*C11 -> 0.105 | D19: lb/acre | E19: Eq
A20: 25 | C20: 0.0008736 | E20: Eq
A21: 50 | C21: 0.00045465 | E21: Eq
A22: 100 | C22: 0.00025305 | E22: Eq
A23: 300 | C23: 9.8805e-05 | E23: Eq
A24: 500 | C24: 6.0795e-05 | E24: Eq
A25: 900 | C25: 3.276e-05 | E25: Eq
A26: Hazard Quotients (Sensitive Species) | B26: HQSens | C26: = ApRt / ToxValSens
A27: Direct Spray | C27: =IF( ISNUMBER($C$8), C19/$C$8, "N/A") -> 3.5
A28: 25 | C28: =IF( ISNUMBER($C$8), C20/$C$8, "N/A") -> 0.02912
A29: 50 | C29: 0.015155
A30: 100 | C30: 0.008435
A31: 300 | C31: 0.0032935
A32: 500 | C32: 0.0020265
A33: 900 | C33: 0.001092
A34: Hazard Quotients (Tolerant Species) | B34: HQTol | C34: = ApRt / ToxValTol
A35: Direct Spray | C35: =IF(ISNUMBER($C$9),C19/$C$9,"N/A") -> 3.5
A36: 25 | C36: 0.02912
A37: 50 | C37: 0.015155
A38: 100 | C38: 0.008435
A39: 300 | C39: 0.0032935
A40: 500 | C40: 0.0020265
A41: 900 | C41: 0.001092

Sheet References
A1: References cited in workbook
A2: Citation | B2: Full Reference
A3: Ali et al. 2005 | B3: Ali M; Iqbat F; Salam A; Iram S; Athar M. 2005. Comparative study of body composition of different fish species from brackish water pond. Int J Environ Sci Tech. 2(3): 229-232.
A4: Boxenbaum and D’Souza 1990 | B4: Boxenbaum J; D'Souza R. 1990. Interspecies pharmacokinetic scaling, biological design and neoteny. Adv. Drug Res. 19: 139-195.
A5: Budavari 1989 | B5: Budavari S. (Ed). 1989. The Merck Index: An Encyclopedia of Chemicals, Drugs,and Biologicals, 11th ed. Merck & Co., Inc., Rahway, New Jersey.
A6: Burnmaster 1998 | B6: Burnmaster DE. 1998. Lognormal distribution for total water intake and tap water intake by pregnant and lactating women in the United States. Risk Analysis. 18(5): 215-219
A7: Chapman 1998 | B7: Chapman P. 1998. The Insects: Structure and Function. 4th Edition. Cambridge University Press, Cambridge, UK. 788 pp.
A8: Default | B8: These are plausible default values that are typically used in SERA risk assessments.
A9: Dunning 1993 | B9: Dunning JB. 1993. CRC Handbook of Avian Body Masses. CRC Press, Boca Raton FL, 371 pp.
A10: Durkin et al. 1995 | B10: Durkin PR; Rubin L; Withey J; Meylan W. 1995. Methods of assessing dermal absorption with emphasis on uptake from contaminated vegetation. Toxicol. Indust. Health. 11(1): 63-79.
A11: Fletcher et al. 1994 | B11: Fletcher JS; Nellessen JE; Pfleeger TG. 1994. Literature review and evaluation of the EPA food-chain (Kenega) nomogram, an instrument for estimating pesticide residues on plants. Environ. Toxicol. Chem. 13(9):1383-1391.
A12: Harris and Solomon 1992 | B12: Harris SA; Solomon KR. 1992. Human exposure to 2,4-D following controlled activities on recently sprayed turf. J. Environ. Sci. Health. B27(1): 9-22.
A13: Hoerger and Kenaga 1972 | B13: Hoerger F; Kenaga EE. 1972. Pesticide residues on plants: Correlation of representative data as a basis for estimation of their magnitude in the environment. In: Environmental Quality and Safety, Volume I: Global Aspects of Toxicology and Technology as Applied to the Environment. F. Coulston and F. Kerte (eds.). Academic Press, New York, NY. pp. 9-28.
A14: Humphery and Dykes 2008 | B14: Humphrey JAC; Dykes ES. 2008. Thermal energy conduction in a honey bee comb due to cell-heating bees. J Theoretical Biology. 250 (1): 194-208.
A15: ICRP 1975 | B15: ICRP (International Commission on Radiologic Protection). 1975. Report of the Task Group on Reference Man. Recommendations of the International Commission on Radiological Protection (ICRP) Publ. No. 23. Pergamon Press, New York, NY.
A16: Knisel et al. 1992 | B16: Knisel WG; Davis FM; Leonard RA. 1992. GLEAMS Version 2.0 User Manual. U.S. Department of Agriculture, Agricultural Research Service, Southeast Watershed Research Laboratory, Tifton, GA. 202pp
A17: Manugistics 1995 | B17: Manugistics. 1995. Statgraphics Plus for Windows. Version 3. Available from Manugistics, Inc. Rockville, Maryland.
A18: Mason and Johnson 1987 | B18: Mason RW; Johnson BL. 1987. Ergonomic factors in chemical hazard control. In: Handbook of Human Factors. Salveny, G; ed. John Wiley and Sons, New York, NY. pp. 772-741.
A19: Mendenhall and Scheaffer 1973 | B19: Mendenhall W; Scheaffer RF. 1973. Mathematical Statistics with Applications. Duxbury Press, North Scituate, Massachusetts. 461 pp. plus appendices.
A20: N/A | B20: Not applicable
A21: Nagy 2005 | B21: Nagy KA. 2005. Field metabolic rate and body size. Journal of Experimental Biology. 208: 1621-1625.
A22: Ratnapalan et al. 2003 | B22: Ratnapalan S; Potylitsina Y; Tan LH; Roifman M; Koren G. 2003. Measuring a toddler's mouthful: toxicologic considerations. J Pediatr. 142(6):729-30.
A23: Reichle et al. 1973 | B23: Reichle DE, Goldstein RA; Van Hook RI; Dodson DJ. 1973. Analysis of Insect Consumption in a Forest Canopy. Ecology. 54: 1076-1084.
A24: Reid 2006 | B24: Reid FA. 2006. A Field Guide to Mammals of North America North of Mexico. Fourth Edition. The Peterson Field Guide Series. Houghton Mifflin Company, Boston MA. 570 pp.
A25: Ruffle et al. 1994 | B25: Ruffle B; Burmaster DE; Anderson PD; Gordon HD. 1994. Lognormal distributions for fish consumption by the general U.S. population. Risk Analy. 14(4): 395-404.
A26: SERA 1997 | B26: SERA (Syracuse Environmental Research Associates, Inc.). 1997. Reevaluation of Methods for Assessing Worker Exposure to Pesticides, SERA TR 96-21-08-01, draft dated December 31, 1997. Prepared under USDA/FS Contract 53-3187-5-12. Syracuse Environmental Research Associates, Inc., Fayetteville, NY.
A27: SERA 2005 | B27: SERA (Syracuse Environmental Research Associates, Inc.). 2005. Hexazinone - Human Health and Ecological Risk Assessment– Final Report, SERA SERA TR 05-43-20-03d, Final Report dated October 25, 2005. Available at: http://www.fs.fed.us/foresthealth/pesticide/risk.shtml.
A28: SERA 2007 | B28: SERA (Syracuse Environmental Research Associates, Inc.). 2007. Preparation of Environmental Documentation and Risk Assessments, SERA MD 2007-01a, draft dated July 2001. Syracuse Environmental Research Associates, Inc., Fayetteville, NY. Available at www.sera-inc.com.
A29: SERA 2010 | B29: SERA (Syracuse Environmental Research Associates, Inc.). 2010. Strychnine Human Health and Ecological Risk Assessment, SERA TR-052-17-02a, draft dated February 22, 2010. Syracuse Environmental Research Associates, Inc., Manlius, NY. Available at www.sera-inc.com.
A30: Sibley 2000 | B30: Sibley DA. 2000. The Sibley Guide to Birds. National Audubon Society, Chanticleer Press Edition. Alfred A. Knopf Inc., New York. 545 pp.
A31: Teske et al. 2001 | B31: Teske ME; Bird SL; Esterly DM; Ray SL; Perry SG. 2001. A User’s Guide for AgDRIFT 2.0: A Tiered Approach for the Assesment of Spray Drift. Continuum Dynamics, Inc. Public Use Version. C.D.I. Report No. 01-01. Available, with executable model at: http://www.agdrift.com
A32: U.S. EPA/OPP 1999 | B32: U.S. EPA/OPP ((U.S. Environmental Protection Agency/Office of Pesticide Programs). 1999. ECOFRAM: Terrestrial ECOFRAM Terrestrial Draft Report. Ecological Committee on FIFRA Risk Assessment Methods(ECOFRAM). Report dated May 10, 1999. Available at: http://www.epa.gov/oppefed1/ ecorisk/terrreport.pdf.
A33: U.S. EPA/ORD 1985 | B33: U.S. EPA/ORD (U.S. Environmental Protection Agency/Office of Research and Development). 1985. Development of Statistical Distributions or Ranges of Standard Factors Used in Exposure Assessments, Report prepared by GCA Corp., Chapel Hill. Available from NTIS: PB85-242667.
A34: U.S. EPA/ORD 1992 | B34: U.S. EPA/ORD (U.S. Environmental Protection Agency/Office of Research and Development). 1992. Dermal Exposure Assessment: Principles and Applications. EPA/600/8-91/011B. Interim Report. Exposure Assessment Group, Office of Health and Environmental Assessment, Washington, DC.
A35: U.S. EPA/ORD 1993 | B35: U.S. EPA/ORD (U.S. Environmental Protection Agency/Office of Research and Development). 1993. Wildlife Exposure Factors Handbook. Volumes 1 and 2. EPA/600/R-93/187a,b. Pagination not continuous. Available NTIS: PB94-174778 and PB94-174779.
A36: U.S. EPA/ORD 1996 | B36: U.S. EPA (U.S. Environmental Protection Agency/Office of Research and Development). 1996. Exposure Factors Handbook. National Center for Environmental Assessment, U.S. EPA, Washington, DC. EPA/600/P-95/002Ba-c. Avail. NTIS: PB97-117683, 97-117691, PB97-117709.
A37: U.S. EPA/ORD 1997 | B37: U.S. EPA (U.S. Environmental Protection Agency/Office of Research and Development). 1997. Exposure Factors Handbook. National Center for Environmental Assessment, U.S. EPA, Washington, DC. EPA/600/P-95/002Fa. Available at: http://rais.ornl.gov/homepage/EFH_Final_1997_EPA600P95002Fa.pdf
A38: USDA 1989a | B38: USDA (U.S. Department of Agriculture/Forest Service). 1989a. Final Environmental Impact Statement: Vegetation Management in the Coastal Plain/Piedmont, Management Bulletin R8-MB-23, dated January, 1989. 1213 pp.
A39: USDA 1989b | B39: USDA (U.S. Department of Agriculture/Forest Service). 1989b. Draft Environmental Impact Statement: Vegetation Management in the Ozark/Ouachita Mountains, Management Bulletin R8-MB-23, dated June, 1989. 499 pp.
A40: USDA 1989c | B40: USDA (U.S. Department of Agriculture/Forest Service). 1989c. Final Environmental Impact Statement: Vegetation Management in the Appalachian Mountains, Management Bulletin R8-MB-38, dated July, 1989. 1104 pp.
A41: Waldbauer 1968 | B41: Waldbauer GP. 1968. The consumption and utilization of food by insects. Advan Insect Physiol. 5: 229-288
A42: Winston 1987 | B42: Winston ML. 1987. The Biology of the Honey Bee. Harvard University Press, Cambridge, MA. ISBN 0-674-07409-2 280 pp.
A43: Wolfram Research 1997 | B43: Wolfram Research. 1997. Mathematica Version 3.0.1. Available from Wolfram Research, Inc. Champaign, IL.
